{"text_format":"1","workbook":"xlsx","n_sheets":59,"sheets":["設問集計","目次","トップページ","回答者情報１","回答者情報２","問1","問2","問3","問4","問5","問6","問7","問8","問9","問10","問11","問12","問13","問14","問15","問16","問17","問18","問19","問20","問21","問22","問23","問24","問25","問26","問27","問28","問29","問30","問31","問32","問33","問34","問35","問36","問37","問38","問39","問40","問41","問42","問43","問44","問45","問46","問47","問48","問49","問50","問51","問52","問53","問54"],"not_rendered":{"charts":0,"images":0,"macros":1,"external_links":0,"defined_names":2,"comments":0,"pivot_tables":0},"unopened":[],"bounds":{"document_bytes":16777216,"sheet_cells":100000,"rows_first":2000,"rows_last":500,"rows_between":2000,"halvings":0,"cell_chars":16384,"cell_head_chars":4096},"cells_cut":0,"cells_raw":0,"read":"whole","date_system":"1900"}

{"sheet":"設問集計","index":0,"n_rows":4,"n_cols":1437,"rows_kept":4,"cut":false,"hidden":true,"merged":[]}
[{"$f":"回答者情報１!C5&\"\"","v":""},0,{"$f":"IF(回答者情報１!E7=\"\",\"\",IF(回答者情報１!F7=\"\",\"\",IF(回答者情報１!G7=\"\",\"\",IF(回答者情報１!I7=\"\",\"\",回答者情報１!C7&回答者情報１!D7&回答者情報１!E7&回答者情報１!F7&回答者情報１!G7&回答者情報１!I7))))","v":""},{"$f":"IF(回答者情報１!C8=\"\",\"\",IF(回答者情報１!F8=\"\",\"\",IF(回答者情報１!H8=\"\",\"\",回答者情報１!C8&\"(\"&回答者情報１!F8&\")第\"&TEXT(回答者情報１!H8,\"00000\")&\"号\")))","v":""},{"$f":"回答者情報１!E10&\"\"","v":""},{"$f":"回答者情報１!E11&\"\"","v":""},{"$f":"回答者情報１!E12&\"\"","v":""},{"$f":"回答者情報１!E13&\"\"","v":""},false,false,false,{"$f":"回答者情報１!C17&\"\"","v":""},{"$f":"回答者情報１!C18&\"\"","v":""},{"$f":"回答者情報１!C19&\"\"","v":""},0,{"$f":"回答者情報２!E18&\"\"","v":""},{"$f":"問1!F6&\"\"","v":""},{"$f":"問1!F7&\"\"","v":""},{"$f":"問1!F8&\"\"","v":""},{"$f":"問1!F9&\"\"","v":""},{"$f":"問1!F10&\"\"","v":""},{"$f":"問1!F11&\"\"","v":""},{"$f":"問1!F12&\"\"","v":""},{"$f":"問1!F13&\"\"","v":""},{"$f":"問1!F14&\"\"","v":""},0,0,0,0,{"$f":"問1!D23&\"\"","v":""},0,{"$f":"問1!D25&\"\"","v":""},false,false,false,false,false,false,false,false,false,false,false,false,false,false,false,false,false,false,false,false,false,false,false,false,false,false,false,false,false,false,false,false,false,false,false,false,false,false,false,false,false,false,false,false,0,{"$f":"問2!C35&\"\"","v":""},{"$f":"問2!C36&\"\"","v":""},{"$f":"問2!C37&\"\"","v":""},{"$f":"問3!D6&\"\"","v":""},{"$f":"問3!D7&\"\"","v":""},false,false,false,false,false,false,0,{"$f":"問4!C17&\"\"","v":""},0,false,false,false,false,false,false,false,false,false,false,false,false,false,false,false,false,false,false,false,false,false,false,false,false,false,false,false,false,false,false,false,false,false,false,false,false,false,false,false,false,false,false,false,false,{"$f":"問6!C33&\"\"","v":""},{"$f":"問6!C34&\"\"","v":""},{"$f":"問6!C35&\"\"","v":""},false,false,false,false,false,false,0,{"$f":"問7!B15&\"\"","v":""},false,false,false,false,false,false,false,false,false,false,false,false,false,false,false,false,false,false,false,false,false,false,false,false,false,false,false,false,false,false,false,false,false,false,false,false,false,false,false,false,false,false,false,false,false,false,false,false,false,false,false,false,false,false,false,false,false,false,false,false,false,false,false,false,false,false,false,false,false,false,false,false,false,false,false,false,false,false,false,false,false,false,false,false,false,false,false,false,false,false,false,false,false,false,false,false,false,false,false,false,false,false,false,false,false,{"$f":"問8!B55&\"\"","v":""},false,false,false,false,false,false,false,false,false,false,false,false,false,false,false,0,0,0,0,0,0,0,0,0,0,{"$f":"問9!C16&\"\"","v":""},false,false,false,false,false,false,false,false,false,false,false,false,false,false,false,false,false,false,false,false,false,false,false,false,false,false,false,false,{"$f":"問10!C20&\"\"","v":""},false,false,false,false,false,false,false,false,false,false,false,false,false,false,false,false,false,false,false,false,false,false,{"$f":"問10!C37&\"\"","v":""},false,false,false,false,false,false,false,false,false,false,false,false,false,false,false,false,false,false,false,false,false,false,false,false,false,false,false,false,false,false,{"$f":"問11!C23&\"\"","v":""},{"$f":"問11!B29&\"\"","v":""},false,false,false,false,false,false,false,false,false,false,false,false,false,false,false,false,false,false,false,false,false,false,false,false,false,false,false,false,false,false,false,false,false,false,{"$f":"問13!C17&\"\"","v":""},false,false,false,false,false,false,false,false,false,false,false,false,{"$f":"問13!C27&\"\"","v":""},false,false,false,false,false,false,false,false,false,false,{"$f":"問13!C35&\"\"","v":""},false,false,false,false,false,false,false,false,false,false,{"$f":"問13!C44&\"\"","v":""},false,false,false,false,false,false,false,false,false,false,{"$f":"問13!C52&\"\"","v":""},false,false,false,false,false,false,false,false,false,false,false,false,false,false,false,false,false,false,false,false,false,false,false,false,false,false,false,false,false,false,false,false,{"$f":"問13!C72&\"\"","v":""},{"$f":"問14!D7&\"\"","v":""},{"$f":"問14!F7&\"\"","v":""},{"$f":"問14!H7&\"\"","v":""},{"$f":"問14!D8&\"\"","v":""},{"$f":"問14!F8&\"\"","v":""},{"$f":"問14!H8&\"\"","v":""},{"$f":"問14!D9&\"\"","v":""},{"$f":"問14!F9&\"\"","v":""},{"$f":"問14!H9&\"\"","v":""},{"$f":"問14!D10&\"\"","v":""},{"$f":"問14!F10&\"\"","v":""},{"$f":"問14!H10&\"\"","v":""},{"$f":"問14!D11&\"\"","v":""},{"$f":"問14!F11&\"\"","v":""},{"$f":"問14!H11&\"\"","v":""},{"$f":"問14!D12&\"\"","v":""},{"$f":"問14!F12&\"\"","v":""},{"$f":"問14!H12&\"\"","v":""},{"$f":"問14!D13&\"\"","v":""},{"$f":"問14!F13&\"\"","v":""},{"$f":"問14!H13&\"\"","v":""},{"$f":"問14!D14&\"\"","v":""},{"$f":"問14!F14&\"\"","v":""},{"$f":"問14!H14&\"\"","v":""},{"$f":"問14!D15&\"\"","v":""},{"$f":"問14!F15&\"\"","v":""},{"$f":"問14!H15&\"\"","v":""},{"$f":"問14!D16&\"\"","v":""},{"$f":"問14!F16&\"\"","v":""},{"$f":"問14!H16&\"\"","v":""},{"$f":"問14!D17&\"\"","v":""},{"$f":"問14!F17&\"\"","v":""},{"$f":"問14!H17&\"\"","v":""},{"$f":"問14!C18&\"\"","v":""},{"$f":"問14!B29&\"\"","v":""},{"$f":"問14!D29&\"\"","v":""},{"$f":"問14!F29&\"\"","v":""},{"$f":"問14!H29&\"\"","v":""},{"$f":"問14!B30&\"\"","v":""},{"$f":"問14!D30&\"\"","v":""},{"$f":"問14!F30&\"\"","v":""},{"$f":"問14!H30&\"\"","v":""},{"$f":"問14!B31&\"\"","v":""},{"$f":"問14!D31&\"\"","v":""},{"$f":"問14!F31&\"\"","v":""},{"$f":"問14!H31&\"\"","v":""},{"$f":"問15!D12&\"\"","v":""},{"$f":"問15!F12&\"\"","v":""},{"$f":"問15!H12&\"\"","v":""},{"$f":"問15!J12&\"\"","v":""},{"$f":"問15!L12&\"\"","v":""},{"$f":"問15!N12&\"\"","v":""},{"$f":"問15!P12&\"\"","v":""},{"$f":"問15!D13&\"\"","v":""},{"$f":"問15!F13&\"\"","v":""},{"$f":"問15!H13&\"\"","v":""},{"$f":"問15!J13&\"\"","v":""},{"$f":"問15!L13&\"\"","v":""},{"$f":"問15!N13&\"\"","v":""},{"$f":"問15!P13&\"\"","v":""},{"$f":"問16!E7&\"\"","v":""},{"$f":"問16!G7&\"\"","v":""},0,{"$f":"問16!E8&\"\"","v":""},{"$f":"問16!G8&\"\"","v":""},0,{"$f":"問16!E9&\"\"","v":""},{"$f":"問16!G9&\"\"","v":""},0,{"$f":"問16!E10&\"\"","v":""},{"$f":"問16!G10&\"\"","v":""},0,{"$f":"問16!E11&\"\"","v":""},{"$f":"問16!G11&\"\"","v":""},0,{"$f":"問16!E12&\"\"","v":""},{"$f":"問16!G12&\"\"","v":""},0,{"$f":"問16!D13&\"\"","v":""},{"$f":"問16!E16&\"\"","v":""},{"$f":"問16!G16&\"\"","v":""},0,{"$f":"問16!E17&\"\"","v":""},{"$f":"問16!G17&\"\"","v":""},0,{"$f":"問16!E18&\"\"","v":""},{"$f":"問16!G18&\"\"","v":""},0,{"$f":"問16!E19&\"\"","v":""},{"$f":"問16!G19&\"\"","v":""},0,{"$f":"問16!E20&\"\"","v":""},{"$f":"問16!G20&\"\"","v":""},0,{"$f":"問16!E21&\"\"","v":""},{"$f":"問16!G21&\"\"","v":""},0,{"$f":"問16!E22&\"\"","v":""},{"$f":"問16!G22&\"\"","v":""},0,{"$f":"問16!E23&\"\"","v":""},{"$f":"問16!G23&\"\"","v":""},0,{"$f":"問16!E24&\"\"","v":""},{"$f":"問16!G24&\"\"","v":""},0,{"$f":"問16!D25&\"\"","v":""},0,0,0,0,0,0,0,0,0,0,0,0,0,0,0,0,0,0,0,0,0,0,0,{"$f":"問17!C29&\"\"","v":""},false,false,false,false,false,false,false,false,false,false,false,false,false,false,false,false,false,false,false,false,false,false,{"$f":"問18!$D$18&\"\"","v":""},{"$f":"問19!F10&\"\"","v":""},{"$f":"問19!H10&\"\"","v":""},0,{"$f":"問19!F11&\"\"","v":""},{"$f":"問19!H11&\"\"","v":""},0,{"$f":"問19!F12&\"\"","v":""},{"$f":"問19!H12&\"\"","v":""},0,{"$f":"問19!F13&\"\"","v":""},{"$f":"問19!H13&\"\"","v":""},0,{"$f":"問19!F14&\"\"","v":""},{"$f":"問19!H14&\"\"","v":""},0,{"$f":"問19!F15&\"\"","v":""},{"$f":"問19!H15&\"\"","v":""},0,{"$f":"問19!F16&\"\"","v":""},{"$f":"問19!H16&\"\"","v":""},0,{"$f":"問19!F17&\"\"","v":""},{"$f":"問19!H17&\"\"","v":""},0,{"$f":"問19!F24&\"\"","v":""},{"$f":"問19!H24&\"\"","v":""},0,{"$f":"問19!F25&\"\"","v":""},{"$f":"問19!H25&\"\"","v":""},0,{"$f":"問19!F26&\"\"","v":""},{"$f":"問19!H26&\"\"","v":""},0,{"$f":"問19!F27&\"\"","v":""},{"$f":"問19!H27&\"\"","v":""},0,{"$f":"問19!F28&\"\"","v":""},{"$f":"問19!H28&\"\"","v":""},0,{"$f":"問19!F29&\"\"","v":""},{"$f":"問19!H29&\"\"","v":""},0,{"$f":"問19!F30&\"\"","v":""},{"$f":"問19!H30&\"\"","v":""},0,{"$f":"問19!F31&\"\"","v":""},{"$f":"問19!H31&\"\"","v":""},0,{"$f":"問19!F38&\"\"","v":""},{"$f":"問19!H38&\"\"","v":""},0,{"$f":"問19!F39&\"\"","v":""},{"$f":"問19!H39&\"\"","v":""},0,{"$f":"問19!F40&\"\"","v":""},{"$f":"問19!H40&\"\"","v":""},0,{"$f":"問19!F41&\"\"","v":""},{"$f":"問19!H41&\"\"","v":""},0,{"$f":"問19!F42&\"\"","v":""},{"$f":"問19!H42&\"\"","v":""},0,{"$f":"問19!F43&\"\"","v":""},{"$f":"問19!H43&\"\"","v":""},0,{"$f":"問19!F44&\"\"","v":""},{"$f":"問19!H44&\"\"","v":""},0,{"$f":"問19!F51&\"\"","v":""},{"$f":"問19!H51&\"\"","v":""},0,{"$f":"問19!F52&\"\"","v":""},{"$f":"問19!H52&\"\"","v":""},0,{"$f":"問19!F53&\"\"","v":""},{"$f":"問19!H53&\"\"","v":""},0,{"$f":"問19!F54&\"\"","v":""},{"$f":"問19!H54&\"\"","v":""},0,{"$f":"問19!F55&\"\"","v":""},{"$f":"問19!H55&\"\"","v":""},0,{"$f":"問19!F56&\"\"","v":""},{"$f":"問19!H56&\"\"","v":""},0,{"$f":"問19!F57&\"\"","v":""},{"$f":"問19!H57&\"\"","v":""},0,{"$f":"問19!F58&\"\"","v":""},{"$f":"問19!H58&\"\"","v":""},0,{"$f":"問19!F59&\"\"","v":""},{"$f":"問19!H59&\"\"","v":""},0,{"$f":"問19!F67&\"\"","v":""},{"$f":"問19!H67&\"\"","v":""},0,{"$f":"問19!F68&\"\"","v":""},{"$f":"問19!H68&\"\"","v":""},0,{"$f":"問19!F69&\"\"","v":""},{"$f":"問19!H69&\"\"","v":""},0,{"$f":"問19!F70&\"\"","v":""},{"$f":"問19!H70&\"\"","v":""},0,{"$f":"問19!F71&\"\"","v":""},{"$f":"問19!H71&\"\"","v":""},0,{"$f":"問19!F72&\"\"","v":""},{"$f":"問19!H72&\"\"","v":""},0,{"$f":"問19!F73&\"\"","v":""},{"$f":"問19!H73&\"\"","v":""},0,{"$f":"問19!F74&\"\"","v":""},{"$f":"問19!H74&\"\"","v":""},0,{"$f":"問19!F75&\"\"","v":""},{"$f":"問19!H75&\"\"","v":""},0,{"$f":"問20!G8&\"\"","v":""},{"$f":"問20!I8&\"\"","v":""},{"$f":"問20!K8&\"\"","v":""},{"$f":"問20!G9&\"\"","v":""},{"$f":"問20!I9&\"\"","v":""},{"$f":"問20!K9&\"\"","v":""},{"$f":"問20!G10&\"\"","v":""},{"$f":"問20!I10&\"\"","v":""},{"$f":"問20!K10&\"\"","v":""},{"$f":"問20!G11&\"\"","v":""},{"$f":"問20!I11&\"\"","v":""},{"$f":"問20!K11&\"\"","v":""},{"$f":"問20!C12&\"\"","v":""},{"$f":"問20!G18&\"\"","v":""},{"$f":"問20!I18&\"\"","v":""},{"$f":"問20!K18&\"\"","v":""},{"$f":"問20!G19&\"\"","v":""},{"$f":"問20!I19&\"\"","v":""},{"$f":"問20!K19&\"\"","v":""},{"$f":"問20!G20&\"\"","v":""},{"$f":"問20!I20&\"\"","v":""},{"$f":"問20!K20&\"\"","v":""},{"$f":"問20!G21&\"\"","v":""},{"$f":"問20!I21&\"\"","v":""},{"$f":"問20!K21&\"\"","v":""},{"$f":"問20!C22&\"\"","v":""},{"$f":"問21!E9&\"\"","v":""},{"$f":"問21!G9&\"\"","v":""},0,{"$f":"問21!E10&\"\"","v":""},{"$f":"問21!G10&\"\"","v":""},0,{"$f":"問21!E11&\"\"","v":""},{"$f":"問21!G11&\"\"","v":""},0,{"$f":"問21!E12&\"\"","v":""},{"$f":"問21!G12&\"\"","v":""},0,{"$f":"問21!E13&\"\"","v":""},{"$f":"問21!G13&\"\"","v":""},0,{"$f":"問21!E14&\"\"","v":""},{"$f":"問21!G14&\"\"","v":""},0,{"$f":"問21!E15&\"\"","v":""},{"$f":"問21!G15&\"\"","v":""},0,{"$f":"問21!E16&\"\"","v":""},{"$f":"問21!G16&\"\"","v":""},0,{"$f":"問21!E17&\"\"","v":""},{"$f":"問21!G17&\"\"","v":""},0,{"$f":"問21!E18&\"\"","v":""},{"$f":"問21!G18&\"\"","v":""},0,{"$f":"問21!E19&\"\"","v":""},{"$f":"問21!G19&\"\"","v":""},0,{"$f":"問21!E20&\"\"","v":""},{"$f":"問21!G20&\"\"","v":""},0,{"$f":"問21!E21&\"\"","v":""},{"$f":"問21!G21&\"\"","v":""},0,{"$f":"問21!E22&\"\"","v":""},{"$f":"問21!G22&\"\"","v":""},0,{"$f":"問21!E28&\"\"","v":""},{"$f":"問21!G28&\"\"","v":""},0,{"$f":"問21!E29&\"\"","v":""},{"$f":"問21!G29&\"\"","v":""},0,{"$f":"問21!E30&\"\"","v":""},{"$f":"問21!G30&\"\"","v":""},0,{"$f":"問21!E31&\"\"","v":""},{"$f":"問21!G31&\"\"","v":""},0,{"$f":"問21!E32&\"\"","v":""},{"$f":"問21!G32&\"\"","v":""},0,{"$f":"問21!E33&\"\"","v":""},{"$f":"問21!G33&\"\"","v":""},0,{"$f":"問21!E34&\"\"","v":""},{"$f":"問21!G34&\"\"","v":""},0,{"$f":"問21!E41&\"\"","v":""},{"$f":"問21!G41&\"\"","v":""},0,{"$f":"問21!E42&\"\"","v":""},{"$f":"問21!G42&\"\"","v":""},0,{"$f":"問21!E43&\"\"","v":""},{"$f":"問21!G43&\"\"","v":""},0,{"$f":"問21!E49&\"\"","v":""},{"$f":"問21!G49&\"\"","v":""},0,{"$f":"問21!E50&\"\"","v":""},{"$f":"問21!G50&\"\"","v":""},0,{"$f":"問21!E51&\"\"","v":""},{"$f":"問21!G51&\"\"","v":""},0,{"$f":"問21!E52&\"\"","v":""},{"$f":"問21!G52&\"\"","v":""},0,{"$f":"問21!E53&\"\"","v":""},{"$f":"問21!G53&\"\"","v":""},0,{"$f":"問21!E54&\"\"","v":""},{"$f":"問21!G54&\"\"","v":""},0,{"$f":"問21!E55&\"\"","v":""},{"$f":"問21!G55&\"\"","v":""},0,{"$f":"問21!E56&\"\"","v":""},{"$f":"問21!G56&\"\"","v":""},0,{"$f":"問21!E57&\"\"","v":""},{"$f":"問21!G57&\"\"","v":""},0,false,false,false,false,false,false,false,false,false,false,false,false,false,false,false,false,false,false,false,false,false,false,false,false,false,false,false,false,false,false,false,false,false,false,false,false,false,false,{"$f":"問22!B26&\"\"","v":""},{"$f":"問23!F7&\"\"","v":""},{"$f":"問23!H7&\"\"","v":""},{"$f":"問23!J7&\"\"","v":""},{"$f":"問23!F8&\"\"","v":""},{"$f":"問23!H8&\"\"","v":""},{"$f":"問23!J8&\"\"","v":""},{"$f":"問23!F9&\"\"","v":""},{"$f":"問23!H9&\"\"","v":""},{"$f":"問23!J9&\"\"","v":""},{"$f":"問23!F10&\"\"","v":""},{"$f":"問23!H10&\"\"","v":""},{"$f":"問23!J10&\"\"","v":""},{"$f":"問23!F11&\"\"","v":""},{"$f":"問23!H11&\"\"","v":""},{"$f":"問23!J11&\"\"","v":""},{"$f":"問23!F12&\"\"","v":""},{"$f":"問23!H12&\"\"","v":""},{"$f":"問23!J12&\"\"","v":""},{"$f":"問23!F13&\"\"","v":""},{"$f":"問23!H13&\"\"","v":""},{"$f":"問23!J13&\"\"","v":""},{"$f":"問23!F14&\"\"","v":""},{"$f":"問23!H14&\"\"","v":""},{"$f":"問23!J14&\"\"","v":""},false,false,false,false,false,false,false,false,false,false,false,false,false,false,false,false,{"$f":"問24!C14&\"\"","v":""},0,false,false,false,false,false,{"$f":"問26!C11&\"\"","v":""},{"$f":"問26!B17&\"\"","v":""},{"$f":"問27!E8&\"\"","v":""},0,{"$f":"問27!E9&\"\"","v":""},0,{"$f":"問27!E10&\"\"","v":""},0,{"$f":"問27!E11&\"\"","v":""},0,{"$f":"問27!E12&\"\"","v":""},0,{"$f":"問27!E13&\"\"","v":""},0,{"$f":"問27!E14&\"\"","v":""},0,{"$f":"問27!E15&\"\"","v":""},0,{"$f":"問27!E16&\"\"","v":""},0,{"$f":"問27!E17&\"\"","v":""},0,{"$f":"問27!E18&\"\"","v":""},0,{"$f":"問27!E19&\"\"","v":""},0,{"$f":"問27!E20&\"\"","v":""},0,{"$f":"問27!E21&\"\"","v":""},0,{"$f":"問27!E22&\"\"","v":""},0,{"$f":"問27!E23&\"\"","v":""},0,{"$f":"問27!C24&\"\"","v":""},{"$f":"問27!E26&\"\"","v":""},0,false,false,false,false,false,false,false,false,false,false,false,0,{"$f":"問29!B20&\"\"","v":""},0,{"$f":"問30!G11&\"\"","v":""},{"$f":"問30!B16&\"\"","v":""},{"$f":"問31!E9&\"\"","v":""},{"$f":"問31!G9&\"\"","v":""},{"$f":"問31!E11&\"\"","v":""},{"$f":"問31!G11&\"\"","v":""},{"$f":"問31!E12&\"\"","v":""},{"$f":"問31!G12&\"\"","v":""},{"$f":"問31!E13&\"\"","v":""},{"$f":"問31!G13&\"\"","v":""},{"$f":"問31!E14&\"\"","v":""},{"$f":"問31!G14&\"\"","v":""},{"$f":"問31!E15&\"\"","v":""},{"$f":"問31!G15&\"\"","v":""},{"$f":"問31!E16&\"\"","v":""},{"$f":"問31!G16&\"\"","v":""},{"$f":"問31!E17&\"\"","v":""},{"$f":"問31!G17&\"\"","v":""},{"$f":"問31!E18&\"\"","v":""},{"$f":"問31!G18&\"\"","v":""},{"$f":"問31!G67&\"\"","v":""},{"$f":"問31!G69&\"\"","v":""},{"$f":"問31!G70&\"\"","v":""},{"$f":"問31!G71&\"\"","v":""},{"$f":"問31!G72&\"\"","v":""},{"$f":"問31!G73&\"\"","v":""},{"$f":"問31!G74&\"\"","v":""},{"$f":"問31!G75&\"\"","v":""},{"$f":"問31!G76&\"\"","v":""},{"$f":"問31!G77&\"\"","v":""},{"$f":"問31!G78&\"\"","v":""},{"$f":"問31!G79&\"\"","v":""},{"$f":"問31!G80&\"\"","v":""},{"$f":"問32!D8&\"\"","v":""},{"$f":"問32!D9&\"\"","v":""},{"$f":"問32!D10&\"\"","v":""},{"$f":"問32!D11&\"\"","v":""},0,0,0,{"$f":"問33!D7&\"\"","v":""},{"$f":"問33!D8&\"\"","v":""},0,0,0,false,false,false,false,false,false,false,false,false,false,false,false,false,false,false,false,false,false,false,false,false,false,false,false,false,false,false,false,false,false,false,false,false,false,false,false,false,false,false,false,false,false,false,false,false,false,false,false,false,false,false,false,false,false,false,false,false,false,false,false,false,false,false,{"$f":"問36!E15&\"\"","v":""},{"$f":"問36!D28&\"\"","v":""},{"$f":"問36!B35&\"\"","v":""},false,false,false,false,false,false,false,false,false,false,false,false,false,false,false,false,false,false,false,false,false,false,false,false,false,false,false,false,false,false,false,false,false,false,false,false,false,false,false,false,false,false,false,false,false,false,false,false,null,{"$f":"問37!B36&\"\"","v":""},0,0,0,0,0,0,0,0,0,false,false,false,false,false,{"$f":"問39!B21&\"\"","v":""},0,0,0,0,0,0,0,0,0,0,0,0,0,0,0,0,0,0,0,0,0,0,0,0,0,0,0,0,0,0,{"$f":"問41!C20&\"\"","v":""},false,false,false,false,false,false,false,false,false,false,false,false,false,false,false,false,false,false,false,false,false,false,false,false,false,false,false,false,false,false,0,0,0,0,0,0,0,0,0,0,0,0,0,0,0,0,{"$f":"問43!C22&\"\"","v":""},0,0,0,0,0,0,0,0,0,{"$f":"問44!B18&\"\"","v":""},0,false,0,false,0,false,0,false,0,false,0,false,0,false,0,false,0,false,0,false,0,false,0,false,0,false,{"$f":"問45!C20&\"\"","v":""},0,false,false,false,false,false,false,false,false,false,false,false,false,false,0,{"$f":"問47!B22&\"\"","v":""},0,false,false,false,false,false,false,false,false,false,false,false,false,false,false,false,{"$f":"問49!C20&\"\"","v":""},false,false,false,false,false,false,false,false,false,false,false,false,false,{"$f":"問50!C18&\"\"","v":""},0,0,false,false,false,false,false,false,false,false,{"$f":"問51!B30&\"\"","v":""},false,false,false,false,false,{"$f":"問51!B43&\"\"","v":""},false,false,false,false,false,false,false,false,false,false,false,false,false,false,false,false,false,false,false,0,{"$f":"問52!C25&\"\"","v":""},false,false,false,false,false,false,false,false,false,false,false,false,false,false,false,false,false,false,false,false,false,false,false,false,false,false,false,false,false,false,false,false,false,false,false,false,false,false,{"$f":"問53!B27&\"\"","v":""},false,false,false,false,false,{"$f":"問54!D9&\"\"","v":""},{"$f":"問54!F9&\"\"","v":""}]
["回答者情報1",null,null,null,null,null,null,null,null,null,null,null,null,null,"回答者情報2",null,"問1",null,null,null,null,null,null,null,null,null,null,null,null,null,null,null,"問2",null,null,null,null,null,null,null,null,null,null,null,null,null,null,null,null,null,null,null,null,null,null,null,null,null,null,null,null,null,null,null,null,null,null,null,null,null,null,null,null,null,null,null,null,null,null,null,"問3",null,"問4",null,null,null,null,null,null,null,"問5","問6",null,null,null,null,null,null,null,null,null,null,null,null,null,null,null,null,null,null,null,null,null,null,null,null,null,null,null,null,null,null,null,null,null,null,null,null,null,null,null,null,null,null,null,null,null,null,"問7",null,null,null,null,null,null,null,"問8",null,null,null,null,null,null,null,null,null,null,null,null,null,null,null,null,null,null,null,null,null,null,null,null,null,null,null,null,null,null,null,null,null,null,null,null,null,null,null,null,null,null,null,null,null,null,null,null,null,null,null,null,null,null,null,null,null,null,null,null,null,null,null,null,null,null,null,null,null,null,null,null,null,null,null,null,null,null,null,null,null,null,null,null,null,null,null,null,null,null,null,null,null,null,null,null,null,null,null,null,null,null,null,null,null,null,null,null,null,null,null,null,null,null,null,null,null,null,null,null,"問9",null,null,null,null,null,null,null,null,null,null,"問10",null,null,null,null,null,null,null,null,null,null,null,null,null,null,null,null,null,null,null,null,null,null,null,null,null,null,null,null,null,null,null,null,null,null,null,null,null,null,null,null,null,null,null,null,null,null,null,null,null,null,null,"問11",null,null,null,null,null,null,null,null,null,null,null,null,null,null,null,null,null,null,null,null,null,null,null,null,null,null,null,null,null,null,null,"問12",null,null,null,null,null,null,null,null,null,null,null,null,null,"問13",null,null,null,null,null,null,null,null,null,null,null,null,null,null,null,null,null,null,null,null,null,null,null,null,null,null,null,null,null,null,null,null,null,null,null,null,null,null,null,null,null,null,null,null,null,null,null,null,null,null,null,null,null,null,null,null,null,null,null,null,null,null,null,null,null,null,null,null,null,null,null,null,null,null,null,null,null,null,null,null,null,null,null,null,null,null,null,null,null,null,null,null,null,null,null,null,null,null,null,"問14",null,null,null,null,null,null,null,null,null,null,null,null,null,null,null,null,null,null,null,null,null,null,null,null,null,null,null,null,null,null,null,null,null,null,null,null,null,null,null,null,null,null,null,null,null,"問15",null,null,null,null,null,null,null,null,null,null,null,null,null,"問16",null,null,null,null,null,null,null,null,null,null,null,null,null,null,null,null,null,null,null,null,null,null,null,null,null,null,null,null,null,null,null,null,null,null,null,null,null,null,null,null,null,null,null,null,null,null,"問17",null,null,null,null,null,null,null,null,null,null,null,null,null,null,null,null,null,null,null,null,null,null,null,"問18",null,null,null,null,null,null,null,null,null,null,null,null,null,null,null,null,null,null,null,null,null,null,"問19",null,null,null,null,null,null,null,null,null,null,null,null,null,null,null,null,null,null,null,null,null,null,null,null,null,null,null,null,null,null,null,null,null,null,null,null,null,null,null,null,null,null,null,null,null,null,null,null,null,null,null,null,null,null,null,null,null,null,null,null,null,null,null,null,null,null,null,null,null,null,null,null,null,null,null,null,null,null,null,null,null,null,null,null,null,null,null,null,null,null,null,null,null,null,null,null,null,null,null,null,null,null,null,null,null,null,null,null,null,null,null,null,null,null,null,null,null,null,null,null,null,null,"問20",null,null,null,null,null,null,null,null,null,null,null,null,null,null,null,null,null,null,null,null,null,null,null,null,null,"問21",null,null,null,null,null,null,null,null,null,null,null,null,null,null,null,null,null,null,null,null,null,null,null,null,null,null,null,null,null,null,null,null,null,null,null,null,null,null,null,null,null,null,null,null,null,null,null,null,null,null,null,null,null,null,null,null,null,null,null,null,null,null,null,null,null,null,null,null,null,null,null,null,null,null,null,null,null,null,null,null,null,null,null,null,null,null,null,null,null,null,null,null,null,null,null,null,null,null,"問22",null,null,null,null,null,null,null,null,null,null,null,null,null,null,null,null,null,null,null,null,null,null,null,null,null,null,null,null,null,null,null,null,null,null,null,null,null,null,"問23",null,null,null,null,null,null,null,null,null,null,null,null,null,null,null,null,null,null,null,null,null,null,null,"問24",null,null,null,null,null,null,null,null,null,null,null,null,null,null,null,null,"問25","問26",null,null,null,null,null,null,"問27",null,null,null,null,null,null,null,null,null,null,null,null,null,null,null,null,null,null,null,null,null,null,null,null,null,null,null,null,null,null,null,null,null,"問28","問29",null,null,null,null,null,null,null,null,null,null,null,null,"問30",null,null,"問31",null,null,null,null,null,null,null,null,null,null,null,null,null,null,null,null,null,null,null,null,null,null,null,null,null,null,null,null,null,null,"問32",null,null,null,null,null,null,"問33",null,"問34","問35",null,"問36",null,null,null,null,null,null,null,null,null,null,null,null,null,null,null,null,null,null,null,null,null,null,null,null,null,null,null,null,null,null,null,null,null,null,null,null,null,null,null,null,null,null,null,null,null,null,null,null,null,null,null,null,null,null,null,null,null,null,null,null,null,null,null,null,null,"問37",null,null,null,null,null,null,null,null,null,null,null,null,null,null,null,null,null,null,null,null,null,null,null,null,null,null,null,null,null,null,null,null,null,null,null,null,null,null,null,null,null,null,null,null,null,null,null,null,null,"問38",null,null,null,null,null,null,null,"問39",null,null,null,null,null,null,"問40",null,null,null,null,null,null,null,null,null,null,null,null,null,null,null,null,null,"問41",null,null,null,null,null,null,null,null,null,null,null,null,"問42",null,null,null,null,null,null,null,null,null,null,null,null,null,null,null,null,null,null,null,null,null,null,null,null,null,null,null,null,null,"問43",null,null,null,null,null,null,null,null,null,null,null,null,null,null,null,null,"問44",null,null,null,null,null,null,null,null,null,"問45",null,null,null,null,null,null,null,null,null,null,null,null,null,null,null,null,null,null,null,null,null,null,null,null,null,null,"問46","問47",null,null,null,null,null,null,null,null,null,null,null,null,null,null,"問48","問49",null,null,null,null,null,null,null,null,null,null,null,null,null,null,null,"問50",null,null,null,null,null,null,null,null,null,null,null,null,null,"問51",null,null,null,null,null,null,null,null,null,null,null,null,null,null,null,null,"問52",null,null,null,null,null,null,null,null,null,null,null,null,null,null,null,null,null,null,null,null,"問53",null,null,null,null,null,null,null,null,null,null,null,null,null,null,null,null,null,null,null,null,null,null,null,null,null,null,null,null,null,null,null,null,null,null,null,null,null,null,"問54"]
[1,2,3,4,5,6,7,8,9,10,11,12,13,14,1,2,1,2,3,4,5,6,7,8,9,10,11,12,13,14,15,16,1,2,3,4,5,6,7,8,9,10,11,12,13,14,15,16,17,18,19,20,21,22,23,24,25,26,27,28,29,30,31,32,33,34,35,36,37,38,39,40,41,42,43,44,45,46,47,48,1,2,1,2,3,4,5,6,7,8,1,1,2,3,4,5,6,7,8,9,10,11,12,13,14,15,16,17,18,19,20,21,22,23,24,25,26,27,28,29,30,31,32,33,34,35,36,37,38,39,40,41,42,43,44,45,46,47,1,2,3,4,5,6,7,8,1,2,3,4,5,6,7,8,9,10,11,12,13,14,15,16,17,18,19,20,21,22,23,24,25,26,27,28,29,30,31,32,33,34,35,36,37,38,39,40,41,42,43,44,45,46,47,48,49,50,51,52,53,54,55,56,57,58,59,60,61,62,63,64,65,66,67,68,69,70,71,72,73,74,75,76,77,78,79,80,81,82,83,84,85,86,87,88,89,90,91,92,93,94,95,96,97,98,99,100,101,102,103,104,105,106,107,108,109,110,111,112,113,114,115,116,117,118,119,120,121,1,2,3,4,5,6,7,8,9,10,11,1,2,3,4,5,6,7,8,9,10,11,12,13,14,15,16,17,18,19,20,21,22,23,24,25,26,27,28,29,30,31,32,33,34,35,36,37,38,39,40,41,42,43,44,45,46,47,48,49,50,51,52,1,2,3,4,5,6,7,8,9,10,11,12,13,14,15,16,17,18,19,20,21,22,23,24,25,26,27,28,29,30,31,32,1,2,3,4,5,6,7,8,9,10,11,12,13,14,1,2,3,4,5,6,7,8,9,10,11,12,13,14,15,16,17,18,19,20,21,22,23,24,25,26,27,28,29,30,31,32,33,34,35,36,37,38,39,40,41,42,43,44,45,46,47,48,49,50,51,52,53,54,55,56,57,58,59,60,61,62,63,64,65,66,67,68,69,70,71,72,73,74,75,76,77,78,79,80,81,82,83,84,85,86,87,88,89,90,91,92,93,94,95,96,97,98,99,100,1,2,3,4,5,6,7,8,9,10,11,12,13,14,15,16,17,18,19,20,21,22,23,24,25,26,27,28,29,30,31,32,33,34,35,36,37,38,39,40,41,42,43,44,45,46,1,2,3,4,5,6,7,8,9,10,11,12,13,14,1,2,3,4,5,6,7,8,9,10,11,12,13,14,15,16,17,18,19,20,21,22,23,24,25,26,27,28,29,30,31,32,33,34,35,36,37,38,39,40,41,42,43,44,45,46,47,1,2,3,4,5,6,7,8,9,10,11,12,13,14,15,16,17,18,19,20,21,22,23,24,1,2,3,4,5,6,7,8,9,10,11,12,13,14,15,16,17,18,19,20,21,22,23,1,2,3,4,5,6,7,8,9,10,11,12,13,14,15,16,17,18,19,20,21,22,23,24,25,26,27,28,29,30,31,32,33,34,35,36,37,38,39,40,41,42,43,44,45,46,47,48,49,50,51,52,53,54,55,56,57,58,59,60,61,62,63,64,65,66,67,68,69,70,71,72,73,74,75,76,77,78,79,80,81,82,83,84,85,86,87,88,89,90,91,92,93,94,95,96,97,98,99,100,101,102,103,104,105,106,107,108,109,110,111,112,113,114,115,116,117,118,119,120,121,122,123,1,2,3,4,5,6,7,8,9,10,11,12,13,14,15,16,17,18,19,20,21,22,23,24,25,26,1,2,3,4,5,6,7,8,9,10,11,12,13,14,15,16,17,18,19,20,21,22,23,24,25,26,27,28,29,30,31,32,33,34,35,36,37,38,39,40,41,42,43,44,45,46,47,48,49,50,51,52,53,54,55,56,57,58,59,60,61,62,63,64,65,66,67,68,69,70,71,72,73,74,75,76,77,78,79,80,81,82,83,84,85,86,87,88,89,90,91,92,93,94,95,96,97,98,99,1,2,3,4,5,6,7,8,9,10,11,12,13,14,15,16,17,18,19,20,21,22,23,24,25,26,27,28,29,30,31,32,33,34,35,36,37,38,39,1,2,3,4,5,6,7,8,9,10,11,12,13,14,15,16,17,18,19,20,21,22,23,24,1,2,3,4,5,6,7,8,9,10,11,12,13,14,15,16,17,1,1,2,3,4,5,6,7,1,2,3,4,5,6,7,8,9,10,11,12,13,14,15,16,17,18,19,20,21,22,23,24,25,26,27,28,29,30,31,32,33,34,1,1,2,3,4,5,6,7,8,9,10,11,12,13,1,2,3,1,2,3,4,5,6,7,8,9,10,11,12,13,14,15,16,17,18,19,20,21,22,23,24,25,26,27,28,29,30,31,1,2,3,4,5,6,7,1,2,1,1,2,1,2,3,4,5,6,7,8,9,10,11,12,13,14,15,16,17,18,19,20,21,22,23,24,25,26,27,28,29,30,31,32,33,34,35,36,37,38,39,40,41,42,43,44,45,46,47,48,49,50,51,52,53,54,55,56,57,58,59,60,61,62,63,64,65,66,1,2,3,4,5,6,7,8,9,10,11,12,13,14,15,16,17,18,19,20,21,22,23,24,25,26,27,28,29,30,31,32,33,34,35,36,37,38,39,40,41,42,43,44,45,46,47,48,49,50,1,2,3,4,5,6,7,8,1,2,3,4,5,6,7,1,2,3,4,5,6,7,8,9,10,11,12,13,14,15,16,17,18,1,2,3,4,5,6,7,8,9,10,11,12,13,1,2,3,4,5,6,7,8,9,10,11,12,13,14,15,16,17,18,19,20,21,22,23,24,25,26,27,28,29,30,1,2,3,4,5,6,7,8,9,10,11,12,13,14,15,16,17,1,2,3,4,5,6,7,8,9,10,1,2,3,4,5,6,7,8,9,10,11,12,13,14,15,16,17,18,19,20,21,22,23,24,25,26,27,1,1,2,3,4,5,6,7,8,9,10,11,12,13,14,15,1,1,2,3,4,5,6,7,8,9,10,11,12,13,14,15,16,1,2,3,4,5,6,7,8,9,10,11,12,13,14,1,2,3,4,5,6,7,8,9,10,11,12,13,14,15,16,17,1,2,3,4,5,6,7,8,9,10,11,12,13,14,15,16,17,18,19,20,21,1,2,3,4,5,6,7,8,9,10,11,12,13,14,15,16,17,18,19,20,21,22,23,24,25,26,27,28,29,30,31,32,33,34,35,36,37,38,39,1,2,3,4,5,6,7]
["テ1","オプ1","テ2","テ3","テ4","テ5","テ6","テ7","チェ1","チェ2","チェ3","テ8","テ9","テ10","オプ1","テ1","テ1","テ2","テ3","テ4","テ5","テ6","テ7","テ8","テ9","オプ1","オプ2","オプ3","オプ4","テ10","オプ5","テ11","チェ1","チェ2","チェ3","チェ4","チェ5","チェ6","チェ7","チェ8","チェ9","チェ10","チェ11","チェ12","チェ13","チェ14","チェ15","チェ16","チェ17","チェ18","チェ19","チェ20","チェ21","チェ22","チェ23","チェ24","チェ25","チェ26","チェ27","チェ28","チェ29","チェ30","チェ31","チェ32","チェ33","チェ34","チェ35","チェ36","チェ37","チェ38","チェ39","チェ40","チェ41","チェ42","チェ43","チェ44","オプ1","テ1","テ2","テ3","テ1","テ2","チェ1","チェ2","チェ3","チェ4","チェ5","チェ6","オプ1","テ1","オプ1","チェ1","チェ2","チェ3","チェ4","チェ5","チェ6","チェ7","チェ8","チェ9","チェ10","チェ11","チェ12","チェ13","チェ14","チェ15","チェ16","チェ17","チェ18","チェ19","チェ20","チェ21","チェ22","チェ23","チェ24","チェ25","チェ26","チェ27","チェ28","チェ29","チェ30","チェ31","チェ32","チェ33","チェ34","チェ35","チェ36","チェ37","チェ38","チェ39","チェ40","チェ41","チェ42","チェ43","チェ44","テ1","テ2","テ3","チェ1","チェ2","チェ3","チェ4","チェ5","チェ6","オプ1","テ1","チェ1","チェ2","チェ3","チェ4","チェ5","チェ6","チェ7","チェ8","チェ9","チェ10","チェ11","チェ12","チェ13","チェ14","チェ15","チェ16","チェ17","チェ18","チェ19","チェ20","チェ21","チェ22","チェ23","チェ24","チェ25","チェ26","チェ27","チェ28","チェ29","チェ30","チェ31","チェ32","チェ33","チェ34","チェ35","チェ36","チェ37","チェ38","チェ39","チェ40","チェ41","チェ42","チェ43","チェ44","チェ45","チェ46","チェ47","チェ48","チェ49","チェ50","チェ51","チェ52","チェ53","チェ54","チェ55","チェ56","チェ57","チェ58","チェ59","チェ60","チェ61","チェ62","チェ63","チェ64","チェ65","チェ66","チェ67","チェ68","チェ69","チェ70","チェ71","チェ72","チェ73","チェ74","チェ75","チェ76","チェ77","チェ78","チェ79","チェ80","チェ81","チェ82","チェ83","チェ84","チェ85","チェ86","チェ87","チェ88","チェ89","チェ90","チェ91","チェ92","チェ93","チェ94","チェ95","チェ96","チェ97","チェ98","チェ99","チェ100","チェ101","チェ102","チェ103","チェ104","チェ105","テ1","チェ106","チェ107","チェ108","チェ109","チェ110","チェ111","チェ112","チェ113","チェ114","チェ115","チェ116","チェ117","チェ118","チェ119","チェ120","オプ1","オプ2","オプ3","オプ4","オプ5","オプ6","オプ7","オプ8","オプ9","オプ10","テ1","チェ1","チェ2","チェ3","チェ4","チェ5","チェ6","チェ7","チェ8","チェ9","チェ10","チェ11","チェ12","チェ13","チェ14","チェ15","チェ16","チェ17","チェ18","チェ19","チェ20","チェ21","チェ22","チェ23","チェ24","チェ25","チェ26","チェ27","チェ28","テ1","チェ29","チェ30","チェ31","チェ32","チェ33","チェ34","チェ35","チェ36","チェ37","チェ38","チェ39","チェ40","チェ41","チェ42","チェ43","チェ44","チェ45","チェ46","チェ47","チェ48","チェ49","チェ50","テ2","チェ1","チェ2","チェ3","チェ4","チェ5","チェ6","チェ7","チェ8","チェ9","チェ10","チェ11","チェ12","チェ13","チェ14","チェ15","チェ16","チェ17","チェ18","チェ19","チェ20","チェ21","チェ22","チェ23","チェ24","チェ25","チェ26","チェ27","チェ28","チェ29","チェ30","テ1","テ2","チェ1","チェ2","チェ3","チェ4","チェ5","チェ6","チェ7","チェ8","チェ9","チェ10","チェ11","チェ12","チェ13","チェ14","チェ1","チェ2","チェ3","チェ4","チェ5","チェ6","チェ7","チェ8","チェ9","チェ10","チェ11","チェ12","チェ13","チェ14","チェ15","チェ16","チェ17","チェ18","チェ19","チェ20","テ1","チェ21","チェ22","チェ23","チェ24","チェ25","チェ26","チェ27","チェ28","チェ29","チェ30","チェ31","チェ32","テ2","チェ33","チェ34","チェ35","チェ36","チェ37","チェ38","チェ39","チェ40","チェ41","チェ42","テ3","チェ43","チェ44","チェ45","チェ46","チェ47","チェ48","チェ49","チェ50","チェ51","チェ52","テ4","チェ53","チェ54","チェ55","チェ56","チェ57","チェ58","チェ59","チェ60","チェ61","チェ62","テ5","チェ63","チェ64","チェ65","チェ66","チェ67","チェ68","チェ69","チェ70","チェ71","チェ72","チェ73","チェ74","チェ75","チェ76","チェ77","チェ78","チェ79","チェ80","チェ81","チェ82","チェ83","チェ84","チェ85","チェ86","チェ87","チェ88","チェ89","チェ90","チェ91","チェ92","チェ93","チェ94","テ6","テ1","テ2","テ3","テ4","テ5","テ6","テ7","テ8","テ9","テ10","テ11","テ12","テ13","テ14","テ15","テ16","テ17","テ18","テ19","テ20","テ21","テ22","テ23","テ24","テ25","テ26","テ27","テ28","テ29","テ30","テ31","テ32","テ33","テ34","テ35","テ36","テ37","テ38","テ39","テ40","テ41","テ42","テ43","テ44","テ45","テ46","テ1","テ2","テ3","テ4","テ5","テ6","テ7","テ8","テ9","テ10","テ11","テ12","テ13","テ14","テ1","テ2","オプ1","テ3","テ4","オプ2","テ5","テ6","オプ3","テ7","テ8","オプ4","テ9","テ10","オプ5","テ11","テ12","オプ6","テ13","テ14","テ15","オプ7","テ16","テ17","オプ8","テ18","テ19","オプ9","テ20","テ21","オプ10","テ22","テ23","オプ11","テ24","テ25","オプ12","テ26","テ27","オプ13","テ28","テ29","オプ14","テ30","テ31","オプ15","テ32","オプ1","オプ2","オプ3","オプ4","オプ5","オプ6","オプ7","オプ8","オプ9","オプ10","オプ11","オプ12","オプ13","オプ14","オプ15","オプ16","オプ17","オプ18","オプ19","オプ20","オプ21","オプ22","オプ23","テ1","チェ1","チェ2","チェ3","チェ4","チェ5","チェ6","チェ7","チェ8","チェ9","チェ10","チェ11","チェ12","チェ13","チェ14","チェ15","チェ16","チェ17","チェ18","チェ19","チェ20","チェ21","チェ22","テ１","テ1","テ2","オプ1","テ3","テ4","オプ2","テ5","テ6","オプ3","テ7","テ8","オプ4","テ9","テ10","オプ5","テ11","テ12","オプ6","テ13","テ14","オプ7","テ15","テ16","オプ8","テ17","テ18","オプ9","テ19","テ20","オプ10","テ21","テ22","オプ11","テ23","テ24","オプ12","テ25","テ26","オプ13","テ27","テ28","オプ14","テ29","テ30","オプ15","テ31","テ32","オプ16","テ33","テ34","オプ17","テ35","テ36","オプ18","テ37","テ38","オプ19","テ39","テ40","オプ20","テ41","テ42","オプ21","テ43","テ44","オプ22","テ45","テ46","オプ23","テ47","テ48","オプ24","テ49","テ50","オプ25","テ51","テ52","オプ26","テ53","テ54","オプ27","テ55","テ56","オプ28","テ57","テ58","オプ29","テ59","テ60","オプ30","テ61","テ62","オプ31","テ63","テ64","オプ32","テ65","テ66","オプ33","テ67","テ68","オプ34","テ69","テ70","オプ35","テ71","テ72","オプ36","テ73","テ74","オプ37","テ75","テ76","オプ38","テ77","テ78","オプ39","テ79","テ80","オプ40","テ81","テ82","オプ41","テ1","テ2","テ3","テ4","テ5","テ6","テ7","テ8","テ9","テ10","テ11","テ12","テ13","テ14","テ15","テ16","テ17","テ18","テ19","テ20","テ21","テ22","テ23","テ24","テ25","テ26","テ1","テ2","オプ1","テ3","テ4","オプ2","テ5","テ6","オプ3","テ7","テ8","オプ4","テ9","テ10","オプ5","テ11","テ12","オプ6","テ13","テ14","オプ7","テ15","テ16","オプ8","テ17","テ18","オプ9","テ19","テ20","オプ10","テ21","テ22","オプ11","テ23","テ24","オプ12","テ25","テ26","オプ13","テ27","テ28","オプ14","テ29","テ30","オプ15","テ31","テ32","オプ16","テ33","テ34","オプ17","テ35","テ36","オプ18","テ37","テ38","オプ19","テ39","テ40","オプ20","テ41","テ42","オプ21","テ43","テ44","オプ22","テ45","テ46","オプ23","テ47","テ48","オプ24","テ49","テ50","オプ25","テ51","テ52","オプ26","テ53","テ54","オプ27","テ55","テ56","オプ28","テ57","テ58","オプ29","テ59","テ60","オプ30","テ61","テ62","オプ31","テ63","テ64","オプ32","テ65","テ66","オプ33","チェ1","チェ2","チェ3","チェ4","チェ5","チェ6","チェ7","チェ8","チェ9","チェ10","チェ11","チェ12","チェ13","チェ14","チェ15","チェ16","チェ17","チェ18","チェ19","チェ20","チェ21","チェ22","チェ23","チェ24","チェ25","チェ26","チェ27","チェ28","チェ29","チェ30","チェ31","チェ32","チェ33","チェ34","チェ35","チェ36","チェ37","チェ38","テ1","テ1","テ2","テ3","テ4","テ5","テ6","テ7","テ8","テ9","テ10","テ11","テ12","テ13","テ14","テ15","テ16","テ17","テ18","テ19","テ20","テ21","テ22","テ23","テ24","チェ1","チェ2","チェ3","チェ4","チェ5","チェ6","チェ7","チェ8","チェ9","チェ10","チェ11","チェ12","チェ13","チェ14","チェ15","チェ16","テ1","オプ1","チェ1","チェ2","チェ3","チェ4","チェ5","テ1","テ2","テ1","オプ1","テ2","オプ2","テ3","オプ3","テ4","オプ4","テ5","オプ5","テ6","オプ6","テ7","オプ7","テ8","オプ8","テ9","オプ9","テ10","オプ10","テ11","オプ11","テ12","オプ12","テ13","オプ13","テ14","オプ14","テ15","オプ15","テ16","オプ16","テ17","テ18","オプ1","チェ1","チェ2","チェ3","チェ4","チェ5","チェ6","チェ7","チェ8","チェ9","チェ10","チェ11","オプ1","テ1","オプ1","テ1","テ2","テ1","テ2","テ3","テ4","テ5","テ6","テ7","テ8","テ9","テ10","テ11","テ12","テ13","テ14","テ15","テ16","テ17","テ18","テ19","テ20","テ21","テ22","テ23","テ24","テ25","テ26","テ27","テ28","テ29","テ30","テ31","テ1","テ2","テ3","テ4","オプ1","オプ2","オプ3","テ1","テ2","オプ1","オプ1","オプ2","チェ1","チェ2","チェ3","チェ4","チェ5","チェ6","チェ7","チェ8","チェ9","チェ10","チェ11","チェ12","チェ13","チェ14","チェ15","チェ16","チェ17","チェ18","チェ19","チェ20","チェ21","チェ22","チェ23","チェ24","チェ25","チェ26","チェ27","チェ28","チェ29","チェ30","チェ31","チェ32","チェ33","チェ34","チェ35","チェ36","チェ37","チェ38","チェ39","チェ40","チェ41","チェ42","チェ43","チェ44","チェ45","チェ46","チェ47","チェ48","チェ49","チェ50","チェ51","チェ52","チェ53","チェ54","チェ55","チェ56","チェ57","チェ58","チェ59","チェ60","チェ61","チェ62","チェ63","テ1","テ2","テ3","チェ1","チェ2","チェ3","チェ4","チェ5","チェ6","チェ7","チェ8","チェ9","チェ10","チェ11","チェ12","チェ13","チェ14","チェ15","チェ16","チェ17","チェ18","チェ19","チェ20","チェ21","チェ22","チェ23","チェ24","チェ25","チェ26","チェ27","チェ28","チェ29","チェ30","チェ31","チェ32","チェ33","チェ34","チェ35","チェ36","チェ37","チェ38","チェ39","チェ40","チェ41","チェ42","チェ43","チェ44","チェ45","チェ46","チェ47","チェ48","テ1","テ2","オプ1","オプ2","オプ3","オプ4","オプ5","オプ6","オプ7","オプ8","オプ1","チェ1","チェ2","チェ3","チェ4","チェ5","テ1","オプ1","オプ2","オプ3","オプ4","オプ5","オプ6","オプ7","オプ8","オプ9","オプ10","オプ11","オプ12","オプ13","オプ14","オプ15","オプ16","オプ17","オプ18","オプ1","オプ2","オプ3","オプ4","オプ5","オプ6","オプ7","オプ8","オプ9","オプ10","オプ11","オプ12","テ1","チェ1","チェ2","チェ3","チェ4","チェ5","チェ6","チェ7","チェ8","チェ9","チェ10","チェ11","チェ12","チェ13","チェ14","チェ15","チェ16","チェ17","チェ18","チェ19","チェ20","チェ21","チェ22","チェ23","チェ24","チェ25","チェ26","チェ27","チェ28","チェ29","チェ30","オプ1","オプ2","オプ3","オプ4","オプ5","オプ6","オプ7","オプ8","オプ9","オプ10","オプ11","オプ12","オプ13","オプ14","オプ15","オプ16","テ1","オプ1","オプ2","オプ3","オプ4","オプ5","オプ6","オプ7","オプ8","オプ9","テ1","オプ1","チェ1","オプ2","チェ2","オプ3","チェ3","オプ4","チェ4","オプ5","チェ5","オプ6","チェ6","オプ7","チェ7","オプ8","チェ8","オプ9","チェ9","オプ10","チェ10","オプ11","チェ11","オプ12","チェ12","オプ13","チェ13","テ1","オプ1","チェ1","チェ2","チェ3","チェ4","チェ5","チェ6","チェ7","チェ8","チェ9","チェ10","チェ11","チェ12","チェ13","オプ1","テ1","オプ1","チェ1","チェ2","チェ3","チェ4","チェ5","チェ6","チェ7","チェ8","チェ9","チェ10","チェ11","チェ12","チェ13","チェ14","チェ15","テ1","チェ1","チェ2","チェ3","チェ4","チェ5","チェ6","チェ7","チェ8","チェ9","チェ10","チェ11","チェ12","チェ13","テ1","オプ1","オプ2","チェ1","チェ2","チェ3","チェ4","チェ5","チェ6","チェ7","チェ8","テ1","チェ9","チェ10","チェ11","チェ12","チェ13","テ2","チェ1","チェ2","チェ3","チェ4","チェ5","チェ6","チェ7","チェ8","チェ9","チェ10","チェ11","チェ12","チェ13","チェ14","チェ15","チェ16","チェ17","チェ18","チェ19","オプ1","テ1","チェ1","チェ2","チェ3","チェ4","チェ5","チェ6","チェ7","チェ8","チェ9","チェ10","チェ11","チェ12","チェ13","チェ14","チェ15","チェ16","チェ17","チェ18","チェ19","チェ20","チェ21","チェ22","チェ23","チェ24","チェ25","チェ26","チェ27","チェ28","チェ29","チェ30","チェ31","チェ32","チェ33","チェ34","チェ35","チェ36","チェ37","チェ38","テ1","チェ1","チェ2","チェ3","チェ4","チェ5","テ1","テ2"]

{"sheet":"目次","index":1,"n_rows":69,"n_cols":5,"rows_kept":69,"cut":false,"hidden":false,"merged":[[3,2,4,2],[3,3,6,3],[3,4,6,4],[5,1,6,1],[5,2,6,2]]}
[]
[null,"目次"]
[]
[null,null,"シート一覧","入力","シート\n移動"]
[]
[null,"番号","タイトル"]
[]
[null,"トップページ","アンケートにご回答いただくにあたって（ご一読ください）",null,"移動"]
[null,"回答者情報１","「商号、又は名称」「協会員番号」「登録番号」「（本アンケートを担当する）ご担当部署、\nご担当者名」等をご記入ください。",{"$f":"IF(COUNTIF(設問集計!A1:N1,\"\")+COUNTIF(設問集計!A1:N1,0)+COUNTIF(設問集計!A1:N1,\"FALSE\")=14,\"なし\",\"あり\")","v":"なし"},"移動"]
[null,"回答者情報２","貴社の業態区分をお選びください。",{"$f":"IF(COUNTIF(設問集計!O1:P1,0)+COUNTIF(設問集計!O1:P1,\"\")=2,\"なし\",\"あり\")","v":"なし"},"移動"]
[null,"◇基本情報について"]
[null,1,"基本情報（「資本金」「従業員数」「平均年齢」等）",{"$f":"IF(COUNTIF(設問集計!Q1:AF1,\"\")+COUNTIF(設問集計!Q1:AF1,0)+COUNTIF(設問集計!Q1:AF1,\"FALSE\")=16,\"なし\",\"あり\")","v":"なし"},"移動"]
[null,{"$f":"B12+1","v":2},"兼業している事業の内容\n※ 問1で「兼業している」と回答された方",{"$f":"IF(COUNTIF(設問集計!AG1:CB1,\"\")+COUNTIF(設問集計!AG1:CB1,0)+COUNTIF(設問集計!AG1:CB1,\"FALSE\")=48,\"なし\",\"あり\")","v":"なし"},"移動"]
[null,{"$f":"B13+1","v":3},"貸金業と貸金業以外の事業における収益割合\n※ 問1で「兼業している」と回答された方",{"$f":"IF(COUNTIF(設問集計!CC1:CD1,\"\")=2,\"なし\",\"あり\")","v":"なし"},"移動"]
[null,4,"貸金業と貸金業以外の事業を兼業している理由\n※ 問1で「兼業している」と回答された方で、直近5年以内に新たに貸金業以外の事業を始められた方",{"$f":"IF(COUNTIF(設問集計!CE1:CL1,\"\")+COUNTIF(設問集計!CE1:CL1,0)+COUNTIF(設問集計!CE1:CL1,\"FALSE\")=8,\"なし\",\"あり\")","v":"なし"},"移動"]
[null,5,"今後貸金業以外の事業を行う予定の有無",{"$f":"IF(COUNTIF(設問集計!CM1,0)=1,\"なし\",\"あり\")","v":"なし"},"移動"]
[null,6,"今後貸金業以外の事業を行う予定の事業内容\n※ 問5で「01 貸金業以外の事業を新たに行う予定がある（検討している）」と回答された方",{"$f":"IF(COUNTIF(設問集計!CN1:EH1,\"\")+COUNTIF(設問集計!CN1:EH1,\"FALSE\")=47,\"なし\",\"あり\")","v":"なし"},"移動"]
[null,7,"今後貸金業以外の事業を始める理由\n※ 問5で「01 貸金業以外の事業を新たに行う予定がある（検討している）」と回答された方",{"$f":"IF(COUNTIF(設問集計!EI1:EP1,\"\")+COUNTIF(設問集計!EI1:EP1,0)+COUNTIF(設問集計!EI1:EP1,\"FALSE\")=8,\"なし\",\"あり\")","v":"なし"},"移動"]
[null,8,"貸金業において行っている施策・サービス",{"$f":"IF(COUNTIF(設問集計!EQ1:JG1,\"\")+COUNTIF(設問集計!EQ1:JG1,\"FALSE\")=121,\"なし\",\"あり\")","v":"なし"},"移動"]
[null,{"$f":"B19+1","v":9},"貸金業においてのＳＮＳやブログの利用状況",{"$f":"IF(COUNTIF(設問集計!JH1:JR1,\"\")+COUNTIF(設問集計!JH1:JR1,0)=11,\"なし\",\"あり\")","v":"なし"},"移動"]
[null,{"$f":"B20+1","v":10},"ＳＮＳを利用している・やめた理由\n※ 問9で「現在利用している」と回答された方\n　　問9で「過去利用していたが、やめた」と回答された方",{"$f":"IF(COUNTIF(設問集計!JS1:LR1,\"\")+COUNTIF(設問集計!JS1:LR1,\"FALSE\")=52,\"なし\",\"あり\")","v":"なし"},"移動"]
[null,{"$f":"B21+1","v":11},"顧客ニーズの変化",{"$f":"IF(COUNTIF(設問集計!LS1:MX1,\"\")+COUNTIF(設問集計!LS1:MX1,\"FALSE\")=32,\"なし\",\"あり\")","v":"なし"},"移動"]
[null,{"$f":"B22+1","v":12},"新たに行う予定（検討している）の媒介業務",{"$f":"IF(COUNTIF(設問集計!MY1:NL1,\"\")+COUNTIF(設問集計!MY1:NL1,\"FALSE\")=14,\"なし\",\"あり\")","v":"なし"},"移動"]
[null,{"$f":"B23+1","v":13},"現在実施しているマーケティング（広告媒体）",{"$f":"IF(COUNTIF(設問集計!NM1:RH1,\"\")+COUNTIF(設問集計!NM1:RH1,\"FALSE\")=100,\"なし\",\"あり\")","v":"なし"},"移動"]
[null,14,"信用保証業務を行っている「委託元社数」「保証件数」「保証残高」の状況\n※ 問2で「01 信用保証業を行っている」と回答した方",{"$f":"IF(COUNTIF(設問集計!RI1:TB1,\"\")=46,\"なし\",\"あり\")","v":"なし"},"移動"]
[null,"◇貸付の実態について"]
[null,15,"年度末時点における貸付金の種別「件数」「残高」",{"$f":"IF(COUNTIF(設問集計!TC1:TP1,\"\")=14,\"なし\",\"あり\")","v":"なし"},"移動"]
[null,{"$f":"B27+1","v":16},"年度末時点における貸付先件数と直近1年間の増減",{"$f":"IF(COUNTIF(設問集計!TQ1:VK1,\"\")+COUNTIF(設問集計!TQ1:VK1,0)=47,\"なし\",\"あり\")","v":"なし"},"移動"]
[null,17,"現在貸付している商品と今後実施する予定の商品",{"$f":"IF(COUNTIF(設問集計!VL1:WI1,\"\")+COUNTIF(設問集計!VL1:WI1,0)=24,\"なし\",\"あり\")","v":"なし"},"移動"]
[null,18,"担保※として貸付する場合において、取得している（取得する）担保の具体的な内容\n※ 問17で「現在貸付している商品」「現在は貸付していないが、今後実施する予定の商品」\n　　「現在は貸付していないが、関心のある商品」として　「Ｅ.フリーローン」などを回答された方",{"$f":"IF(COUNTIF(設問集計!WJ1:XF1,\"\")+COUNTIF(設問集計!WJ1:XF1,\"FALSE\")=23,\"なし\",\"あり\")","v":"なし"},"移動"]
[null,19,"消費者向け貸付における、属性（「年収」「職業」等）別の貸付先件数と構成割合\n※ 「消費者向け貸付」を取り扱っている貸金業者さまのみ",{"$f":"IF(COUNTIF(設問集計!XG1:ABY1,\"\")+COUNTIF(設問集計!XG1:ABY1,0)=123,\"なし\",\"あり\")","v":"なし"},"移動"]
[null,20,"事業者向け貸付における、事業規模別の資金使途別貸付残高と構成割合\n※ 「事業者向け貸付」を取り扱っている貸金業者さまのみ",{"$f":"IF(COUNTIF(設問集計!ABZ1:ACY1,\"\")=26,\"なし\",\"あり\")","v":"なし"},"移動"]
[null,21,"事業者向け貸付における、資金需要者の属性別貸付先件数と構成割合\n※ 「事業者向け貸付」を取り扱っている貸金業者さまのみ",{"$f":"IF(COUNTIF(設問集計!ACZ1:AGT1,\"\")+COUNTIF(設問集計!ACZ1:AGT1,0)=99,\"なし\",\"あり\")","v":"なし"},"移動"]
[null,22,"経営における、問題や課題",{"$f":"IF(COUNTIF(設問集計!AGU1:AIG1,\"\")+COUNTIF(設問集計!AGU1:AIG1,\"FALSE\")=39,\"なし\",\"あり\")","v":"なし"},"移動"]
[null,"◇経営等の実態について"]
[null,{"$f":"B34+1","v":23},"貸金業に係るコスト構造",{"$f":"IF(COUNTIF(設問集計!AIH1:AJE1,\"\")=24,\"なし\",\"あり\")","v":"なし"},"移動"]
[null,{"$f":"B36+1","v":24},"貸金事業に係る事業コスト構造を改善するための取組み",{"$f":"IF(COUNTIF(設問集計!AJF1:AJV1,\"\")+COUNTIF(設問集計!AJF1:AJV1,\"FALSE\")=17,\"なし\",\"あり\")","v":"なし"},"移動"]
[null,{"$f":"B37+1","v":25},"貸倒損失による影響",{"$f":"IF(COUNTIF(設問集計!AJW1,0)=1,\"なし\",\"あり\")","v":"なし"},"移動"]
[null,26,"貸倒償却の貸付先への対応",{"$f":"IF(COUNTIF(設問集計!AJX1:AKD1,\"\")+COUNTIF(設問集計!AJX1:AKD1,\"FALSE\")=7,\"なし\",\"あり\")","v":"なし"},"移動"]
[null,27,"資金調達先の構成割合と融資姿勢等の変化",{"$f":"IF(COUNTIF(設問集計!AKE1:ALL1,\"\")+COUNTIF(設問集計!AKE1:ALL1,0)=34,\"なし\",\"あり\")","v":"なし"},"移動"]
[null,28,"資金繰り状況\n※ 問27で「01.都市銀行等」～「16.その他」で資金調達されていると回答された方",{"$f":"IF(COUNTIF(設問集計!ALM1,0)=1,\"なし\",\"あり\")","v":"なし"},"移動"]
[null,29,"財務状況の変化",{"$f":"IF(COUNTIF(設問集計!ALN1:ALZ1,\"\")+COUNTIF(設問集計!ALN1:ALZ1,0)+COUNTIF(設問集計!ALN1:ALZ1,\"FALSE\")=13,\"なし\",\"あり\")","v":"なし"},"移動"]
[null,30,"調達金利の上昇リスクへの対策",{"$f":"IF(COUNTIF(設問集計!AMA1:AMC1,\"\")+COUNTIF(設問集計!AMA1:AMC1,0)=3,\"なし\",\"あり\")","v":"なし"},"移動"]
[null,31,"「貸付残高（資産）」「借入残高（負債）」「債務証券（資産）」の合計残高と内訳\n※ 貸付残高（関係会社向けを含む）が50億円以上の貸金業者さまのみご回答ください。",{"$f":"IF(COUNTIF(設問集計!AMD1:ANH1,\"\")=31,\"なし\",\"あり\")","v":"なし"},"移動"]
[null,32,"利息返還請求による損失に係る引当金",{"$f":"IF(COUNTIF(設問集計!ANI1:ANO1,\"\")+COUNTIF(設問集計!ANI1:ANO1,0)=7,\"なし\",\"あり\")","v":"なし"},"移動"]
[null,33,"利息返還の請求を受けた貸付先の割合",{"$f":"IF(COUNTIF(設問集計!ANP1:ANQ1,\"\")=2,\"なし\",\"あり\")","v":"なし"},"移動"]
[null,34,"利息返還請求による影響の変化",{"$f":"IF(COUNTIF(設問集計!ANR1,0)=1,\"なし\",\"あり\")","v":"なし"},"移動"]
[null,35,"事業環境の変化と今後の見通し",{"$f":"IF(COUNTIF(設問集計!ANS1:ANT1,0)=2,\"なし\",\"あり\")","v":"なし"},"移動"]
[null,36,"影響の大きい環境の変化と対応した取組み",{"$f":"IF(COUNTIF(設問集計!ANU1:AQH1,\"\")+COUNTIF(設問集計!ANU1:AQH1,\"FALSE\")=66,\"なし\",\"あり\")","v":"なし"},"移動"]
[null,37,"経営の重要課題への取組み",{"$f":"IF(COUNTIF(設問集計!AQI1:ASF1,\"\")+COUNTIF(設問集計!AQI1:ASF1,\"FALSE\")=50,\"なし\",\"あり\")","v":"なし"},"移動"]
[null,38,"業況の変化",{"$f":"IF(COUNTIF(設問集計!ASG1:ASN1,0)=8,\"なし\",\"あり\")","v":"なし"},"移動"]
[null,39,"貸金業務に係るコンピュータシステムの利用状況",{"$f":"IF(COUNTIF(設問集計!ASO1:ASU1,\"\")+COUNTIF(設問集計!ASO1:ASU1,0)+COUNTIF(設問集計!ASO1:ASU1,\"FALSE\")=7,\"なし\",\"あり\")","v":"なし"},"移動"]
[null,"◇貸金業者が自主的に行っているカウンセリングや金融経済教育等の取組みについて"]
[null,40,"消費者向け貸付における、カウンセリング等の実施状況\n※ 「消費者向け貸付」を取り扱っている貸金業者さまのみ",{"$f":"IF(COUNTIF(設問集計!ASV1:ATM1,0)=18,\"なし\",\"あり\")","v":"なし"},"移動"]
[null,41,"借入れ申込みなどを受けた際の資金使途の確認や借入れに関するアドバイス等の実施状況\n※ 「消費者向け貸付」を取り扱っている貸金業者さまのみ",{"$f":"IF(COUNTIF(設問集計!ATN1:ATZ1,\"\")+COUNTIF(設問集計!ATN1:ATZ1,0)=13,\"なし\",\"あり\")","v":"なし"},"移動"]
[null,42,"事業者向け貸付における、カウンセリング等の実施状況\n※ 「事業者向け貸付」を取り扱っている貸金業者さまのみ",{"$f":"IF(COUNTIF(設問集計!AUA1:AVD1,\"FALSE\")=30,\"なし\",\"あり\")","v":"なし"},"移動"]
[null,43,"利用者から受ける相談の内容および傾向",{"$f":"IF(COUNTIF(設問集計!AVE1:AVU1,\"\")+COUNTIF(設問集計!AVE1:AVU1,0)=17,\"なし\",\"あり\")","v":"なし"},"移動"]
[null,44,"資金需要者等の金融犯罪や詐欺被害防止に向けた取組み状況\n※ 「消費者向け貸付」を取り扱っている貸金業者さまのみ",{"$f":"IF(COUNTIF(設問集計!AVV1:AWE1,\"\")+COUNTIF(設問集計!AVV1:AWE1,0)=10,\"なし\",\"あり\")","v":"なし"},"移動"]
[null,45,"資金需要者の金融リテラシー向上に向けた取組み状況\n※ 「消費者向け貸付」を取り扱っている貸金業者さまのみ",{"$f":"IF(COUNTIF(設問集計!AWF1:AXF1,\"\")+COUNTIF(設問集計!AWF1:AXF1,0)+COUNTIF(設問集計!AWF1:AXF1,\"FALSE\")=27,\"なし\",\"あり\")","v":"なし"},"移動"]
[null,46,"金融リテラシー向上コンソーシアム（ＦＬＩＣ）の認知",{"$f":"IF(COUNTIF(設問集計!AXG1,0)=1,\"なし\",\"あり\")","v":"なし"},"移動"]
[null,47,"金融リテラシー向上コンソーシアム（ＦＬＩＣ）に対して期待すること",{"$f":"IF(COUNTIF(設問集計!AXH1:AXV1,\"\")+COUNTIF(設問集計!AXH1:AXV1,0)+COUNTIF(設問集計!AXH1:AXV1,\"FALSE\")=15,\"なし\",\"あり\")","v":"なし"},"移動"]
[null,"◇今後の貸金業の見通しについて"]
[null,48,"貸金業の見通し",{"$f":"IF(COUNTIF(設問集計!AXW1,0)=1,\"なし\",\"あり\")","v":"なし"},"移動"]
[null,49,"事業方針や、考えている事業のあり方\n※ 問48で「01 現状維持」「02 事業拡大」と回答された方",{"$f":"IF(COUNTIF(設問集計!AXX1:AYM1,\"\")+COUNTIF(設問集計!AXX1:AYM1,\"FALSE\")=16,\"なし\",\"あり\")","v":"なし"},"移動"]
[null,"問50","貸金業の見通しの背景にある課題や問題点\n※ 問48で「03 事業縮小」「04 事業承継（事業譲渡）」「05 転業」「06 廃業」と回答された方",{"$f":"IF(COUNTIF(設問集計!AYN1:AZA1,\"\")+COUNTIF(設問集計!AYN1:AZA1,\"FALSE\")=14,\"なし\",\"あり\")","v":"なし"},"移動"]
[null,51,"事業承継（事業譲渡）に関する状況\n※ 問48で「04 事業承継（事業譲渡）」と回答された方",{"$f":"IF(COUNTIF(設問集計!AZB1:AZR1,\"\")+COUNTIF(設問集計!AZB1:AZR1,0)+COUNTIF(設問集計!AZB1:AZR1,\"FALSE\")=17,\"なし\",\"あり\")","v":"なし"},"移動"]
[null,52,"協会に対して望むサービスや情報提供",{"$f":"IF(COUNTIF(設問集計!AZS1:BAM1,\"\")+COUNTIF(設問集計!AZS1:BAM1,0)+COUNTIF(設問集計!AZS1:BAM1,\"FALSE\")=21,\"なし\",\"あり\")","v":"なし"},"移動"]
[null,53,"協会に提供して欲しい情報や、取り上げて欲しい調査研究のテーマ\n※ 問52で「02 情報提供」を選択された方",{"$f":"IF(COUNTIF(設問集計!BAN1:BBZ1,\"\")+COUNTIF(設問集計!BAN1:BBZ1,\"FALSE\")=39,\"なし\",\"あり\")","v":"なし"},"移動"]
[null,54,"本アンケート調査の実施時期",{"$f":"IF(COUNTIF(設問集計!BCA1:BCG1,\"\")+COUNTIF(設問集計!BCA1:BCG1,\"FALSE\")=7,\"なし\",\"あり\")","v":"なし"},"移動"]

{"sheet":"トップページ","index":2,"n_rows":74,"n_cols":2,"rows_kept":74,"cut":false,"hidden":false,"merged":[[1,1,1,3],[60,1,60,3],[73,1,73,3],[42,1,42,3],[45,1,45,3]]}
[]
[null,"２０２５年度　貸金業者の経営実態等に関するアンケート"]
[]
[]
[]
[]
[]
[]
[]
[]
[]
[]
[]
[]
[]
[]
[]
[]
[]
[]
[]
[]
[]
[]
[]
[]
[]
[]
[]
[]
[]
[]
[]
[]
[]
[]
[]
[]
[]
[]
[]
[]
[null,"（ユーザーID　jfsamember　パスワード　jfsa2025）"]
[]
[]
[null,"＜ご回答が難しい場合等について＞"]
[]
[]
[]
[]
[]
[]
[]
[]
[]
[]
[]
[]
[]
[]
[null,"＜本アンケートの回答にあたって＞"]
[]
[]
[]
[]
[]
[]
[]
[]
[]
[]
[]
[]
[null,"＜本アンケートに関するお問い合せ先＞"]

{"sheet":"回答者情報１","index":3,"n_rows":17,"n_cols":10,"rows_kept":17,"cut":false,"hidden":false,"merged":[[16,1,18,1],[16,2,16,9],[17,2,17,9],[18,2,18,9],[11,2,11,3],[11,4,11,9],[12,2,12,3],[12,4,12,9],[13,1,15,1],[9,1,12,1],[9,2,9,3],[9,4,9,9],[10,2,10,3],[10,4,10,9],[7,1,8,1],[7,2,7,3],[7,7,7,8],[8,2,8,4],[8,6,8,9],[1,1,1,9],[2,1,2,9],[4,2,4,9],[5,2,5,9],[6,6,6,7],[6,8,6,9]]}
[]
[null,"以下に、「商号、又は名称」「協会員番号」「登録番号」「（本アンケートを担当する）ご担当部署、\nご担当者名」等をご記入のうえ、ご返送いただきますよう、お願い申し上げます。"]
[null,"※ 下記にご記載いただいたお問合せ先ご担当部署、ご担当者名はアンケートの調査・分析には利用いたしません。"]
[]
[null,"商号、又は名称"]
[null,"協会員/非協会員\n※ 該当するものに印をつけてください。","　　　　協会員　　　　非協会員"]
[null,"協会員番号",0,0]
[null,"登録番号",null,null,"財務（支）局長\n知事",null,"第",null,null,"号"]
[null,null,"（登録先の財務局・都道府県）",null,null,"（更新回数）","（登録番号）"]
[null,"本アンケート\nご担当部署、ご担当者名、\n電話番号、Ｅ-ｍａｉｌ","ご担当部署"]
[null,null,"ご担当者名"]
[null,null,"電話番号"]
[null,null,"Ｅ-ｍａｉｌ"]
[null,"指定信用情報機関への加入状況\n※ 該当するものに印をつけてください。",null,"株式会社日本信用情報機構（ＪＩＣＣ）"]
[null,null,null,"株式会社シー・アイ・シー（ＣＩＣ）"]
[null,null,null,"指定信用情報機関には加入していない"]
[null,"その他団体等への加盟状況\n※ 加盟している先で、\n主なものを3つまでご記入ください。"]

{"sheet":"回答者情報２","index":4,"n_rows":19,"n_cols":5,"rows_kept":19,"cut":false,"hidden":false,"merged":[[3,1,3,2],[18,1,18,4],[1,1,1,4],[2,1,2,4]]}
[]
[null,"以下の中から、貴社の最近の事業実態に沿った業態区分をお選びいただき\n当てはまるものに印を付けてください。"]
[null,"※番号「5」については、金融庁が貸金業関係資料集の中で公表している分類定義とは異なります。"]
[null,"番号",null,"業態区分","定　　義"]
[null,null,1,"消費者向無担保貸金業者","消費者向貸付残高が合計貸付残高の5割以上で、かつ、消費者向貸付残高のうち無担保（除住宅向）貸付残高が最も多いもののうち、6～12のいずれにも該当しないもの"]
[null,null,2,"消費者向有担保貸金業者","消費者向貸付残高が合計貸付残高の5割以上で、かつ、消費者向貸付残高のうち有担保（除住宅向）貸付残高が最も多いもののうち、6～12のいずれにも該当しないもの"]
[null,null,3,"消費者向住宅向貸金業者","消費者向貸付残高が合計貸付残高の5割以上で、かつ、消費者向貸付残高のうち住宅向貸付残高が最も多いもののうち、6～12のいずれにも該当しないもの"]
[null,null,4,"事業者向貸金業者 (注1)","事業者向貸付残高が合計貸付残高の5割以上で、かつ、5～12のいずれにも該当しないもの"]
[null,null,5,"手形・でんさい割引業者","事業者向貸付残高が合計貸付残高の5割以上で、かつ、事業者向貸付残高のうち手形及びでんさい割引残高が5割以上（全国事業者金融協会に加盟しているものにあっては2割5分以上）のもののうち、6～12のいずれにも該当しないもの"]
[null,null,6,"クレジットカード会社 (注2)","日本クレジットカード協会に加盟しているもの\n（7～12と重複する場合には6が優先する）"]
[null,null,7,"信販会社","包括信用購入あっせん業者又は個別信用購入あっせん業者として登録を受けているもの（8～12と重複する場合には7が優先する）"]
[null,null,8,"流通・メーカー系会社","電気機械器具関係の特例民法法人等、自動車関係の特例民法法人等に加盟しているもの（関係会社が同法人に加盟している場合も含む）または、日本百貨店協会、日本チェーンストア協会、日本商店連盟、日本専門店会連盟に加盟しているもの（関係会社が同協会等に加盟している場合も含む）（9、11と重複する場合には8が優先する）"]
[null,null,9,"建設・不動産業者","建設・不動産関係の特例民法法人等に加盟しているもの\n（11と重複する場合には9が優先する）"]
[null,null,10,"質屋","質屋の許可を受けているもの\n（8、9、11と重複する場合には10が優先する）"]
[null,null,11,"リース会社","（社）リース事業協会に加盟しているもの"]
[null,null,12,"日賦貸金業者","日賦貸金業者として登録されているもの\n（8～11と重複する場合には12が優先する）"]
[null,null,13,"非営利特例対象法人","上記にかかわらず、非営利特例対象法人として貸金業者登録されているもの"]
[null,null,14,"その他 (注3)※右に記入"]
[null,"注1）5～12のいずれにも該当しないもので、事業者向け貸付の媒介（貸付型クラウドファンディングを含む）を含む\n注2）1と重複する場合には、消費者向無担保貸付残高がクレジットカードの信用供与残高を上回る場合は1が優先する\n注3）「14.その他」を選択された方は、該当する業態をご記入ください。"]

{"sheet":"問1","index":5,"n_rows":32,"n_cols":7,"rows_kept":32,"cut":false,"hidden":false,"merged":[[34,1,34,2],[34,5,34,6],[19,1,21,1],[19,2,21,2],[22,3,22,6],[23,3,23,4],[23,5,23,6],[24,3,24,6],[14,3,14,4],[14,5,14,6],[15,3,15,4],[15,5,15,6],[16,1,18,1],[16,2,18,2],[2,1,2,2],[4,1,4,2],[4,3,4,6],[7,1,9,1],[8,2,9,2],[8,3,8,4],[9,3,9,4],[3,1,3,9]]}
[]
[null,"問1"]
[null,"【基本情報について】"]
[null,"貴社の「資本金」「従業員数」「平均年齢」「店舗数」「主となる貸付先」「貸金業以外の事業との兼業の有無」\n「貴社の成り立ち（企業グループ・系列に帰属の有無）」「本店所在地（都道府県名）」について、\n以下の該当箇所に数値または当てはまるものに印を付けてください。"]
[null,"項目名",null,"直近時点\n（2025年3月）"]
[null,"Ａ","資本金",null,null,null,"万円"]
[null,"Ｂ","従業員数 ※1",null,null,null,"人"]
[null,"Ｃ","うち貸金業に従事している\n従業員数 ※1",null,null,null,"人"]
[null,null,"貸金業務取扱主任者人数","保有者人数",null,null,"人"]
[null,null,null,"登録者人数",null,null,"人"]
[null,"Ｄ","「Ｂ．従業員」の平均年齢",null,null,null,"歳"]
[null,"Ｅ","店舗数",null,null,null,"店"]
[null,"Ｆ","うち有人店舗数",null,null,null,"店"]
[null,"Ｇ","うち無人店舗数",null,null,null,"店"]
[null,"Ｈ","主となる貸付先 ※2","消費者向け",null,"　　　事業者向け"]
[null,"Ｉ","貸金業以外の事業との兼業の有無","兼業していない",null,"　　　兼業している"]
[null,"Ｊ","貸付媒介の有無","貸付の媒介を行っている"]
[null,null,null,"貸付の媒介のみを行っている"]
[null,null,null,"貸付の媒介は行っていない"]
[null,"Ｋ","企業グループ・系列に帰属の有無\n※3","日本の企業グループ・系列に属している"]
[null,null,null,"海外の企業グループ・系列に属している"]
[null,null,null,"何れの企業グループ・系列にも属していない"]
[null,"Ｌ","属している企業グループ・系列の名称"]
[null,"Ｍ","海外への事業展開の有無","行っている",null,"行っていない"]
[null,"Ｎ","本店所在地（都道府県名）"]
[]
[null,"※1","「Ｂ.従業員数」及び「Ｃ.うち貸金業に従事している従業員数」については、正規雇用者の他に非正規雇用者"]
[null,null,"（「パート」「アルバイト」「労働者派遣事業所の派遣社員」「契約社員」「嘱託」等）も含みます。"]
[null,"※2","「H.主となる貸付先」については、合計貸付残高の５割以上を占めるものを指します。"]
[null,"※3 ","「企業グループ・系列」とは、20％以上の議決権を所有している会社、または出資、人事、資金、技術、取引等の関係を通じて、"]
[null,null,"財務、営業、事業の方針の決定に重要な影響を与えることができる関係会社や、核となる有力企業のもとに形成され、"]
[null,null,"グループ化された長期的取引関係のある企業等を指します。"]

{"sheet":"問2","index":6,"n_rows":37,"n_cols":10,"rows_kept":37,"cut":false,"hidden":false,"merged":[[2,1,2,9],[28,1,28,4],[34,2,34,7],[35,2,35,7],[36,2,36,7]]}
[]
[null,"問2"]
[null,"問1で「兼業している」と回答された方にお伺い致します。\n貴社が兼業している貸金業以外の事業について、以下の中から当てはまるもの全てと、\n現在主力となっている事業一つに印を付けてください。"]
[]
[null,null,null,"現在行っている事業","主力となっている事業",null,null,null,"現在行っている事業","主力となっている事業"]
[null,1,"信用保証業",null,null,null,23,"不動産賃貸業（貸家・貸事務所等）"]
[null,2,"金融商品取引業",null,null,null,24,"不動産特定共同事業"]
[null,3,"保険代理業（保険募集人を含む）",null,null,null,25,"不動産投資顧問業"]
[null,4,"銀行代理業",null,null,null,26,"不動産管理業（マンション管理等）"]
[null,5,"貸金業貸付媒介業",null,null,null,27,"賃貸住宅管理業"]
[null,6,"金融サービス仲介業",null,null,null,28,"倉庫業"]
[null,7,"保険仲立人",null,null,null,29,"ＥＣ事業（電子商取引業）"]
[null,8,"前払式支払手段発行業",null,null,null,30,"卸売・小売業"]
[null,9,"資金移動業",null,null,null,31,"飲食店・宿泊業"]
[null,10,"仮想通貨交換業",null,null,null,32,"製造業・化学工業"]
[null,11,"包括信用購入あっせん業",null,null,null,33,"電気・ガス・熱供給・水道業"]
[null,12,"個別信用購入あっせん業",null,null,null,34,"情報通信事業"]
[null,13,"個別方式の割賦販売業",null,null,null,35,"貨物利用運送事業"]
[null,14,"包括方式の割賦販売業",null,null,null,36,"旅客運送事業"]
[null,15,"包括方式のローン提携販売業",null,null,null,37,"旅行業"]
[null,16,"前払式割賦販売・特定取引業",null,null,null,38,"労働者派遣事業"]
[null,17,"決済代行業",null,null,null,39,"老人福祉・介護事業"]
[null,18,"リース業",null,null,null,40,"複合サービス業"]
[null,19,"古物商",null,null,null,41,"生活関連サービス・娯楽業"]
[null,20,"ファクタリング業",null,null,null,42,"経理・事務代行サービス業"]
[null,21,"建設業",null,null,null,43,"経営コンサルタント業"]
[null,22,"宅地建物取引業",null,null,null,44,"その他 ※"]
[]
[null,null,null,null,null,null,0,"貸金業"]
[]
[]
[]
[null,"＜「44.その他」の内訳＞"]
[null,"「44.その他」については、主な事業を三つまでご記入ください。"]
[null,1]
[null,2]
[null,3]

{"sheet":"問3","index":7,"n_rows":11,"n_cols":5,"rows_kept":11,"cut":false,"hidden":false,"merged":[[2,1,2,6],[4,3,4,4]]}
[]
[null,"問3"]
[null,"問1で「兼業している」と回答された方にお伺い致します。\n貸金業と問2で回答いただいた兼業における収益に対する事業の割合をご記入ください。"]
[]
[null,null,null,"収益に対する\n事業の割合"]
[null,1,"貸金業",null,"割"]
[null,2,"兼業している貸金業以外の事業　（問2で回答した事業）",null,"割"]
[null,null,"合計",{"$f":"SUM(D6:D7)","v":0},"割"]
[]
[null,"※","事業収益での回答が困難な場合は、「経常利益」ベースでお答えください。"]
[null,"※","収益に対する事業の割合は、整数または小数点第1位までご記入ください。"]

{"sheet":"問4","index":8,"n_rows":16,"n_cols":5,"rows_kept":16,"cut":false,"hidden":false,"merged":[[2,1,2,4],[5,1,6,1],[5,2,6,2],[7,2,8,2],[9,2,10,2],[7,1,8,1],[9,1,10,1],[15,1,16,1],[11,1,12,1],[11,2,12,2],[13,2,14,2],[13,1,14,1]]}
[]
[null,"問4"]
[null,"問1で「兼業している」と回答された方で、直近5年以内に新たに貸金業以外の事業を始められた方にお伺い致します。\n貴社が新たに貸金業以外の事業（貸金業との兼業）を始めた理由について、以下の中から当てはまるもの全てと、最も大きな理由の一つに印を付けてください。"]
[]
[null,null,null,"兼業を始めた\n理由","最も大きな\n理由"]
[null,1,"事業間の相乗効果があると考えたから"]
[]
[null,2,"貸金業だけでは経営が厳しくなったから"]
[]
[null,3,"貸金業以外の事業に魅力を感じたから"]
[]
[null,4,"事業の多角化によってリスクを分散するため"]
[]
[null,5,"グループ内の事業再編などやむを得ない事情があったから"]
[]
[null,6,"その他 ※"]

{"sheet":"問5","index":9,"n_rows":8,"n_cols":4,"rows_kept":8,"cut":false,"hidden":false,"merged":[[2,1,2,8]]}
[]
[null,"問5"]
[null,"貴社において、今後貸金業以外の事業を新たに行う予定（現在検討している）の有無について、\n以下の中から当てはまるもの一つに印を付けてください。"]
[]
[null,null,null,"新たに事業を行う\n予定（検討）の有無"]
[null,1,"貸金業以外の事業を新たに行う予定がある（検討している）"]
[null,2,"貸金業以外の事業を新たに行う予定はないが、収益源の多様化について関心を持っている"]
[null,3,"貸金業以外の事業を新たに行う予定はないし、収益源の多様化について\n関心も持っていない"]

{"sheet":"問6","index":10,"n_rows":35,"n_cols":8,"rows_kept":35,"cut":false,"hidden":false,"merged":[[2,1,2,7],[32,2,32,7],[33,2,33,7],[34,2,34,7]]}
[]
[null,"問6"]
[null,"問5で「01貸金業以外の事業を新たに行う予定がある（検討している）」と回答された方にお伺い致します。\n貴社が新たに行う予定の事業（検討している事業）について、当てはまるもの全てに印を付けてください。"]
[null,null,null,"新たに行う予定の事業（検討している事業）",null,null,null,"新たに行う予定の事業\n（検討している事業）"]
[null,1,"信用保証業",null,null,23,"不動産賃貸業（貸家・貸事務所等）"]
[null,2,"金融商品取引業",null,null,24,"不動産特定共同事業"]
[null,3,"保険代理業（保険募集人を含む）",null,null,25,"不動産投資顧問業"]
[null,4,"銀行代理業",null,null,26,"不動産管理業（マンション管理等）"]
[null,5,"貸金業貸付媒介業",null,null,27,"賃貸住宅管理業"]
[null,6,"金融サービス仲介業",null,null,28,"倉庫業"]
[null,7,"保険仲立人",null,null,29,"EC事業（電子商取引業）"]
[null,8,"前払式支払手段発行業",null,null,30,"卸売・小売業"]
[null,9,"資金移動業",null,null,31,"飲食店・宿泊業"]
[null,10,"仮想通貨交換業",null,null,32,"製造業・化学工業"]
[null,11,"包括信用購入あっせん業",null,null,33,"電気・ガス・熱供給・水道業"]
[null,12,"個別信用購入あっせん業",null,null,34,"情報通信事業"]
[null,13,"個別方式の割賦販売業",null,null,35,"貨物利用運送事業"]
[null,14,"包括方式の割賦販売業",null,null,36,"旅客運送事業"]
[null,15,"包括方式のローン提携販売業",null,null,37,"旅行業"]
[null,16,"前払式割賦販売・特定取引業",null,null,38,"労働者派遣事業"]
[null,17,"決済代行業",null,null,39,"老人福祉・介護事業"]
[null,18,"リース業",null,null,40,"複合サービス業"]
[null,19,"古物商",null,null,41,"生活関連サービス・娯楽業"]
[null,20,"ファクタリング業",null,null,42,"経理・事務代行サービス業"]
[null,21,"建設業",null,null,43,"経営コンサルタント業"]
[null,22,"宅地建物取引業",null,null,44,"その他 ※"]
[]
[null,"※","「44.その他」を選択された方は、「44.その他」の内訳に行う予定の（検討している）事業をご記入ください。"]
[]
[null,"＜「44.その他」の内訳＞"]
[null,"「44.その他」については、主な事業を三つまでご記入ください。"]
[]
[null,1]
[null,2]
[null,3]

{"sheet":"問7","index":11,"n_rows":14,"n_cols":5,"rows_kept":14,"cut":false,"hidden":false,"merged":[[26,1,26,2],[26,8,26,9],[2,1,2,7],[14,1,24,7]]}
[]
[null,"問7"]
[null,"問5で「01貸金業以外の事業を新たに行う予定がある（検討している）」と回答された方にお伺い致します。\n貴社が新たに貸金業以外の事業（貸金業との兼業）を始める理由について、\n以下の中から当てはまるもの全てと、最も大きな理由の一つに印を付けてください。"]
[]
[null,null,null,"兼業を始める理由","最も大きな\n理由"]
[null,1,"事業間の相乗効果があると考えたから"]
[null,2,"貸金業だけでは経営が厳しくなったから"]
[null,3,"貸金業以外の事業に魅力を感じたから"]
[null,4,"事業の多角化によってリスクを分散するため"]
[null,5,"グループ内の事業再編などやむを得ない事情があるから"]
[null,6,"その他 "]
[]
[]
[null,"＜「その他」の具体的な内容についてご記入ください。＞"]

{"sheet":"問8","index":12,"n_rows":78,"n_cols":7,"rows_kept":78,"cut":false,"hidden":false,"merged":[[54,1,58,6],[61,1,61,2],[2,1,2,6],[4,1,4,2],[13,1,13,2],[24,1,24,2],[35,1,35,2],[45,1,45,2]]}
[]
[null,"問8"]
[null,"貴社において、現在実施している施策・サービスや今後実施しない施策・サービス、\n今後実施したいと考えている施策・サービスについて、以下の中から、当てはまるもの全てに印を付けてください。"]
[]
[null,"＜①申込み受け付け＞",null,null,"現在実施している\n施策・サービス","現在は実施しているが、\n今後実施しない施策・サービス","現在は実施していないが、\n今後実施する（実施したい）施策・サービス"]
[null,1,"店頭での申込み受け付け"]
[null,2,"自動契約機での申込み受け付け"]
[null,3,"郵送での申込み受け付け"]
[null,4,"電話での申込み受け付け"]
[null,5,"インターネット（パソコン）での申込み受け付け"]
[null,6,"インターネット（携帯・スマートフォン）での申込み受け付け"]
[]
[]
[null,"＜②貸付・返済＞",null,null,"現在実施している\n施策・サービス","現在は実施しているが、\n今後実施しない施策・サービス","現在は実施していないが、\n今後実施する（実施したい）施策・サービス"]
[null,7,"店頭・ＡＴＭでの貸付・返済"]
[null,8,"銀行振込による貸付・返済"]
[null,9,"提携先のＡＴＭ等による貸付・返済"]
[null,10,"銀行等の預金口座振替による返済"]
[null,11,"コンビニ収納代行による返済"]
[null,12,"スマートフォン等の電子機器による貸付・返済"]
[null,13,"郵送での返済"]
[null,14,"手形小切手による当座決済"]
[]
[]
[null,"＜③返済方式＞",null,null,"現在実施している\n施策・サービス","現在は実施しているが、\n今後実施しない施策・サービス","現在は実施していないが、\n今後実施する（実施したい）施策・サービス"]
[null,15,"定率リボルビング方式"]
[null,16,"借入後残高スライド元利定額返済方式"]
[null,17,"残高スライドリボルビング方式"]
[null,18,"定額リボルビング方式"]
[null,19,"元利均等返済方式"]
[null,20,"元金一括返済方式"]
[null,21,"元金均等返済方式"]
[null,22,"バルーン返済方式"]
[]
[]
[null,"＜④顧客との連絡方法・手段＞",null,null,"現在実施している\n施策・サービス","現在は実施しているが、\n今後実施しない施策・サービス","現在は実施していないが、\n今後実施する（実施したい）\n施策・サービス"]
[null,23,"店頭窓口"]
[null,24,"電話（オペレーターによる応答サービス）"]
[null,25,"電話（機械による自動応答サービス）"]
[null,26,"インターネット（会員専用ホームページ等）"]
[null,27,"電子メール（ショートメッセージサービスを含む）"]
[null,28,"ソーシャル・ネットワーキング・サービス（LINE等）"]
[null,29,"チャットによる応答サービス"]
[]
[]
[null,"＜⑤エンベデッド・ファイナンス（組込み型金融）＞",null,null,"現在実施している\n施策・サービス","現在は実施しているが、\n今後実施しない施策・サービス","現在は実施していないが、\n今後実施する（実施したい）\n施策・サービス"]
[null,30,"組込み型銀行サービス"]
[null,31,"組込み型カード発行（決済カード等も含む）"]
[null,32,"組込み型融資サービス"]
[null,33,"組込み型保険サービス"]
[null,34,"組込み型暗号資産取引サービス"]
[null,35,"その他"]
[]
[null,"＜その他（30～34以外で行っているもの）：回答欄＞"]
[]
[]
[]
[]
[]
[]
[]
[null,"＜⑥その他＞",null,null,"現在実施している\n施策・サービス","現在は実施しているが、\n今後実施しない施策・サービス","現在は実施していないが、\n今後実施する（実施したい）\n施策・サービス"]
[null,36,"法人向けクレジットカードの発行"]
[null,37,"企業間後払い決済サービス"]
[null,38,"他の事業者との提携やアライアンスの推進"]
[null,39,"貸付型クラウドファンディング（ファンド組成を含む）"]
[null,40,"不動産特定共同事業におけるクラウドファンディング"]
[]
[]
[]
[]
[]
[null,null,"＜問８の回答例＞"]
[null,null,null,null,"現在実施している\n施策・サービス","現在は実施しているが、\n今後実施しない施策・サービス","現在は実施していないが、\n今後実施する（実施したい）\n施策・サービス"]
[null,null,"現在実施しており、今後も実施したいと思っている場合","→"]
[null,null,"現在は実施しているが、今後は実施しない場合","→"]
[null,null,"現在は実施していないが、今後は実施したいと思っている場合","→"]
[null,null,"現在は実施していないし、今後も実施したいと思っていない場合","→"]

{"sheet":"問9","index":13,"n_rows":17,"n_cols":8,"rows_kept":17,"cut":false,"hidden":false,"merged":[[2,1,2,9],[5,2,10,2],[15,2,15,3],[11,2,13,2],[14,1,15,1]]}
[]
[null,"問9"]
[null,"貴社の「マーケティング活動」や「顧客とのコミュニケーションの促進」、「認知度やイメージの向上」等におけるＳＮＳやブログの利用状況について、以下の中からそれぞれ当てはまるものに一つずつ印を付けてください。"]
[]
[null,null,null,null,"現在利用している","現在利用していないが、\n関心はある","現在利用していないし、\n関心もない","過去利用していたが、\nやめた"]
[null,1,"ＳＮＳ","X"]
[null,2,null,"Instagram"]
[null,3,null,"YouTube"]
[null,4,null,"LINE"]
[null,5,null,"Facebook"]
[null,6,null,"TikTok"]
[null,7,"ブログ","Amebaブログ"]
[null,8,null,"ライブドアブログ"]
[null,9,null,"楽天ブログ"]
[null,10,"その他 ※"]
[]
[null,"※　「その他」を選択された方は、SNSやブログの名称をご記入ください。"]

{"sheet":"問10","index":14,"n_rows":38,"n_cols":5,"rows_kept":38,"cut":false,"hidden":false,"merged":[[35,1,36,1],[2,1,2,4],[3,1,3,4],[18,1,19,1],[23,1,23,4]]}
[]
[null,"問10-1"]
[null,"問9で「現在利用している」と回答された方にお伺い致します。ＳＮＳやブログを利用している理由について、以下の中から、当てはまる理由全てと特に当てはまる理由最大三つに印を付けてください。"]
[]
[null,null,null,"当てはまる理由","特に当てはまる理由（最大三つ）"]
[null,1,"自社・ブランドの認知拡大"]
[null,2,"自社・ブランドのイメージアップ"]
[null,3,"商品・サービスの宣伝"]
[null,4,"キャンペーン等の告知"]
[null,5,"最新情報やニュースの発信"]
[null,6,"顧客とのコミュニケーション"]
[null,7,"新規顧客の獲得"]
[null,8,"詐欺被害の防止・多重債務に陥らないための啓発等"]
[null,9,"カスタマーサポート・サービス対応（オムニチャネル化※1）"]
[null,10,"自社サイトやブログサイトへの誘導"]
[null,11,"採用活動（求人・会社紹介など）"]
[null,12,"業界関係者との関係構築"]
[null,13,"トレンドの把握・情報収集"]
[null,14,"その他 ※2"]
[]
[]
[]
[null,"問10-2"]
[null,"問9で「過去利用していたが、やめた」と回答された方にお伺い致します。\nＳＮＳやブログをやめた理由について、以下の中から、当てはまる理由全てと特に当てはまる理由最大三つに印を付けてください。"]
[null,null,null,"当てはまる理由","特に当てはまる理由（最大三つ）"]
[null,1,"運用ノウハウの不足（運用方法やアカウントの開設方法がわからない）"]
[null,2,"運用リソースの不足（時間や労力、人手が不足している）"]
[null,3,"運用コスト（広告費、外注費、人件費）が見合わない"]
[null,4,"炎上リスクとブランドイメージの毀損"]
[null,5,"セキュリティ・情報漏洩の懸念"]
[null,6,"人的負担が大きい（ネガティブなコメントや問い合わせ対応など）"]
[null,7,"目的と成果の乖離（SNSの成果が、自社のビジネスやサービスに直結しないなど）"]
[null,8,"運用したが効果がなかった（ユーザーにフォローされないなど）"]
[null,9,"情報発信の頻度を維持できない／ネタがない"]
[null,10,"ＳＮＳの必要性を感じない（既存の販路や集客手段で十分足りている）"]
[null,11,"その他 ※"]
[]
[null,"※　「その他」を選択された方は、SNSやブログをやめた理由をご記入ください。"]

{"sheet":"問11","index":15,"n_rows":27,"n_cols":5,"rows_kept":27,"cut":false,"hidden":false,"merged":[[28,1,32,4],[21,1,22,1],[26,1,26,4],[27,1,27,5],[2,1,2,4],[3,1,3,5]]}
[]
[null,"問11-1"]
[null,"貴社において感じている（意識している）顧客ニーズの変化について、以下の中からそれぞれ当てはまるもの全てに印を付けてください。"]
[null,"※個人向け貸付を行っている場合は「Ａ」列に印を付け、事業者向け貸付を行っている場合は「Ｂ」列に印を付けてください。\n（両方の貸付けを行っている場合は、「Ａ」列と「Ｂ」列それぞれに印を付けてください。）"]
[]
[null,null,null,"Ａ","Ｂ"]
[null,null,null,"個人の顧客におけるニーズの変化","法人（個人事業主を含む）顧客における\nニーズの変化"]
[null,1,"新たな借入れに積極的になっている"]
[null,2,"新たな借入れに消極的になっている"]
[null,3,"非対面でのサービスが選好される傾向が強まっている"]
[null,4,"スマートフォンを使ったサービスが選好される傾向が強まっている"]
[null,5,"時間や場所にとらわれない傾向が強まっている"]
[null,6,"プライバシーの配慮など秘匿性を気にする傾向が強まっている"]
[null,7,"借入れする際の個人情報などの安全性を気にする傾向が強まっている"]
[null,8,"申込みから借入れまでの時間を気にする傾向が強まっている"]
[null,9,"銀行などの金融機関と比較されるケースが増えている"]
[null,10,"ＳＮＳや動画配信などの情報を重視する傾向が強まっている"]
[null,11,"借入れする際の金利を気にする傾向が強まっている"]
[null,12,"借入れできる金額を気にする傾向が強まっている"]
[null,13,"借入れする際の担保や保証人の必要性を気にする傾向が強まっている"]
[null,14,"完済までの期間や毎月の返済額を気にする傾向が強まっている"]
[null,15,"その他 ※"]
[]
[null,"※","「その他」を選択された方は、その他感じている（意識している）顧客ニーズの変化をご記入ください。"]
[]
[null,"問11-2"]
[null,"貴社において、顧客ニーズの変化に対応するために取り組まれているものがありましたら、\n以下の枠の中に具体的な内容をご記入ください。"]

{"sheet":"問12","index":16,"n_rows":15,"n_cols":6,"rows_kept":15,"cut":false,"hidden":false,"merged":[[13,2,13,3],[14,2,14,3],[11,2,11,3],[12,2,12,3],[2,1,2,7],[4,4,7,4],[4,5,7,5],[4,6,7,6],[4,7,7,7],[8,2,10,2],[8,1,10,1]]}
[]
[null,"問12"]
[null,"貴社において、行っている又は新たに行う予定（検討している）の媒介業務について、\n以下の中からそれぞれ当てはまるもの全てに印を付けてください。"]
[]
[null,null,null,null,"現在\n行っている","新たに行う予定\n（検討している）"]
[]
[]
[]
[null,1,"貸金業貸付\n媒介業務","消費者向け貸付の媒介（住宅ローンの媒介を含む）"]
[null,null,null,"事業者向け貸付の媒介"]
[null,null,null,"ソーシャルレンディング等（貸付型クラウドファンディング）"]
[null,2,"預金等媒介業務"]
[null,3,"保険媒介業務"]
[null,4,"有価証券等売買の媒介業務"]
[null,5,"媒介業務は行っていない"]

{"sheet":"問13","index":17,"n_rows":71,"n_cols":5,"rows_kept":71,"cut":false,"hidden":false,"merged":[[50,1,51,1],[54,1,54,2],[70,1,71,1],[33,1,34,1],[36,1,37,2],[36,3,37,3],[36,4,37,4],[42,1,43,1],[45,1,45,2],[2,1,2,7],[5,1,5,2],[15,1,16,1],[19,1,19,2],[25,1,26,1],[28,1,28,2]]}
[]
[null,"問13"]
[null,"貴社において、現在実施しているマーケティング（広告媒体）について、以下の中から当てはまるもの全てに印を付けてください。また、今後実施するマーケティング（広告媒体）について、以下の中から当てはまるもの全てに印を付けてください。"]
[null,"※ 「その他」を選択された方は、媒体の名称等をご記入ください。"]
[]
[null,"＜インターネット広告＞",null,"現在実施している媒体","今後実施する媒体"]
[null,1,"リスティング広告 ※1"]
[null,2,"アフィリエイト広告"]
[null,3,"ソーシャルメディア広告（Facebook、X、LINE等）"]
[null,4,"バナー広告（純広告）"]
[null,5,"動画広告"]
[null,6,"メール広告"]
[null,7,"ゲーム広告"]
[null,8,"スマートフォンアプリ広告"]
[null,9,"自社のホームページによる広告"]
[null,10,"その他 ※2"]
[]
[]
[]
[null,"＜新聞広告＞",null,"現在実施している\n媒体","今後実施する媒体"]
[null,11,"全国紙"]
[null,12,"ブロック紙"]
[null,13,"地方紙"]
[null,14,"機関紙"]
[null,15,"業界紙"]
[null,16,"その他 ※3"]
[]
[]
[null,"＜雑誌広告＞",null,"現在実施している\n媒体","今後実施する媒体"]
[null,17,"総合一般誌（総合月刊誌を含む）"]
[null,18,"男性向一般誌（男性向総合月刊誌を含む）"]
[null,19,"女性向一般誌（女性向総合月刊誌を含む）"]
[null,20,"情報・専門誌"]
[null,21,"その他 ※4"]
[]
[]
[null,"＜交通広告＞",null,"現在実施している\n媒体","今後実施する媒体"]
[]
[null,22,"電車広告"]
[null,23,"バス広告"]
[null,24,"タクシー広告"]
[null,25,"駅広告（駅構内の看板、ポスター、電子ディスプレイ等）"]
[null,26,"その他 ※5"]
[]
[]
[null,"＜屋外広告（看板広告）＞",null,"現在実施している\n媒体","今後実施する媒体"]
[null,27,"店頭看板・路上看板"]
[null,28,"屋上看板"]
[null,29,"建植看板（ポールサイン） ※6"]
[null,30,"野立看板"]
[null,31,"その他 ※7"]
[]
[]
[]
[null,"＜その他広告＞",null,"現在実施している\n媒体","今後実施する媒体"]
[null,32,"テレビコマーシャル"]
[null,33,"ラジオコマーシャル"]
[null,34,"ＤＭ（ダイレクトメール）"]
[null,35,"折込広告（チラシ）"]
[null,36,"電話帳広告（タウンページ広告・ハローページ広告）"]
[null,37,"ポスティング"]
[null,38,"街頭配布（ポケットティッシュ、チラシ等）"]
[null,39,"店頭広告（ＰＯＰ、チラシ等）"]
[null,40,"イベント・キャンペーン"]
[null,41,"フリーペーパー"]
[null,42,"利用明細書等への広告"]
[null,43,"ＡＴＭ画面広告"]
[null,44,"既存顧客からの紹介"]
[null,45,"提携先等からの紹介"]
[null,46,"関係会社からの紹介"]
[null,47,"その他 ※8"]

{"sheet":"問14","index":18,"n_rows":31,"n_cols":9,"rows_kept":31,"cut":false,"hidden":false,"merged":[[28,1,28,2],[29,1,29,2],[30,1,30,2],[16,8,17,8],[22,1,22,3],[23,1,23,7],[25,1,27,2],[25,3,26,8],[27,3,27,4],[27,5,27,6],[27,7,27,8],[16,1,17,1],[16,3,17,3],[16,4,17,4],[16,5,17,5],[16,6,17,6],[16,7,17,7],[2,1,2,10],[3,1,3,11],[4,1,5,2],[4,3,4,8],[5,3,5,4],[5,5,5,6],[5,7,5,8]]}
[]
[null,"問14"]
[null,"問2で「01信用保証業」を現在行っていると回答した方にお伺い致します。\n直近時点（2025年3月末時点）における信用保証業務を行っている「委託元社数」、「保証件数」、\n「保証残高」をご記入ください。"]
[]
[null,null,null,"直近時点\n（2025年3月末時点）"]
[null,null,null,"委託元社数",null,"保証件数",null,"保証残高"]
[null,"Ａ.","都市銀行等 ※1",null,"社",null,"件",null,"百万円"]
[null,"Ｂ.","地方銀行",null,"社",null,"件",null,"百万円"]
[null,"Ｃ.","インターネット専業銀行",null,"社",null,"件",null,"百万円"]
[null,"Ｄ.","ゆうちょ銀行",null,"社",null,"件",null,"百万円"]
[null,"Ｅ.","信用金庫",null,"社",null,"件",null,"百万円"]
[null,"Ｆ.","信用組合",null,"社",null,"件",null,"百万円"]
[null,"Ｇ.","労働金庫",null,"社",null,"件",null,"百万円"]
[null,"Ｈ.","農業共同組合・信連",null,"社",null,"件",null,"百万円"]
[null,"Ｉ.","農林中央金庫",null,"社",null,"件",null,"百万円"]
[null,"Ｊ.","貸金業者",null,"社",null,"件",null,"百万円"]
[null,"Ｋ.","その他 ※2",null,"社",null,"件",null,"百万円"]
[]
[]
[null,"※1 「都市銀行等」には、信託銀行及び新生銀行、あおぞら銀行を含みます。"]
[null,"※2 「その他」を選択された方は、委託元の業種をご記入ください。"]
[]
[null,"＜「Ｋ．その他」の内訳＞"]
[null,"「Ｋ．その他」が多岐にわたる場合は、主な委託元を三つご記入ください。"]
[]
[null,null,null,"直近時点\n（2025年3月末時点）"]
[]
[null,null,null,"委託元社数",null,"保証件数",null,"保証残高"]
[null,null,null,null,"社",null,"件",null,"百万円"]
[null,null,null,null,"社",null,"件",null,"百万円"]
[null,null,null,null,"社",null,"件",null,"百万円"]

{"sheet":"問15","index":19,"n_rows":28,"n_cols":17,"rows_kept":28,"cut":false,"hidden":false,"merged":[[22,13,25,14],[22,15,25,16],[26,1,27,1],[7,15,10,16],[11,1,12,1],[20,3,20,16],[21,3,21,8],[21,9,21,16],[22,3,25,4],[22,5,25,6],[22,7,25,8],[22,9,25,10],[22,11,25,12],[2,1,2,3],[5,3,5,16],[6,3,6,8],[6,9,6,16],[7,3,10,4],[7,5,10,6],[7,7,10,8],[7,9,10,10],[7,11,10,12],[7,13,10,14]]}
[]
[null,"問15"]
[null,"【貸付の実態について】"]
[null,"2025年3月末時点における貸付金の種別残高について、それぞれ数値（件数、残高）をご記入ください。"]
[]
[null,null,null,"貸付金の種別残高"]
[null,null,null,"消費者向け貸付",null,null,null,null,null,"事業者向け貸付"]
[null,null,null,"無担保貸付",null,"有担保貸付",null,"住宅向貸付",null,"無担保貸付\n（関係会社向けを除く）",null,"有担保貸付\n（関係会社向けを除く）",null,"手形割引\n（関係会社向けを除く）",null,"関係会社向け"]
[]
[]
[]
[null,"2025年\n3月末","件数",null,"件",null,"件",null,"件",null,"件",null,"件",null,"件",null,"件"]
[null,null,"残高",null,"百万円",null,"百万円",null,"百万円",null,"百万円",null,"百万円",null,"百万円",null,"百万円"]
[]
[null,"※ 「件数」と「残高」については、業務報告書に記載された数値をご記入ください。"]
[]
[]
[null,"＜問15の回答例＞"]
[null,"※ 回答例は「消費者向け無担保貸付」と「関係会社向け貸付」のみある場合としています。"]
[]
[null,null,null,"貸付金の種別残高"]
[null,null,null,"消費者向け貸付",null,null,null,null,null,"事業者向け貸付"]
[null,null,null,"無担保貸付",null,"有担保貸付",null,"住宅向貸付",null,"無担保貸付\n（関係会社向けを除く）",null,"有担保貸付\n（関係会社向けを除く）",null,"手形割引\n（関係会社向けを除く）",null,"関係会社向け"]
[]
[]
[]
[null,"2025年\n3月末","件数",5000,"件",null,"件",null,"件",null,"件",null,"件",null,"件",10,"件"]
[null,null,"残高",100000,"百万円",null,"百万円",null,"百万円",null,"百万円",null,"百万円",null,"百万円",10000,"百万円"]

{"sheet":"問16","index":20,"n_rows":29,"n_cols":12,"rows_kept":29,"cut":false,"hidden":false,"merged":[[11,8,12,8],[15,2,24,2],[23,1,24,1],[23,4,24,4],[23,5,24,5],[23,6,24,6],[23,7,24,7],[23,8,24,8],[6,2,12,2],[11,1,12,1],[11,4,12,4],[11,5,12,5],[11,6,12,6],[11,7,12,7],[2,1,2,11],[4,1,5,3],[4,4,4,7],[4,9,4,11],[5,4,5,5],[5,6,5,7]]}
[]
[null,"問16"]
[null,"2025年3月末時点における貸付先について、貸付先件数と構成割合をご記入ください。\n(貸付先件数の記入が難しい場合は、おおよその構成割合[整数または小数点以下第1位まで]のみご記入ください。)\nまた、貸付件数の直近1年間の増減について、以下の中からそれぞれ当てはまるものに一つずつ印を付けてください。"]
[]
[null,null,null,null,"直近時点\n（2025年3月末時点）",null,null,null,null,"貸付件数の\n直近1年間の増減"]
[null,null,null,null,"貸付先件数",null,"貸付先に\n対する割合",null,null,"減少","変化なし","増加"]
[null,"Ａ．","消費者向け","一般の個人消費者",null,"件",null,"割","→"]
[null,"Ｂ．",null,"特定企業の従業員等",null,"件",null,"割","→"]
[null,"Ｃ．",null,"共済組合の組合員や各種共済会の会員等",null,"件",null,"割","→"]
[null,"Ｄ．",null,"兼業している事業の顧客（個人消費者）",null,"件",null,"割","→"]
[null,"Ｅ．",null,"親会社や関係会社が行っている事業の顧客（個人消費者）",null,"件",null,"割","→"]
[null,"Ｆ．",null,"その他 ※2",null,"件",null,"割","→"]
[]
[null,null,null,"合計",null,null,{"$f":"SUM(G7:G13)","v":0},"割"]
[]
[null,"Ｇ．","事業者向け","一般の事業者（法人）",null,"件",null,"割","→"]
[null,"Ｈ．",null,"一般の事業者（個人事業主）",null,"件",null,"割","→"]
[null,"Ｉ．",null,"特定業種の事業者 ※1",null,"件",null,"割","→"]
[null,"Ｊ．",null,"兼業している貸金業以外の事業における商品・サービスを販売や提供する顧客",null,"件",null,"割","→"]
[null,"Ｋ．",null,"兼業している貸金業以外の事業における商品・サービスの仕入先や委託先",null,"件",null,"割","→"]
[null,"Ｌ．",null,"親会社や関係会社が行っている事業の顧客",null,"件",null,"割","→"]
[null,"Ｍ．",null,"親会社や関係会社との取引がある請負事業者や販売店等",null,"件",null,"割","→"]
[null,"Ｎ．",null,"グループ会社・系列会社",null,"件",null,"割","→"]
[null,"Ｏ．",null,"その他 ※2",null,"件",null,"割","→"]
[]
[null,null,null,"合計",null,null,{"$f":"SUM(G16:G25)","v":0},"割"]
[]
[null,"※1 「特定業種の事業者」とは、「不動産業者」、「小規模病院」、「介護事業者」等の特定の業種にターゲットを絞って貸付けしている場合を指します。"]
[null,"※2 「その他」を選択された方は、貸付先の種類をご記入ください。"]

{"sheet":"問17","index":21,"n_rows":28,"n_cols":8,"rows_kept":28,"cut":false,"hidden":false,"merged":[[27,1,28,1],[28,2,28,4],[29,1,29,6],[18,2,25,2],[18,3,19,3],[20,3,23,3],[24,3,24,4],[25,3,25,4],[26,3,26,4],[2,1,2,8],[4,1,4,4],[5,2,17,2],[5,3,8,3],[13,3,17,3],[9,3,12,3]]}
[]
[null,"問17"]
[null,"貴社において、現在貸付している商品と今後実施する予定の商品について、\n以下の中から当てはまるもの全てに印を付けてください。"]
[]
[null,null,null,null,null,"現在貸付している商品","現在は貸付していないが、\n今後実施する予定の商品","現在は貸付していないが、関心のある商品"]
[null,"Ａ.","消費者向け","無担保\n貸付","フリーローン（極度方式による貸付）"]
[null,"Ｂ.",null,null,"フリーローン（証書貸付）"]
[null,"Ｃ.",null,null,"目的ローン（教育ローン、自動車ローン等）"]
[null,"Ｄ.",null,null,"専業主婦向フリーローン ※1"]
[null,"Ｅ.",null,"有担保\n貸付","フリーローン"]
[null,"Ｆ.",null,null,"目的ローン（教育ローン、自動車ローン等）"]
[null,"Ｇ.",null,null,"不動産投資ローン"]
[null,"Ｈ.",null,null,"その他の投資ローン（動産、有価証券等）"]
[null,"Ｉ.",null,"住宅向\n貸付","住宅ローン"]
[null,"Ｊ.",null,null,"借り換えローン"]
[null,"Ｋ.",null,null,"フラット３５"]
[null,"Ｌ.",null,null,"フラット３５（保証型）"]
[null,"Ｍ.",null,null,"その他（つなぎ融資等）"]
[null,"Ｎ.","事業者向け","無担保\n貸付","ビジネスローン"]
[null,"Ｏ.",null,null,"ビジネスローン（短期のつなぎ融資）"]
[null,"Ｐ.",null,"有担保\n貸付","ビジネスローン"]
[null,"Ｑ.",null,null,"ビジネスローン（事業の運転資金の貸付）"]
[null,"Ｒ.",null,null,"ビジネスローン（設備投資資金等の貸付）"]
[null,"Ｓ.",null,null,"ビジネスローン（不動産取得に関する貸付）"]
[null,"Ｔ.",null,"商業手形割引"]
[null,"Ｕ.",null,"電子記録債権割引"]
[null,"Ｖ.",null,"関係会社向貸付"]
[null,"Ｗ.","その他 ※2"]

{"sheet":"問18","index":22,"n_rows":17,"n_cols":6,"rows_kept":17,"cut":false,"hidden":false,"merged":[[2,1,2,7],[16,1,17,1],[10,2,12,2],[14,2,17,2],[6,2,9,2]]}
[]
[null,"問18"]
[null,"問17で「現在貸付している商品」「現在は貸付していないが、今後実施する予定の商品」「現在は貸付していないが、関心のある商品」として「Ｅ.フリーローン」、「Ｆ. 目的ローン（教育ローン、自動車ローン等）」、「Ｇ.不動産投資ローン」、「Ｈ. その他の投資ローン（動産、有価証券等）」、「Ｐ.ビジネスローン」、「Ｑ.ビジネスローン（事業の運転資金の貸付）」、「Ｒ.ビジネスローン（設備投資資金等の貸付）」、「Ｓ.ビジネスローン（不動産取得に関する貸付）」を回答された方にお伺い致します。\n貴社が担保※として貸付する場合において、取得している（取得する）担保の具体的な内容について、\n以下の中から当てはまるもの全てに印を付けてください。"]
[null,"※ 手形割引やファクタリング等による債権の買い取りは除きます。"]
[]
[null,null,null,null,"取得している\n（取得する）担保","関心のある担保"]
[null,1,"流動資産","売掛債権（売掛金、完成工事未収入金、診療報酬債権　等）"]
[null,2,null,"棚卸資産（商品および製品在庫、原材料、仕掛品　等）"]
[null,3,null,"有価証券（株式及び債権などの売買目的の有価証券　等）"]
[null,4,null,"預金"]
[null,5,"有形固定資産","土地・建物"]
[null,6,null,"機械設備（製造設備、太陽光発電設備　等）"]
[null,7,null,"車両運搬具（社用車、トラック　等）"]
[null,8,"無形固定資産","知的財産（著作権、特許権、商標権　等）"]
[null,9,"その他資産","賃借権、火災保険金請求権　"]
[null,10,null,"ゴルフ会員権、リゾート会員権　等"]
[null,11,null,"その他 ※"]

{"sheet":"問19","index":23,"n_rows":86,"n_cols":13,"rows_kept":86,"cut":false,"hidden":false,"merged":[[85,2,85,3],[85,4,85,12],[82,2,82,3],[82,4,82,12],[83,2,83,3],[83,4,83,12],[84,2,84,3],[84,4,84,12],[79,2,79,3],[79,4,79,12],[80,2,80,3],[80,4,80,12],[81,2,81,3],[81,4,81,12],[78,2,78,3],[78,4,78,12],[66,2,66,4],[67,2,67,4],[68,2,68,4],[69,2,69,4],[70,2,70,4],[71,2,71,4],[72,2,72,4],[73,2,73,4],[74,2,74,4],[77,2,77,3],[77,4,77,12],[63,10,64,12],[64,1,65,4],[65,5,65,6],[65,7,65,8],[50,2,50,4],[51,2,51,4],[52,2,52,4],[53,2,53,4],[54,2,54,4],[55,2,55,4],[56,2,56,4],[57,2,57,4],[58,2,58,4],[63,1,63,4],[63,5,64,8],[47,1,47,4],[47,5,48,8],[47,10,48,12],[48,1,49,4],[49,5,49,6],[49,7,49,8],[44,13,46,13],[37,2,37,4],[38,2,38,4],[39,2,39,4],[40,2,40,4],[41,2,41,4],[42,2,42,4],[43,2,43,4],[44,6,46,6],[44,10,46,10],[44,11,46,11],[44,12,46,12],[29,2,29,4],[30,2,30,4],[34,5,35,8],[34,9,35,9],[34,10,35,12],[35,1,36,4],[36,5,36,6],[36,7,36,8],[28,2,28,4],[15,2,15,4],[16,2,16,4],[20,5,21,8],[20,9,22,9],[23,2,23,4],[24,2,24,4],[25,2,25,4],[26,2,26,4],[27,2,27,4],[20,10,21,12],[21,1,22,4],[22,5,22,6],[22,7,22,8],[9,2,9,4],[10,2,10,4],[11,2,11,4],[12,2,12,4],[13,2,13,4],[14,2,14,4],[3,1,3,13],[4,2,4,14],[6,5,7,8],[6,9,8,9],[6,10,7,12],[7,1,8,4],[8,5,8,6],[8,7,8,8]]}
[]
[null,"問19"]
[null,"＜「消費者向け貸付」を取り扱っている貸金業者さまのみご回答ください。＞"]
[null,"2025年3月末時点の消費者向け貸付における資金需要者の属性別貸付先について、貸付先件数と構成割合をご記入ください。（貸付先件数の記入が難しい場合は、おおよその構成割合のみご記入ください。）\nまた、貸付件数の直近1年間の増減について、以下の中からそれぞれ当てはまるものに一つずつ印を付けてください。"]
[]
[null,"【職業別】"]
[null,null,null,null,null,"直近時点\n（2025年3月末時点）",null,null,null,null,"貸付件数の\n直近1年間の増減"]
[null,"※ 割合については、合計10割として概算でお答えください。\n　　整数または小数点第1位までご記入ください。"]
[null,null,null,null,null,"貸付先件数",null,"貸付先に対する\n割合",null,null,"減少","変化なし","増加"]
[null,"Ａ.","公務員・非営利団体職員",null,null,null,"件",null,"割","→"]
[null,"Ｂ.","会社・団体の経営者・役員",null,null,null,"件",null,"割","→"]
[null,"Ｃ.","給与所得者（正社員）",null,null,null,"件",null,"割","→"]
[null,"Ｄ.","自営業",null,null,null,"件",null,"割","→"]
[null,"Ｅ.","教職員・医師・弁護士など",null,null,null,"件",null,"割","→"]
[null,"Ｆ.","契約社員、派遣社員、\n嘱託社員、パート・アルバイト",null,null,null,"件",null,"割","→"]
[null,"Ｇ.","専業主婦（主夫）",null,null,null,"件",null,"割","→"]
[null,"Ｈ.","無職・その他（フリーター含む）",null,null,null,"件",null,"割","→"]
[null,null,null,null,"合計",null,null,{"$f":"SUM(H10:H17)","v":0},"割"]
[]
[null,"【年収別】"]
[null,null,null,null,null,"直近時点\n（2025年3月末時点）",null,null,null,null,"貸付件数の\n直近1年間の増減"]
[null,"※ 割合については、合計10割として概算でお答えください。  \n　　整数または小数点第1位までご記入ください。"]
[null,null,null,null,null,"貸付先件数",null,"貸付先に対する\n割合",null,null,"減少","変化なし","増加"]
[null,"Ａ.","100万円未満",null,null,null,"件",null,"割","→"]
[null,"Ｂ.","100万円以上～200万円未満",null,null,null,"件",null,"割","→"]
[null,"Ｃ.","200万円以上～300万円未満",null,null,null,"件",null,"割","→"]
[null,"Ｄ.","300万円以上～400万円未満",null,null,null,"件",null,"割","→"]
[null,"Ｅ.","400万円以上～500万円未満",null,null,null,"件",null,"割","→"]
[null,"Ｆ.","500万円以上～1,000万円未満",null,null,null,"件",null,"割","→"]
[null,"Ｇ.","1,000万円以上",null,null,null,"件",null,"割","→"]
[null,"Ｈ.","不明",null,null,null,"件",null,"割","→"]
[null,null,null,null,"合計",null,null,{"$f":"SUM(H24:H31)","v":0},"割"]
[]
[null,"【借入先件数別】"]
[null,null,null,null,null,"直近時点\n（2025年3月末時点）",null,null,null,null,"貸付件数の\n直近1年間の増減"]
[null,"※ 割合については、合計10割として概算でお答えください。\n　　整数または小数点第1位までご記入ください。"]
[null,null,null,null,null,"貸付先件数",null,"貸付先に対する\n割合",null,null,"減少","変化なし","増加"]
[null,"Ａ.","0件",null,null,null,"件",null,"割","→"]
[null,"Ｂ.","1件",null,null,null,"件",null,"割","→"]
[null,"Ｃ.","2件",null,null,null,"件",null,"割","→"]
[null,"Ｄ.","3件",null,null,null,"件",null,"割","→"]
[null,"Ｅ.","4件",null,null,null,"件",null,"割","→"]
[null,"Ｆ.","5件以上",null,null,null,"件",null,"割","→"]
[null,"Ｇ.","不明",null,null,null,"件",null,"割","→"]
[null,null,null,null,"合計",null,null,{"$f":"SUM(H38:H44)","v":0},"割"]
[]
[null,"【年齢別】"]
[null,null,null,null,null,"直近時点\n（2025年3月末時点）",null,null,null,null,"貸付件数の\n直近1年間の増減"]
[null,"※ 割合については、合計10割として概算でお答えください。\n　　整数または小数点第1位までご記入ください。"]
[null,null,null,null,null,"貸付先件数",null,"貸付先に対する\n割合",null,null,"減少","変化なし","増加"]
[null,"Ａ.","18歳～19歳",null,null,null,"件",null,"割","→"]
[null,"Ｂ.","20歳～22歳",null,null,null,"件",null,"割","→"]
[null,"Ｃ.","23歳～29歳",null,null,null,"件",null,"割","→"]
[null,"Ｄ.","30歳～39歳",null,null,null,"件",null,"割","→"]
[null,"Ｅ.","40歳～49歳",null,null,null,"件",null,"割","→"]
[null,"Ｆ.","50歳～59歳",null,null,null,"件",null,"割","→"]
[null,"Ｇ.","60歳～69歳",null,null,null,"件",null,"割","→"]
[null,"Ｈ.","70歳～",null,null,null,"件",null,"割","→"]
[null,"Ｉ.","不明",null,null,null,"件",null,"割","→"]
[null,null,null,null,"合計",null,null,{"$f":"SUM(H51:H59)","v":0},"割"]
[]
[]
[null,"【地域別】"]
[null,null,null,null,null,"直近時点\n（2025年3月末時点）",null,null,null,null,"貸付件数の\n直近1年間の増減"]
[null,"※ 割合については、合計10割として概算でお答えください。 \n　　整数または小数点第1位までご記入ください。"]
[null,null,null,null,null,"貸付先件数",null,"貸付先に対する割合",null,null,"減少","変化なし","増加"]
[null,"Ａ.","北海道",null,null,null,"件",null,"割","→"]
[null,"Ｂ.","東北地域",null,null,null,"件",null,"割","→"]
[null,"Ｃ.","関東地域",null,null,null,"件",null,"割","→"]
[null,"Ｄ.","中部地域",null,null,null,"件",null,"割","→"]
[null,"Ｅ.","近畿地域",null,null,null,"件",null,"割","→"]
[null,"Ｆ.","中国地域",null,null,null,"件",null,"割","→"]
[null,"Ｇ.","四国地域",null,null,null,"件",null,"割","→"]
[null,"Ｈ.","九州地域",null,null,null,"件",null,"割","→"]
[null,"Ｉ.","沖縄",null,null,null,"件",null,"割","→"]
[null,null,null,null,"合計",null,null,{"$f":"SUM(H67:H75)","v":0},"割"]
[]
[null,"A","北海道",null,"北海道"]
[null,"B","東北地域",null,"青森県、岩手県、宮城県、秋田県、山形県、福島県"]
[null,"C","関東地域",null,"茨城県、栃木県、群馬県、埼玉県、千葉県、東京都、神奈川県"]
[null,"Ｄ","中部地域",null,"新潟県、富山県、石川県、福井県、山梨県、長野県、岐阜県、静岡県、愛知県"]
[null,"Ｅ","近畿地域",null,"三重県、滋賀県、京都府、大阪府、兵庫県、奈良県、和歌山県"]
[null,"Ｆ","中国地域",null,"鳥取県、島根県、岡山県、広島県、山口県"]
[null,"Ｇ","四国地域",null,"徳島県、香川県、愛媛県、高知県"]
[null,"Ｈ","九州地域",null,"福岡県、佐賀県、長崎県、熊本県、大分県、宮崎県、鹿児島県"]
[null,"Ｉ","沖縄",null,"沖縄県"]

{"sheet":"問20","index":24,"n_rows":23,"n_cols":12,"rows_kept":23,"cut":false,"hidden":false,"merged":[[20,11,21,11],[21,2,21,5],[20,10,21,10],[20,1,21,1],[20,6,21,6],[20,7,21,7],[20,8,21,8],[20,9,21,9],[10,10,11,10],[10,11,11,11],[11,2,11,5],[13,6,13,11],[14,6,16,7],[14,8,16,9],[14,10,16,11],[3,1,3,12],[5,6,5,11],[6,6,6,7],[6,8,6,9],[6,10,6,11],[10,1,11,1],[10,6,11,6],[10,7,11,7],[10,8,11,8],[10,9,11,9]]}
[]
[null,"問20"]
[null,"＜「事業者向け貸付」を取り扱っている貸金業者さまのみご回答ください。＞"]
[null,"2025年3月末時点の事業者向け貸付における資金需要者の事業規模別貸付先の資金使途別貸付残高と\nその構成割合をご記入ください。\n（事業規模別貸付先の資金使途別貸付残高の記入が難しい場合は、おおよその構成割合のみご記入ください。）"]
[]
[null,null,null,null,null,null,"直近時点（2025年3月末時点）の貸付残高"]
[null,null,null,null,null,null,"個人事業主",null,"小規模企業（※1）",null,"中規模企業以上"]
[null,"Ａ.","事業の一時的な運転資金（つなぎ資金）",null,null,null,null,"百万円",null,"百万円",null,"百万円"]
[null,"Ｂ.","事業の経常的な運転資金",null,null,null,null,"百万円",null,"百万円",null,"百万円"]
[null,"Ｃ.","設備投資資金",null,null,null,null,"百万円",null,"百万円",null,"百万円"]
[null,"Ｄ.","その他 ※2",null,null,null,null,"百万円",null,"百万円",null,"百万円"]
[]
[]
[null,null,null,null,null,null,"直近時点（2025年3月末時点）の貸付残高に対する割合"]
[null,null,null,null,null,null,"個人事業主",null,"小規模企業（※1）",null,"中規模企業以上"]
[null,"※ 割合については、合計10割として概算でお答えください。"]
[null,"　　整数または小数点第1位までご記入ください。"]
[null,"Ａ.","事業の一時的な運転資金（つなぎ資金）",null,null,null,null,"割",null,"割",null,"割"]
[null,"Ｂ.","事業の経常的な運転資金",null,null,null,null,"割",null,"割",null,"割"]
[null,"Ｃ.","設備投資資金",null,null,null,null,"割",null,"割",null,"割"]
[null,"Ｄ.","その他 ※2　",null,null,null,null,"割",null,"割",null,"割"]
[]
[null,null,null,null,null,"合計",{"$f":"SUM(G18:G22)","v":0},"割",{"$f":"SUM(I18:I22)","v":0},"割",{"$f":"SUM(K18:K22)","v":0},"割"]

{"sheet":"問21","index":25,"n_rows":68,"n_cols":12,"rows_kept":68,"cut":false,"hidden":false,"merged":[[67,3,67,11],[54,2,54,3],[55,2,55,3],[56,2,56,3],[59,3,59,11],[60,3,60,11],[61,3,61,11],[62,3,62,11],[63,3,63,11],[64,3,64,11],[65,3,65,11],[66,3,66,11],[53,2,53,3],[40,2,40,3],[41,2,41,3],[42,2,42,3],[44,1,44,12],[46,1,47,3],[46,4,46,7],[46,9,46,11],[47,4,47,5],[47,6,47,7],[48,2,48,3],[49,2,49,3],[50,2,50,3],[51,2,51,3],[52,2,52,3],[33,2,33,3],[38,1,39,3],[38,4,38,7],[38,9,38,11],[39,4,39,5],[39,6,39,7],[32,2,32,3],[20,2,20,3],[21,2,21,3],[25,1,26,3],[25,4,25,7],[27,2,27,3],[28,2,28,3],[29,2,29,3],[30,2,30,3],[31,2,31,3],[25,9,25,11],[26,4,26,5],[26,6,26,7],[14,2,14,3],[15,2,15,3],[16,2,16,3],[17,2,17,3],[18,2,18,3],[19,2,19,3],[13,2,13,3],[2,1,2,11],[6,1,7,3],[6,4,6,7],[6,9,6,11],[7,4,7,5],[7,6,7,7],[8,2,8,3],[9,2,9,3],[10,2,10,3],[11,2,11,3],[12,2,12,3],[3,1,3,13]]}
[]
[null,"問21"]
[null,"＜「事業者向け貸付」を取り扱っている貸金業者さまのみご回答ください。＞"]
[null,"2025年3月末時点の事業者向け貸付における資金需要者の属性別貸付先について、貸付先件数と構成割合を\nご記入ください。(貸付先件数の記入が難しい場合は、おおよその構成割合のみご記入ください。)\nまた、貸付件数の直近1年間の増減について、以下の中からそれぞれ当てはまるものに一つずつ印を付けてください。"]
[]
[null,"【業種別】"]
[null,"※ 割合については、合計10割として概算でお答えください。\n　　整数または小数点第1位までご記入ください。",null,null,"直近時点\n（2025年3月末時点）",null,null,null,null,"貸付件数の\n直近1年間の増減"]
[null,null,null,null,"貸付先件数",null,"貸付先に対する割合",null,null,"減少","変化なし","増加"]
[null,"Ａ.","農林水産業",null,null,"件",null,"割","→"]
[null,"Ｂ.","土木・建築業",null,null,"件",null,"割","→"]
[null,"Ｃ.","内装・電気工事業",null,null,"件",null,"割","→"]
[null,"Ｄ.","製造業",null,null,"件",null,"割","→"]
[null,"Ｅ.","不動産業",null,null,"件",null,"割","→"]
[null,"Ｆ.","卸・小売業",null,null,"件",null,"割","→"]
[null,"Ｇ.","飲食店・宿泊業",null,null,"件",null,"割","→"]
[null,"Ｈ.","教育・学習支援業",null,null,"件",null,"割","→"]
[null,"Ｉ.","金融・保険業",null,null,"件",null,"割","→"]
[null,"Ｊ.","医療・福祉関連業",null,null,"件",null,"割","→"]
[null,"Ｋ.","運輸業",null,null,"件",null,"割","→"]
[null,"Ｌ.","情報通信業",null,null,"件",null,"割","→"]
[null,"Ｍ.","サービス業",null,null,"件",null,"割","→"]
[null,"Ｎ.","その他",null,null,"件",null,"割","→"]
[null,null,"合計",null,null,null,{"$f":"SUM(G9:G22)","v":0},"割"]
[]
[null,"【年商別】"]
[null,"※ 割合については、合計10割として概算でお答えください。\n　　整数または小数点第1位までご記入ください。",null,null,"直近時点\n（2025年3月末時点）",null,null,null,null,"貸付件数の\n直近1年間の増減"]
[null,null,null,null,"貸付先件数",null,"貸付先に対する割合",null,null,"減少","変化なし","増加"]
[null,"Ａ.","1,000万円以下",null,null,"件",null,"割","→"]
[null,"Ｂ.","3,000万円以下",null,null,"件",null,"割","→"]
[null,"Ｃ.","5,000万円以下",null,null,"件",null,"割","→"]
[null,"Ｄ.","1億円以下",null,null,"件",null,"割","→"]
[null,"Ｅ.","3億円以下",null,null,"件",null,"割","→"]
[null,"Ｆ.","5億円以下",null,null,"件",null,"割","→"]
[null,"Ｇ.","5億円超",null,null,"件",null,"割","→"]
[null,null,"合計",null,null,null,{"$f":"SUM(G28:G34)","v":0},"割"]
[]
[]
[null,"【事業規模別】"]
[null,"※ 割合については、合計10割として概算でお答えください。\n　　整数または小数点第1位までご記入ください。",null,null,"直近時点\n（2025年3月末時点）",null,null,null,null,"貸付件数の\n直近1年間の増減"]
[null,null,null,null,"貸付先件数",null,"貸付先に対する割合",null,null,"減少","変化なし","増加"]
[null,"Ａ.","個人事業主",null,null,"件",null,"割","→"]
[null,"Ｂ.","小規模企業 ※",null,null,"件",null,"割","→"]
[null,"Ｃ.","中規模企業以上",null,null,"件",null,"割","→"]
[null,null,"合計",null,null,null,{"$f":"SUM(G41:G43)","v":0},"割"]
[null,"※ 「小規模企業」とは、製造業・その他の業種：従業員20人以下、商業・サービス業：従業員5人以下の企業を指します。"]
[null,"【地域別】"]
[null,"※ 割合については、合計10割として概算でお答えください。\n　　整数または小数点第1位までご記入ください。",null,null,"直近時点\n（2025年3月末時点）",null,null,null,null,"貸付件数の\n直近1年間の増減"]
[null,null,null,null,"貸付先件数",null,"貸付先に対する割合",null,null,"減少","変化なし","増加"]
[null,"Ａ.","北海道",null,null,"件",null,"割","→"]
[null,"Ｂ.","東北地域",null,null,"件",null,"割","→"]
[null,"Ｃ.","関東地域",null,null,"件",null,"割","→"]
[null,"Ｄ.","中部地域",null,null,"件",null,"割","→"]
[null,"Ｅ.","近畿地域",null,null,"件",null,"割","→"]
[null,"Ｆ.","中国地域",null,null,"件",null,"割","→"]
[null,"Ｇ.","四国地域",null,null,"件",null,"割","→"]
[null,"Ｈ.","九州地域",null,null,"件",null,"割","→"]
[null,"Ｉ.","沖縄",null,null,"件",null,"割","→"]
[null,null,"合計",null,null,null,{"$f":"SUM(G49:G57)","v":0},"割"]
[]
[null,"Ａ","北海道","北海道"]
[null,"Ｂ","東北地域","青森県、岩手県、宮城県、秋田県、山形県、福島県"]
[null,"Ｃ","関東地域","茨城県、栃木県、群馬県、埼玉県、千葉県、東京都、神奈川県"]
[null,"Ｄ","中部地域","新潟県、富山県、石川県、福井県、山梨県、長野県、岐阜県、静岡県、愛知県"]
[null,"Ｅ","近畿地域","三重県、滋賀県、京都府、大阪府、兵庫県、奈良県、和歌山県"]
[null,"Ｆ","中国地域","鳥取県、島根県、岡山県、広島県、山口県"]
[null,"Ｇ","四国地域","徳島県、香川県、愛媛県、高知県"]
[null,"Ｈ","九州地域","福岡県、佐賀県、長崎県、熊本県、大分県、宮崎県、鹿児島県"]
[null,"Ｉ","沖縄","沖縄県"]

{"sheet":"問22","index":26,"n_rows":25,"n_cols":5,"rows_kept":25,"cut":false,"hidden":false,"merged":[[2,1,2,4],[25,1,29,4]]}
[]
[null,"問22"]
[null,"経営における問題・課題について、以下の中から当てはまるもの全てと、\n特に大きな問題・課題と考えるもの最大三つに印を付けてください。"]
[null,null,null,"抱えている\n問題・課題","特に大きな\n問題・課題\n（最大三つ）"]
[null,1,"新規顧客の開拓（新規顧客の減少）に関する問題"]
[null,2,"貸付先の倒産等（不良債権の増加）に関する問題"]
[null,3,"貸付先の管理（顧客管理・担保管理）に関する問題"]
[null,4,"急速なデジタル化への対応に関する問題"]
[null,5,"法令遵守の対応に関する問題"]
[null,6,"サイバーセキュリティへの対応に関する問題"]
[null,7,"フィッシング詐欺などのネット犯罪への対応に関する問題"]
[null,8,"手形廃止への対応に関する問題"]
[null,9,"他の貸金業者との競合に関する問題"]
[null,10,"銀行などの預金取扱金融機関等との競合に関する問題"]
[null,11,"ファクタリング業者との競合に関する問題"]
[null,12,"その他の業種との競合に関する問題"]
[null,13,"事業の収益性に関する問題"]
[null,14,"資金調達に関する問題"]
[null,15,"後継者不在による事業承継問題"]
[null,16,"純資産5千万円超を維持する問題"]
[null,17,"役職員の高齢化や人手不足に関する問題"]
[null,18,"貸金業務取扱主任者の有資格者確保に関する問題"]
[null,19,"その他"]
[]
[null,"＜「その他」の内容や、抱えている問題・課題の具体的な内容についてご記入ください。＞"]

{"sheet":"問23","index":27,"n_rows":31,"n_cols":11,"rows_kept":31,"cut":false,"hidden":false,"merged":[[3,1,3,12],[4,1,5,4],[4,5,4,10],[5,5,5,6],[5,7,5,8],[5,9,5,10],[22,5,22,10],[24,3,25,3],[10,1,12,1],[10,2,12,2],[11,3,12,3],[15,1,15,11],[16,1,16,4],[16,5,16,11],[29,1,30,2],[20,1,21,1],[20,2,21,2],[22,1,25,1],[22,2,25,2]]}
[]
[null,"問23"]
[null,"【経営等の実態について】　　　　　　　　　　　　　　　　　　　　　　　　　　　"]
[null,"貸金業に係る収益構造についてお伺いします。\n直近3期の期末時点における営業貸付金残高（平均残高）、各年度の営業貸付金利息、金融費用等の\n貸金事業に係る事業コストについて、具体的な数値をご記入ください。"]
[null,"※ A～Fの詳細は、注記の説明をご参照ください。",null,null,null,"実績"]
[null,null,null,null,null,"2022年度",null,"2023年度",null,"2024年度"]
[null,"Ａ.","営業貸付金残高（平均残高）",null,null,null,"百万円",null,"百万円",null,"百万円"]
[null,"Ｂ.","営業貸付金利息",null,null,null,"百万円",null,"百万円",null,"百万円"]
[null,"Ｃ.","金融費用",null,null,null,"百万円",null,"百万円",null,"百万円"]
[null,"Ｄ.","貸倒償却費用",null,null,null,"百万円",null,"百万円",null,"百万円"]
[null,"Ｅ.","利息返還費用（利息返還金）","利息返還金",null,null,"百万円",null,"百万円",null,"百万円"]
[null,null,null,"元本き損額","全額放棄",null,"百万円",null,"百万円",null,"百万円"]
[null,null,null,null,"一部放棄",null,"百万円",null,"百万円",null,"百万円"]
[null,"Ｆ.","その他販売管理費 ※",null,null,null,"百万円",null,"百万円",null,"百万円"]
[]
[null,"（注記）各項目の詳細説明"]
[null,"項目名",null,null,null,"詳細説明"]
[null,"Ａ.","営業貸付金残高（平均残高）",null,null,"各年度における期首および期末時点の貸付残高を合計し、2で割った値"]
[null,"Ｂ.","営業貸付金利息",null,null,"受取利息などの貸付に伴う収益"]
[null,"Ｃ.","金融費用",null,null,"支払利息など資金調達に要する費用"]
[null,"Ｄ.","貸倒償却費用",null,null,"不良債権の貸倒償却費用等\n"]
[null,null,null,null,null,"（利息返還に伴う元本き損額及び引当金繰入額、戻入額は除く）"]
[null,"Ｅ.","利息返還費用（利息返還金）","利息返還金",null,"利息返還請求に応じて支払った金額"]
[null,null,null,null,null,"（キャッシュアウトの金額とし、引当金繰入額及び戻入額は除く）"]
[null,null,null,"元本き損額","全額放棄","利息返還請求に応じて、全額棄却・減耗した残元本"]
[null,null,null,null,"一部放棄","利息返還請求に応じて、一部棄却・減耗した残元本"]
[null,"Ｆ.","その他販売管理費 ※",null,null,"人件費、広告宣伝費など"]
[null,"※ 他の事業を兼業されるなど貸金業のみの「その他販売管理費」の算定が難しい場合は、以下の式を基に算出した割合の数値をご回答ください。"]
[]
[null,"その他販売管理費の合計 　×",null,"営業貸付金利息"]
[null,null,null,"売上高の合計"]

{"sheet":"問24","index":28,"n_rows":13,"n_cols":5,"rows_kept":13,"cut":false,"hidden":false,"merged":[[2,1,2,7],[12,1,13,1]]}
[]
[null,"問24"]
[null,"貴社では、貸金事業に係る収益構造を改善するために、現在、どのような取組みを実施していますか。\nまた、今後取組みを検討しているものについて、それぞれ以下の中から当てはまるもの全てに印を付けてください。"]
[]
[null,null,null,"現在取組みを\n実施しているもの","今後取組みを\n検討しているもの"]
[null,1,"人件費の見直し・効率化"]
[null,2,"広告宣伝費の見直し・効率化"]
[null,3,"不動産賃料等の見直し・効率化"]
[null,4,"新たな投資コスト等の見直し・効率化"]
[null,5,"既存のシステムコスト等の見直し・効率化"]
[null,6,"支払利息など金融費用の見直し・効率化"]
[null,7,"信用コストの見直し・与信管理の効率化 ※1"]
[null,8,"その他 ※2"]

{"sheet":"問25","index":29,"n_rows":11,"n_cols":4,"rows_kept":11,"cut":false,"hidden":false,"merged":[[2,1,2,7]]}
[]
[null,"問25"]
[null,"貴社における貸倒損失による影響についてお伺い致します。\n2025年3月末時点における直近1年間の貸倒損失による影響の変化について、\n以下の中から、当てはまるもの一つに印を付けてください。"]
[]
[null,null,null,"直近時点\n（2025年3月末）"]
[null,1,"改善した"]
[null,2,"やや改善した"]
[null,3,"変わらない"]
[null,4,"やや悪化した"]
[null,5,"悪化した"]
[null,6,"わからない"]

{"sheet":"問26","index":30,"n_rows":14,"n_cols":4,"rows_kept":14,"cut":false,"hidden":false,"merged":[[2,1,2,7],[9,1,10,1],[9,3,10,3],[13,1,13,6],[16,1,23,6]]}
[]
[null,"問26-1"]
[null,"貴社における貸倒償却となった貸付先への対応について、以下の中から、当てはまるもの全てに印を付けてください。"]
[]
[null,null,null,"貸倒償却債権への対応"]
[null,1,"自社で管理・回収を行っている"]
[null,2,"自社で管理しているが回収は行っていない"]
[null,3,"債権回収会社に管理・回収を委託している"]
[null,4,"債権回収会社に債権を売却している"]
[null,5,"その他 ※"]
[]
[]
[null,"問26-2"]
[null,"貴社において、与信管理の強化（与信能力の向上）を図るために取り組まれているものがございましたら、\n以下の枠の中に具体的な内容をご記入ください。"]

{"sheet":"問27","index":31,"n_rows":31,"n_cols":10,"rows_kept":31,"cut":false,"hidden":false,"merged":[[22,5,23,5],[23,2,23,3],[24,2,24,3],[26,2,26,3],[19,2,19,3],[20,2,20,3],[21,2,21,3],[22,1,23,1],[22,2,22,3],[22,4,23,4],[13,2,13,3],[14,2,14,3],[15,2,15,3],[16,2,16,3],[17,2,17,3],[18,2,18,3],[12,2,12,3],[2,1,2,9],[5,2,6,3],[5,4,6,5],[7,2,10,2],[11,2,11,3],[5,7,5,9]]}
[]
[null,"問27"]
[null,"貴社における主な資金調達先についてお伺い致します。\n貴社の2025年3月末時点における資金調達先はどのような構成割合になりますか。\n調達した資金額のおおよその構成割合をご記入ください。また、資金調達先における直近1年間の融資姿勢等の変化について、以下の中から、それぞれ当てはまるものに一つずつ印を付けてください。\n（同じ分類の資金調達先で複数から借入している場合については、主として調達した先の状況でご回答ください。）"]
[]
[null,"整数または小数点第1位までご記入ください。"]
[null,null,"資金調達先",null,"直近時点\n（2025年3月末時点）の\n構成割合 ※1",null,null,"資金調達先における融資姿勢等の変化"]
[null,null,null,null,null,null,null,"緩やか・積極的","変わらず","厳しい・\n消極的"]
[null,1,"民間金融機関","都市銀行等 ※2",null,"割"]
[null,2,null,"地方銀行",null,"割"]
[null,3,null,"協同組織金融機関（信金、信組、労金、農協等）",null,"割"]
[null,4,null,"その他の金融機関",null,"割"]
[null,5,"公的金融機関（政策金融機関、商工組合中央金庫等）",null,null,"割"]
[null,6,"株式発行",null,null,"割"]
[null,7,"社債発行",null,null,"割"]
[null,8,"資産流動化・証券化",null,null,"割"]
[null,9,"グループ系列会社（グループ内金融機関は含まない）",null,null,"割"]
[null,10,"取引先",null,null,"割"]
[null,11,"事業者向け貸金業者",null,null,"割"]
[null,12,"クラウドファンディング・ソーシャルレンディング",null,null,"割"]
[null,13,"プライベートクレジットファンド ※3",null,null,"割"]
[null,14,"ファクタリング業者",null,null,"割"]
[null,15,"自社の役職員",null,null,"割"]
[null,16,"その他 ※4",null,null,"割"]
[]
[]
[null,17,"自己資本（内部資金・剰余金等含む）",null,null,"割"]
[null,null,"合計",null,{"$f":"SUM(E8:E24,E26)","v":0},"割"]
[null,"※1 割合については、01～17の合計を10割として概算で小数点以下第1位までお答えください。"]
[null,"※2 「都市銀行等」には、信託銀行及び新生銀行、あおぞら銀行を含みます。"]
[null,"※3 「プライベートクレジットファンド」とは、銀行融資や社債投資を通さず、ファンドから企業に直接融資を行う投資手法を指します。"]
[null,"※4 「その他」を選択された方は、その他資金調達先の種類をご記入ください。"]

{"sheet":"問28","index":32,"n_rows":9,"n_cols":3,"rows_kept":9,"cut":false,"hidden":false,"merged":[[2,1,2,5]]}
[]
[null,"問28"]
[null,"問27で「01.都市銀行等」～「16.その他」で資金調達されていると回答された方にお伺い致します。\n貴社における直近1年間の資金繰り状況について、以下の中から当てはまるもの一つに印を付けてください。"]
[]
[null,1,"大きく改善した"]
[null,2,"改善した"]
[null,3,"変わらない"]
[null,4,"悪化した"]
[null,5,"大きく悪化した"]

{"sheet":"問29","index":33,"n_rows":19,"n_cols":5,"rows_kept":19,"cut":false,"hidden":false,"merged":[[2,1,2,4],[19,1,26,5]]}
[]
[null,"問29"]
[null,"貴社における財務状況の変化について、以下の中から当てはまるもの全てと、\n最も重要な変化と考えるもの一つに印を付けてください。"]
[null,null,null,"重要な変化","最も重要な\n変化"]
[null,1,"助成金・給付金による財務・資金繰りの改善"]
[null,2,"収益改善に伴う財務・資金繰りの改善"]
[null,3,"事業・人員の整理による財務・資金繰りの改善"]
[null,4,"収益悪化に伴う財務・資金繰りの悪化"]
[null,5,"兼業している主たる事業の業績改善に伴う財務・資金繰りの改善"]
[null,6,"兼業している主たる事業の業績悪化に伴う財務・資金繰りの悪化"]
[null,7,"事業譲渡・合併に伴う、譲渡先の信用力等による財務・資金繰りの改善"]
[null,8,"金融機関の融資姿勢の厳格化に伴う財務・資金繰りの悪化"]
[null,9,"市場金利の上昇による財務・資金繰りの悪化"]
[null,10,"ゼロゼロ融資の返済開始による財務・資金繰りの悪化"]
[null,11,"その他 "]
[]
[]
[]
[null,"＜「その他」と回答された貸金業者さまのみご記入ください。＞"]

{"sheet":"問30","index":34,"n_rows":15,"n_cols":9,"rows_kept":15,"cut":false,"hidden":false,"merged":[[15,1,15,10],[2,1,2,10],[4,2,4,5],[4,6,4,8],[5,2,5,5],[5,6,5,8],[6,2,6,5],[6,6,6,8],[7,2,7,5],[7,6,7,8],[10,1,10,5],[10,6,10,7],[14,1,14,10]]}
[]
[null,"問30-1"]
[null,"貴社では、調達金利の上昇リスクについて何か対策を講じて（検討して）いますか。\n以下の中から、当てはまるもの一つに印を付けてください。\nまた、貸金事業を営む上で許容範囲と考える調達金利の水準をご記入ください。"]
[]
[null,1,"調達金利の上昇リスクについて具体的な対策を講じている"]
[null,2,"調達金利の上昇リスクについて具体的な対策は講じていないが、\n検討はしている"]
[null,3,"調達金利の上昇リスクについて具体的な対策を講じていないし、\n検討もしていない"]
[null,4,"自己資本のみで貸金事業を営んでいるため、調達金利の上昇リスクについて必要はない"]
[]
[]
[null,"金利が上昇した場合の許容範囲と考える調達金利（上限金利）の水準 ※",null,null,null,null,null,null,"%"]
[null,"※ パーセントの桁数は小数点第2位以下を切り捨ててご回答ください。"]
[]
[null,"問30-2"]
[null,"貴社において、調達金利の上昇リスクについて何か対策を講じている（検討している）\nものがありましたら、以下の枠の中に具体的な内容をご記入ください。"]

{"sheet":"問31","index":35,"n_rows":133,"n_cols":9,"rows_kept":133,"cut":false,"hidden":false,"merged":[[37,1,37,2],[37,3,37,5],[37,6,37,7],[38,1,38,2],[38,6,38,7],[39,1,39,2],[39,3,39,5],[39,6,39,7],[3,1,3,10],[7,4,7,5],[7,6,7,7],[8,1,8,3],[10,1,17,1],[10,2,11,2],[12,2,13,2],[14,2,15,2],[16,2,17,2],[42,1,42,2],[42,3,42,5],[42,6,42,7],[43,1,43,2],[43,3,43,5],[43,6,43,7],[40,1,40,2],[40,3,40,5],[40,6,40,7],[41,1,41,2],[41,3,41,5],[41,6,41,7],[50,1,57,1],[50,2,51,2],[52,2,53,2],[54,2,55,2],[56,2,57,2],[64,6,65,7],[44,1,44,2],[44,3,44,5],[44,6,44,7],[47,4,47,5],[47,6,47,7],[48,1,48,3],[81,1,81,10],[98,1,98,11],[99,1,99,2],[99,3,99,4],[99,5,99,6],[100,1,100,2],[100,3,100,4],[100,5,100,6],[66,1,66,5],[68,1,79,1],[68,2,73,2],[68,3,69,4],[70,3,71,4],[72,3,73,4],[74,2,79,2],[74,3,75,4],[76,3,77,4],[78,3,79,4],[103,1,103,2],[103,3,103,4],[103,5,103,6],[104,1,104,2],[104,3,104,4],[104,5,104,6],[101,1,101,2],[101,3,101,4],[101,5,101,6],[102,1,102,2],[102,3,102,4],[102,5,102,6],[108,1,108,2],[108,3,108,4],[108,5,108,6],[109,1,109,2],[109,3,109,4],[109,5,109,6],[105,1,105,2],[105,3,105,4],[105,5,105,6],[107,1,107,2],[107,3,107,4],[107,5,107,6],[112,1,112,2],[112,3,112,4],[112,5,112,6],[113,1,113,2],[113,3,113,4],[113,5,113,6],[110,1,110,2],[110,3,110,4],[110,5,110,6],[111,1,111,2],[111,3,111,4],[111,5,111,6],[131,3,132,4],[117,6,118,7],[119,1,119,5],[121,1,132,1],[121,2,126,2],[121,3,122,4],[123,3,124,4],[125,3,126,4],[127,2,132,2],[127,3,128,4],[129,3,130,4]]}
[]
[null,"問31"]
[null,"＜直近期末時点における貸付残高（関係会社向けを含む）が50億円以上の貸金業者さまのみご回答ください。＞"]
[null,"貴社の直近期末時点における「貸付残高（資産）」、「借入残高（負債）」、「債務証券（資産）」について、\nそれぞれ合計残高とその内訳をご記入ください。"]
[]
[null,"【貸付残高（資産）・借入残高（負債）】"]
[]
[null,null,null,null,"貸付残高\n（資産）",null,"借入残高\n（負債）"]
[null,"Ａ．合計残高",null,null,null,"百万円",null,"百万円"]
[]
[null,"内\n訳","Ｂ．当初満期別","１年以下",null,"百万円",null,"百万円","※ 入力金額がゼロの場合は、０をご記入ください。"]
[null,null,null,"１年超",null,"百万円",null,"百万円"]
[null,null,"Ｃ．残存期間別","１年以下",null,"百万円",null,"百万円"]
[null,null,null,"１年超",null,"百万円",null,"百万円"]
[null,null,"Ｄ．金利種類別","固定金利",null,"百万円",null,"百万円"]
[null,null,null,"変動金利",null,"百万円",null,"百万円"]
[null,null,"Ｅ．通　貨　別","国内通貨",null,"百万円",null,"百万円"]
[null,null,null,"外国通貨",null,"百万円",null,"百万円"]
[]
[null,"（注記）各項目の詳細説明"]
[null,"※1","貸付残高および借入残高の数値は、単位未満を切り捨ててご回答ください。"]
[null,"※2","「貸付残高（資産）」は、事業報告書に記載された直近の期末時点における関係会社向を含む貸付残高の合計をご記入ください。"]
[null,null,"（「Ａ．合計残高」は、事業報告書に記載された関係会社向を含む貸付残高の合計と一致する。）"]
[null,"※3","「借入残高（負債）」は、直近の期末時点における貸借対照表の「借入金」をご記入ください。"]
[null,"※4","「Ｂ．当初満期別」は、貸出実行日から返済期日までの日数に応じて、期末時点の残高を「1年以下」と「1年超」に区分し、"]
[null,null,"「Ｃ．残存期間別」については、期末日から返済期日までの日数に応じて、期末時点の残高を「1年以下」と「1年超」に区分してそれぞれご記入ください。 "]
[null,null,"また、極度方式による貸付や期間の定めのないものは「1年超」にご記入ください。"]
[null,"※5","「Ｄ．金利種類別」は、「固定金利」、「変動金利」別の残高をご記入ください。"]
[null,"※6","「Ｅ．通貨別」は、日本円で貸出された場合は「国内通貨」、日本円以外の場合には「外国通貨」にご記入ください。"]
[null,"※7","内訳計数は、それぞれ「Ａ．合計残高＝Ｂ．当初満期別」、「Ａ．合計残高＝Ｃ．残存期間別」、「Ａ．合計残高＝Ｄ．金利種類別」、"]
[null,null,"「Ａ．合計残高＝Ｅ．通貨別」となるようにご回答ください。"]
[]
[]
[null,"【借入残高（負債）の記入例】"]
[null,"■以下では、Ａ銀行からの借入が以下の内容であった場合の記入例を記載しています。"]
[]
[null,"（借入内容）"]
[null,"借入先：",null,"Ａ銀行"]
[null,"借入金額：",null,"1,000百万円（円建ての借入）"]
[null,"期末時点の残高：",null,"1,000百万円",null,null,"----------　①"]
[null,"借入期間：",null,"12年",null,null,"----------　②"]
[null,"利率：",null,"固定金利（0.5％）",null,null,"----------　③"]
[null,"借入実行日：",null,"2023-10-02",null,null,"----------　④"]
[null,"元本返済期日：",null,"2025-10-01",null,null,"----------　⑤"]
[null,"返済方法：",null,"期日一括弁済",null,null,"----------　⑥"]
[]
[null,"（直近期末時点を2024年3月末とした場合）"]
[null,null,null,null,"貸付残高\n（資産）",null,"借入残高\n（負債）"]
[null,"Ａ．合計残高",null,null,null,"百万円",1000,"百万円"]
[]
[null,"内\n訳","Ｂ．当初満期別","１年以下",null,"百万円",0,"百万円"]
[null,null,null,"１年超",null,"百万円",1000,"百万円"]
[null,null,"Ｃ．残存期間別","１年以下",null,"百万円",1000,"百万円"]
[null,null,null,"１年超",null,"百万円",0,"百万円"]
[null,null,"Ｄ．金利種類別","固定金利",null,"百万円",1000,"百万円"]
[null,null,null,"変動金利",null,"百万円",0,"百万円"]
[null,null,"Ｅ．通　貨　別","国内通貨",null,"百万円",1000,"百万円"]
[null,null,null,"外国通貨",null,"百万円",0,"百万円"]
[]
[]
[]
[]
[null,"【債務証券（資産）】"]
[]
[null,null,null,null,null,null,"債務証券\n（資産）"]
[]
[null,"Ｆ．合計残高",null,null,null,null,null,"百万円"]
[]
[null,"内訳","居住者\n発行分","Ｇ．残存期間別",null,"１年以下",null,"百万円","※ 入力金額がゼロの場合は、０をご記入ください。"]
[null,null,null,null,null,"１年超",null,"百万円"]
[null,null,null,"Ｈ．金利種類別",null,"固定金利",null,"百万円"]
[null,null,null,null,null,"変動金利",null,"百万円"]
[null,null,null,"Ｉ．通貨別",null,"国内通貨",null,"百万円"]
[null,null,null,null,null,"外国通貨",null,"百万円"]
[null,null,"非居住者\n発行分","Ｊ．残存期間別",null,"１年以下",null,"百万円"]
[null,null,null,null,null,"１年超",null,"百万円"]
[null,null,null,"Ｋ．金利種類別",null,"固定金利",null,"百万円"]
[null,null,null,null,null,"変動金利",null,"百万円"]
[null,null,null,"Ｌ．通貨別",null,"国内通貨",null,"百万円"]
[null,null,null,null,null,"外国通貨",null,"百万円"]
[]
[null,"（注記）各項目の詳細説明"]
[null,"※8","債務証券の数値は、単位未満を切り捨ててご回答ください。"]
[null,"※9","また、以下の金融資産は対象外のため、計数から除いた数値をご回答ください。"]
[null,null,"投資信託、資本性の資産（内国・外国株式、出資金、出資証券等）、金銭の信託、譲渡性預金、現先により取得した債券"]
[null,"※10","「居住者発行分」には国内に居住している者が発行する債券を、「非居住者発行分」には居住者発行分以外の債券をそれぞれご回答ください。"]
[null,"※11","「Ｇ．残存期間別」及び「Ｊ．残存期間別」については、期末日から償還日までの日数に応じて、期末時点の残高を「1年以下」と"]
[null,null,"「1年超」に区分してそれぞれご記入ください。"]
[null,"※12","「Ｈ．金利種類別」及び「Ｋ．金利種類別」については、「固定金利」、「変動金利」別の残高をそれぞれご記入ください。"]
[null,null,"（割引方式の場合には「固定金利」へ含めてご回答ください。）"]
[null,"※13","「Ｉ．通貨別」及び「Ｌ．通貨別」については、日本円で債券が発行された場合は「国内通貨」、日本円以外の場合には"]
[null,null," 「外国通貨」にそれぞれご記入ください。"]
[null,"※14","内訳計数は、それぞれ「居住者発行分」と「非居住者発行分」を合算した数値で"]
[null,null,"「Ｆ．合計残高＝Ｇ．残存期間別＋Ｊ．残存期間別」、「Ｆ．合計残高＝Ｈ．金利種類別＋Ｋ．金利種類別」、"]
[null,null,"「Ｆ．合計残高＝Ｉ．通貨別＋Ｌ．通貨別」となるようにご回答ください。"]
[]
[]
[null,"【債務証券（資産）の記入例】"]
[null,"■債務証券とは、発行主体に償還義務のある証券形態の金銭債権です。\n直近の期末時点における貸借対照表に基づき、「流動資産」および　「投資その他の資産」に含まれる各種の債券\n（国内外で発行された　国債、政府保証債、地方債、特殊債（金融債を含む）、事業債）とＣＰの保有額をご記入ください。\n以下では、貴社がＢ社（国内にある企業）とＣ社（海外にある企業）の普通社債を保有している場合の債務証券の記入例を記載しています。"]
[null,"発行会社：",null,"Ｂ社（国内にある企業）"]
[null,"発行種類：",null,"無担保普通社債"]
[null,"保有額：",null,"200百万円",null,"---------- ①"]
[null,"年限：",null,"6年",null,"---------- ②"]
[null,"償還期限：",null,"2025-10-30",null,"---------- ③"]
[null,"利率：",null,"年1.57％（固定）",null,"---------- ④"]
[null,"償還方法：",null,"満期一括償還",null,"---------- ⑤"]
[]
[null,"発行会社：",null,"Ｃ社（海外にある企業）"]
[null,"発行種類：",null,"無担保普通社債"]
[null,"保有額：",null,"100,000米ドル",null,"---------- ⑥"]
[null,"年限：",null,"5年",null,"---------- ⑦"]
[null,"償還期限：",null,"2025-10-30",null,"---------- ⑧"]
[null,"利率：",null,"年3.0％（固定）",null,"---------- ⑨"]
[null,"償還方法：",null,"満期一括償還",null,"---------- ⑩"]
[]
[null,"（直近期末時点を2024年3月末とした場合）"]
[]
[null,null,null,null,null,null,"債務証券\n（資産）"]
[]
[null,"Ｆ．合計残高",null,null,null,null,210,"百万円"]
[]
[null,"内訳","居住者\n発行分","Ｇ．残存期間別",null,"１年以下",200,"百万円"]
[null,null,null,null,null,"１年超",0,"百万円"]
[null,null,null,"Ｈ．金利種類別",null,"固定金利",200,"百万円"]
[null,null,null,null,null,"変動金利",0,"百万円"]
[null,null,null,"Ｉ．通貨別",null,"国内通貨",200,"百万円"]
[null,null,null,null,null,"外国通貨",0,"百万円"]
[null,null,"非居住者\n発行分","Ｊ．残存期間別",null,"１年以下",10,"百万円"]
[null,null,null,null,null,"１年超",0,"百万円"]
[null,null,null,"Ｋ．金利種類別",null,"固定金利",10,"百万円"]
[null,null,null,null,null,"変動金利",0,"百万円"]
[null,null,null,"Ｌ．通貨別",null,"国内通貨",0,"百万円"]
[null,null,null,null,null,"外国通貨",10,"百万円"]

{"sheet":"問32","index":36,"n_rows":17,"n_cols":6,"rows_kept":17,"cut":false,"hidden":false,"merged":[[2,1,2,9],[5,3,6,4],[12,3,12,5],[13,1,13,2]]}
[]
[null,"問32"]
[null,"2024年度の利息返還請求による損失に係る引当金について、「A.利息返還引当金繰入額」、「B.利息返還引当金戻入額」、「C.利息返還引当金取崩額」、「D.期末利息返還引当金残高」の金額をそれぞれ数値でご記入ください。\nまた、利息返還請求の2025年度の見通しとして、以下の中からそれぞれ当てはまるものに一つずつ印を付けてください。"]
[]
[]
[null,null,null,"2024年度・実績"]
[]
[null,"Ａ.","利息返還引当金繰入額",null,"百万円"]
[null,"Ｂ.","利息返還引当金戻入額",null,"百万円"]
[null,"Ｃ.","利息返還引当金取崩額",null,"百万円"]
[null,"Ｄ.","期末利息返還引当金残高",null,"百万円"]
[]
[null,null,null,"2025年度の見通し"]
[null,"※ それぞれ当てはまるものに一つずつ印を付けてください。",null,"減少","変化なし","増加"]
[null,"Ａ.","利息返還金額"]
[null,"Ｂ.","利息返還請求に伴う元本き損額"]
[null,"Ｃ.","期末利息返還引当金残高"]

{"sheet":"問33","index":37,"n_rows":9,"n_cols":5,"rows_kept":9,"cut":false,"hidden":false,"merged":[[4,1,5,2],[4,3,4,4],[4,6,4,8],[5,3,5,4],[2,1,2,6]]}
[]
[null,"問33"]
[null,"2024年度に利息返還の請求を受けた貸付先を、「完済・残高なしの先」\n「残高ありの先」に分類すると、どのような人数割合が考えられますか。\n利息返還請求の全体に対する比率を具体的な数値でご記入ください。"]
[]
[null,"※ 人数比率は合計10割として概算でお答えください。\n　　整数または小数点第1位までご記入ください。",null,"現況"]
[null,null,null,"人数比率"]
[null,"Ａ.","完済・残高なしの先",null,"割"]
[null,"Ｂ.","残高ありの先",null,"割"]
[null,null,"合計",{"$f":"SUM(D7:D8)","v":0},"割"]

{"sheet":"問34","index":38,"n_rows":6,"n_cols":8,"rows_kept":6,"cut":false,"hidden":false,"merged":[[2,1,2,7]]}
[]
[null,"問34"]
[null,"2025年3月末時点における直近1年間の利息返還請求による影響の変化について、以下の中から、当てはまるものに印を付けてください。"]
[]
[null,null,"改善した","やや改善した","変わらない","やや悪化した","悪化した","わからない"]
[null,"直近1年間の利息返還請求による影響の変化\n（2025年3月末時点）"]

{"sheet":"問35","index":39,"n_rows":9,"n_cols":6,"rows_kept":9,"cut":false,"hidden":false,"merged":[[2,1,2,7]]}
[]
[null,"問35"]
[null,"貴社における事業環境の変化と今後の見通しについてお伺い致します。\n2025年3月末時点における直近1年間の事業環境の変化と、今後の見通しについて、以下の中から、それぞれ当てはまるものに一つずつ印を付けてください。"]
[]
[null,null,"改善した","変わらない","悪化した","わからない"]
[null,"直近1年間の事業環境の変化\n（2025年3月末時点）"]
[]
[null,null,"改善する見込み","変わらないと思う","悪化する見込み","わからない"]
[null,"事業環境の今後の見通し\n（2025年4月以降）"]

{"sheet":"問36","index":40,"n_rows":32,"n_cols":8,"rows_kept":32,"cut":false,"hidden":false,"merged":[[31,1,31,6],[33,1,33,6],[34,1,39,6],[26,1,27,1],[26,2,27,2],[26,3,26,4],[26,5,27,5],[26,6,27,6],[19,2,25,2],[19,3,19,4],[20,3,20,4],[21,3,21,4],[22,3,22,4],[23,3,23,4],[24,3,24,4],[25,3,25,4],[13,7,14,7],[15,3,15,4],[26,7,27,7],[27,3,27,4],[17,3,17,4],[18,3,18,4],[16,3,16,4],[2,1,2,6],[4,3,4,4],[5,2,6,2],[5,3,5,4],[6,3,6,4],[13,1,14,1],[13,5,14,5],[13,6,14,6],[7,2,18,2],[7,3,7,4],[8,3,8,4],[9,3,9,4],[10,3,14,3]]}
[]
[null,"問36-1"]
[null,"貴社が貸金事業を行う上で影響の大きい環境の変化と対応した取組みについて、以下の中から当てはまるもの全てと、特に影響の大きい環境の変化最大三つに印を付けてください。"]
[]
[null,null,null,null,null,"影響の大きい環境の変化","特に影響の大きい環境の変化\n（最大三つ）","対応した取組みを行っているもの"]
[null,1,"人口・市場","少子高齢化・人口減少"]
[null,2,null,"市場の縮小・構造的変化"]
[null,3,"経済・雇用","企業収益や雇用・所得環境などの景気動向"]
[null,4,null,"急速な円安進行や物価の上昇"]
[null,5,null,"地域経済の衰退"]
[null,6,null,"競合状況の変化","他の貸金業者"]
[null,7,null,null,"預金取扱い金融機関"]
[null,8,null,null,"ファクタリング業者"]
[null,9,null,null,"その他"]
[]
[null,10,null,"企業活動のボーダレス化"]
[null,11,null,"市場金利の動向や、量的金融緩和などの金融政策の変化"]
[null,12,null,"人手不足・賃金上昇"]
[null,13,null,"労働者の価値観や生活、働き方に対するニーズの多様化"]
[null,14,"社会・環境","資金需要者の価値観や生活、ニーズの高度化・多様化"]
[null,15,null,"高度情報化社会の進展やＡＩなど技術環境の変化"]
[null,16,null,"サイバー攻撃による被害の拡大"]
[null,17,null,"地震や台風 ､ 集中豪雨等による自然災害"]
[null,18,null,"新型コロナウイルス感染症５類移行後の行動様式等の変化"]
[null,19,null,"会計基準の変更"]
[null,20,null,"民法改正などの法規制の変化"]
[null,21,"その他","その他 ※"]
[]
[]
[]
[null,"問36-2"]
[null,"貴社が行っている事業環境の変化に対応した主な取組みの具体的な内容について、ご記入ください。"]

{"sheet":"問37","index":41,"n_rows":34,"n_cols":5,"rows_kept":34,"cut":false,"hidden":false,"merged":[[35,1,39,4],[2,1,2,6],[33,1,33,4]]}
[]
[null,"問37"]
[null,"何を経営の重要課題として取り組まれていますか。\n以下の中から当てはまるもの全てと、特に重要な課題として取り組まれているもの最大三つに印を付けてください。"]
[]
[null,null,null,"重要な課題として取り組んでいるもの","特に重要な課題として取り組んでいるもの\n（最大三つ）"]
[null,1,"貸金業法等関連法及び自主規制基本規則の遵守"]
[null,2,"コンプライアンスの徹底"]
[null,3,"積極的な社会貢献等の活動"]
[null,4,"カウンセリング機能の充実"]
[null,5,"過剰貸付防止等の審査姿勢の見直し"]
[null,6,"競合先に関する情報の収集"]
[null,7,"貸金業以外の事業に関する情報の収集"]
[null,8,"営業力や収益力の強化"]
[null,9,"事業コストの削減"]
[null,10,"販路の拡大"]
[null,11,"事業の多角化や新たな事業への参入"]
[null,12,"少子高齢化社会を見据えた対応の強化"]
[null,13,"与信管理の強化"]
[null,14,"債権管理の強化"]
[null,15,"人材の育成・確保"]
[null,16,"雇用形態の多様化への対応"]
[null,17,"資金繰りの改善"]
[null,18,"事業承継を円滑に進めるための対応"]
[null,19,"広告宣伝の強化"]
[null,20,"インターネットやＡＩ技術等を活用した業務の効率化"]
[null,21,"個人顧客情報の安全管理措置等"]
[null,22,"内部統制の強化やシステムリスク管理態勢の整備　"]
[null,23,"貸金業のイメージ向上に関する取組み"]
[null,24,"その他"]
[]
[]
[]
[]
[null,"その他経営の重要課題として取り組まれているものがございましたら、\n以下の枠の中に具体的な内容をご記入ください。"]

{"sheet":"問38","index":42,"n_rows":11,"n_cols":10,"rows_kept":11,"cut":false,"hidden":false,"merged":[[2,1,2,9],[5,3,5,5],[5,7,5,9]]}
[]
[null,"問38"]
[null,"貴社における2025年12月時点の業況（Ａ・Ｂ）について、\n以下の中からそれぞれ当てはまるものに一つずつ印を付けてください。"]
[]
[]
[null,null,null,"Ａ．現在を１年前と比べると",null,null,null,"Ｂ．１年後を現在と比べると"]
[null,null,null,"良くなった","変わらない","悪くなった",null,"良くなる","変わらない","悪くなる"]
[null,1,"申込状況"]
[null,2,"貸付状況"]
[null,3,"回収状況"]
[null,4,"収益状況"]

{"sheet":"問39","index":43,"n_rows":19,"n_cols":3,"rows_kept":19,"cut":false,"hidden":false,"merged":[[2,1,2,5],[3,1,3,4],[10,1,10,5],[18,1,18,5],[20,1,20,3]]}
[]
[null,"問39-1"]
[null,"貴社の貸金業務※ に係るコンピュータシステム※の利用状況について、\n以下の中から当てはまるもの一つに印を付けてください。"]
[null,"※ 「貸金業務」とは、金銭の交付や債権の回収（弁済の受領）、貸付に係る契約の締結、\n　　返済能力調査、帳簿の作成等（個人信用情報の照会や登録を除く）を指します。\n※ 「コンピュータシステム」には、サーバやデスクトップパソコンのほか、ノートパソコンやタブレット端末なども含みます。"]
[]
[null,1,"貸金業務にコンピュータシステムを利用している"]
[null,2,"貸金業務にコンピュータシステムは利用していないが、今後は利用したいと考えている（検討している）"]
[null,3,"貸金業務にコンピュータシステムは利用していないし、今後も利用する予定もない（検討もしていない）"]
[]
[null,"問39-2"]
[null,"問39-1で「02 貸金業務にコンピュータシステムは利用していないが、検討している」「03 貸金業務にコンピュータシステムは利用していないし、検討もしていない」と回答された方にお伺い致します。\n現在貸金業務にコンピュータシステムは利用していない理由について、以下の中から当てはまるもの\n全てに印を付けてください。"]
[]
[null,1,"コンピュータシステム導入の仕方や利用の仕方がわからない"]
[null,2,"コンピュータシステム導入コストや運用コストの問題"]
[null,3,"コンピュータシステムに対応できる人材がいない"]
[null,4,"事業規模が小さくコンピュータシステム導入のメリットがない"]
[null,5,"その他"]
[]
[null,"＜「その他」と回答された貸金業者さまのみご記入ください。＞"]

{"sheet":"問40","index":44,"n_rows":43,"n_cols":5,"rows_kept":43,"cut":false,"hidden":false,"merged":[[2,1,2,5],[4,1,4,5],[5,2,5,5]]}
[]
[null,"問40"]
[null,"【貸金業者が自主的に行っているカウンセリングや金融経済教育等の取組みについて】"]
[null,"＜「消費者向け貸付」を取り扱っている貸金業者さまのみご回答ください。＞"]
[null,"貴社における、以下①～④それぞれの状況に応じた、カウンセリング等※ の実施状況について、\n当てはまるもの全てに印を付けてください。"]
[null,"※","「カウンセリング等」とは、資金需要者の多重債務防止の観点から、顧客の状況に応じて、\n月間の借入金返済の負担軽減に繋がる借換え商品及び返済条件の変更等に関する提案や、\n生活再建のためのアドバイス、債務解決・セーフティネット貸付等に関する相談先の案内等を指します。"]
[]
[null,"＜①貸付可能な顧客から、新たな借入れの申込みを受けた場合＞"]
[]
[null,null,null,"現在行っている","今後行いたい"]
[null,1,"借入金返済の負担軽減に繋がる借換え商品等の提案"]
[null,2,"借入金返済の負担軽減に繋がる返済条件の変更に関する提案"]
[null,3,"家計診断等の生活再建のためのアドバイスや、家計収支の改善に関するアドバイス"]
[]
[]
[null,"＜②貸付できない（断りとなる）顧客から、新たな借入れの申込みを受けた場合＞"]
[]
[null,null,null,"現在行っている","今後行いたい"]
[null,1,"借入金返済の負担軽減に繋がる借換え商品等の提案"]
[null,2,"借入金返済の負担軽減に繋がる返済条件の変更に関する提案"]
[null,3,"家計診断等の生活再建のためのアドバイスや、家計収支の改善に関するアドバイス"]
[null,4,"日本貸金業協会の生活再建支援カウンセリングへの誘導"]
[null,5,"債務解決及びセーフティネット貸付等に関する相談先の案内"]
[]
[]
[null,"＜③既存顧客から返済に関する問合せや、相談を受けた場合＞"]
[]
[null,null,null,"現在行っている","今後行いたい"]
[null,1,"借入金返済の負担軽減に繋がる借換え商品等の提案"]
[null,2,"借入金返済の負担軽減に繋がる返済条件の変更に関する提案"]
[null,3,"家計診断等の生活再建のためのアドバイスや、家計収支の改善に関するアドバイス"]
[null,4,"日本貸金業協会の生活再建支援カウンセリングへの誘導"]
[null,5,"債務解決及びセーフティネット貸付等に関する相談先の案内"]
[]
[]
[null,"＜④延滞中や、支払い不能となった既存顧客から、債務整理等の相談を受けた場合＞"]
[]
[null,null,null,"現在行っている","今後行いたい"]
[null,1,"借入金返済の負担軽減に繋がる借換え商品等の提案"]
[null,2,"借入金返済の負担軽減に繋がる返済条件の変更に関する提案"]
[null,3,"家計診断等の生活再建のためのアドバイスや、家計収支の改善に関するアドバイス"]
[null,4,"日本貸金業協会の生活再建支援カウンセリングへの誘導"]
[null,5,"債務解決及びセーフティネット貸付等に関する相談先の案内"]

{"sheet":"問41","index":45,"n_rows":19,"n_cols":6,"rows_kept":19,"cut":false,"hidden":false,"merged":[[3,1,3,5],[4,1,4,5],[18,1,19,1],[18,3,19,3],[18,4,19,4],[18,5,19,5]]}
[]
[null,"問41"]
[null,"＜「消費者向け貸付」を取り扱っている貸金業者さまのみご回答ください。＞"]
[null,"借入れの申込みなどを受けた場合※ における資金使途の確認や借入れに関する基本的なアドバイス等の実施状況について、それぞれ当てはまるものに一つずつ印を付けてください。"]
[null,"※ 「借入れの申込みなどを受けた場合」とは、顧客から金銭借入れの申込みを受けた場合（クレジットカードのキャッシングを含む）を指し、クレジットカードの\n　　ショッピングリボ払い・分割払いなどは除きます。"]
[]
[null,null,null,"現在行っている","現在行っていないが、今後行いたい","現在行っていないし、今後も行わない"]
[null,1,"50万円以下の貸付においても、源泉徴収票や給与の支払明細書等の年収証明を徴求"]
[null,2,"業務規定等において、融資に際しての年収把握についての規定を設定"]
[null,3,"借入れの資金使途の確認"]
[null,4,"借入・返済シミュレーションを提供"]
[null,5,"借り過ぎについての注意喚起と計画的な利用方法等に関するアドバイス"]
[null,6,"名義の貸し借りの危険性についての説明"]
[null,7,"マルチ商法や詐欺商法にかかわっていないかの確認"]
[null,8,"返済時の充当順位についての詳細な説明"]
[null,9,"支払いが遅れた場合や、支払いが困難になった場合についてのアドバイス"]
[null,10,"指定信用情報機関への登録に関する詳細な説明"]
[null,11,"新成人に対して、慎重な審査や借入限度額を低く抑える等の対応"]
[null,12,"その他 ※"]

{"sheet":"問42","index":46,"n_rows":32,"n_cols":5,"rows_kept":32,"cut":false,"hidden":false,"merged":[[3,1,3,4],[4,1,4,4]]}
[]
[null,"問42"]
[null,"＜「事業者向け貸付」を取り扱っている貸金業者さまのみご回答ください。＞"]
[null,"貴社における、以下①～④それぞれの状況に応じた、カウンセリング等※ の実施状況について、\n当てはまるもの全てに印を付けてください。"]
[null,"※ 「カウンセリング等」とは、資金需要者の多重債務（債務超過）防止等の観点から、顧客の状況に応じて、月間の借入金返済の負担軽減に\n　　繋がる借換え商品及び返済条件の変更等に関する提案や、経営再建や改善のためのアドバイス、債務解決・セーフティネット貸付等に関する\n　　相談先の案内等を指します。"]
[]
[null,"＜①\t貸付可能な顧客から、新たな借入れの申込みを受けた場合＞"]
[null,null,null,"現在行っている","今後行いたい"]
[null,1,"借入金返済の負担軽減に繋がる借換え商品等の提案"]
[null,2,"借入金返済の負担軽減に繋がる返済条件の変更に関する提案"]
[null,3,"経営再建や改善に関するアドバイス"]
[]
[null,"＜②貸付できない（断りとなる）顧客から、新たな借入れの申込みを受けた場合＞"]
[null,null,null,"現在行っている","今後行いたい"]
[null,1,"借入金返済の負担軽減に繋がる借換え商品等の提案"]
[null,2,"借入金返済の負担軽減に繋がる返済条件の変更に関する提案"]
[null,3,"経営再建や改善に関するアドバイス"]
[null,4,"債務解決及びセーフティネット貸付等に関する相談先の案内"]
[]
[null,"＜③既存顧客から返済の繰り延べに関する問合せや、相談を受けた場合＞"]
[null,null,null,"現在行っている","今後行いたい"]
[null,1,"借入金返済の負担軽減に繋がる借換え商品等の提案"]
[null,2,"借入金返済の負担軽減に繋がる返済条件の変更に関する提案"]
[null,3,"経営再建や改善に関するアドバイス"]
[null,4,"債務解決及びセーフティネット貸付等に関する相談先の案内"]
[]
[null,"＜④延滞中や、支払い不能となった既存顧客から、債務整理等の相談を受けた場合＞"]
[null,null,null,"現在行っている","今後行いたい"]
[null,1,"借入金返済の負担軽減に繋がる借換え商品等の提案"]
[null,2,"借入金返済の負担軽減に繋がる返済条件の変更に関する提案"]
[null,3,"経営再建や改善に関するアドバイス"]
[null,4,"債務解決及びセーフティネット貸付等に関する相談先の案内"]

{"sheet":"問43","index":47,"n_rows":21,"n_cols":8,"rows_kept":21,"cut":false,"hidden":false,"merged":[[20,6,21,6],[20,7,21,7],[21,2,21,3],[17,2,17,3],[18,2,18,3],[19,2,19,3],[20,1,21,1],[20,4,21,4],[20,5,21,5],[2,1,2,5],[4,1,4,3],[9,2,13,2],[14,2,14,3],[15,2,15,3],[16,2,16,3]]}
[]
[null,"問43"]
[null,"直近1年間における、利用者から受ける相談の内容および傾向について、\n以下の中からそれぞれ当てはまるものに一つずつ印を付けてください。"]
[]
[null,null,null,null,"増加\nしている","減少\nしている","変わらない","相談がない"]
[null,1,"借入れについて"]
[null,2,"返済について"]
[null,3,"スマートフォンでの出金、入金について"]
[null,4,"生活設計や事業の資金繰りについて"]
[null,5,"ヤミ金融等の\n利用被害について","ヤミ金融等非正規業者"]
[null,6,null,"クレジットカードショッピング枠の\n現金化業者"]
[null,7,null,"偽装質屋"]
[null,8,null,"似非(えせ)ファクタリング業者"]
[null,9,null,"ＳＮＳを使った個人間融資"]
[null,10,"名義貸しについて"]
[null,11,"身に覚えのない請求について"]
[null,12,"フィッシング詐欺などのネット犯罪について"]
[null,13,"投資や副業、ロマンス詐欺などの詐欺被害について"]
[null,14,"親族の借入れについて"]
[null,15,"貸付自粛制度について"]
[null,16,"その他 ※"]

{"sheet":"問44","index":48,"n_rows":19,"n_cols":6,"rows_kept":19,"cut":false,"hidden":false,"merged":[[3,1,3,5],[15,1,15,5],[16,1,16,5],[17,1,17,5]]}
[]
[null,"問44"]
[null,"＜「消費者向け貸付」を取り扱っている貸金業者さまのみご回答ください。＞"]
[null,"貴社における資金需要者等の金融犯罪や詐欺被害防止に向けた取組み状況について、\n以下の中からそれぞれ当てはまるものに一つずつ印を付けてください。"]
[]
[null,null,null,"現在行っている","現在行っていないが、\n今後行いたい","現在行っていないし、今後も行う予定はない"]
[null,1,"申込時やホームページ、ＳＮＳなどで、金融犯罪や詐欺被害に\n関する注意喚起をしている"]
[null,2,"申込時において、本人確認書類の偽造等の不正を防ぐため、\n本人確認を厳格化している"]
[null,3,"審査時において、資金使途や希望金額等に違和感がないかを\n確認している"]
[null,4,"審査時において、信用情報機関の当日契約照会件数を確認して\n審査を厳格に行っている"]
[null,5,"審査時において、信用情報機関の電話番号登録情報を確認して\n審査を厳格に行っている"]
[null,6,"契約後において、同一デバイスによる複数ログインのモニタリングや\n本人住所と出金場所に異常値がないかモニタリングしている"]
[null,7,"不正アクセスを防ぐため、2段階認証や検知システムを導入している"]
[null,8,"金融犯罪や詐欺被害に関する相談窓口を設置している"]
[null,9,"その他"]
[]
[null,"＜「その他」と回答された貸金業者さまのみご記入ください。＞"]
[]
[null,"  "]

{"sheet":"問45","index":49,"n_rows":22,"n_cols":7,"rows_kept":22,"cut":false,"hidden":false,"merged":[[20,1,20,6],[3,1,3,8],[18,1,19,1],[18,3,19,3],[18,4,19,4],[18,5,19,5],[18,6,19,6]]}
[]
[null,"問45"]
[null,"＜「消費者向け貸付」を取り扱っている貸金業者さまのみご回答ください。＞"]
[null,"貴社における、資金需要者の金融リテラシー向上に向けた取組み状況について、以下の中から当てはまるもの全てに印を付けてください。\nまた、日本貸金業協会において取組みを強化してほしいものについて、以下の中から当てはまるもの全てに印を付けてください。"]
[]
[null,null,null,"現在行っている","現在行っていないが、\n今後行いたい","現在行っていないし、今後も行う予定はない","協会において取組みを強化してほしい"]
[null,1,"対面や電話における顧客との会話を通して、家計管理やローンの利用に関する説明・アドバイス"]
[null,2,"パンフレットやポスター、教材等で、金融に関する基礎知識※1 の説明、注意喚起等"]
[null,3,"ホームページコンテンツで金融に関する基礎知識※1 の説明、注意喚起等"]
[null,4,"メールマガジンで金融に関する基礎知識※1 の説明、注意喚起等"]
[null,5,"動画配信サービス（YouTube等）で金融に関する基礎知識\n※1 の説明、注意喚起等の動画を配信"]
[null,6,"ＳＮＳ（X等）で金融に関する基礎知識※1 の説明、注意喚起等の情報を発信"]
[null,7,"学校への講師派遣や教材作成など教育機関や関係団体等との連携や協働した取組み"]
[null,8,"出前講座などへの講師派遣"]
[null,9,"金融経済教育推進機構（J-FLEC）や\n金融リテラシー向上コンソーシアム（FLIC）を紹介"]
[null,10,"金融経済教育の指導者など人材の育成"]
[null,11,"金融詐欺等の事例の収集と情報提供"]
[null,12,"顧客の金融に関する基礎知識※1 等の理解度を測る独自の確認表を作成"]
[null,13,"その他 ※2"]
[]
[]
[null,"  "]

{"sheet":"問46","index":50,"n_rows":10,"n_cols":3,"rows_kept":10,"cut":false,"hidden":false,"merged":[[2,1,2,6],[3,1,3,7],[14,1,15,6],[17,1,17,6]]}
[]
[null,"問46"]
[null,"金融リテラシー向上コンソーシアム（ＦＬＩＣ）※ の認知について、\n以下の中から当てはまるもの一つに印を付けてください。"]
[null,"※ 「金融リテラシー向上コンソーシアム（ＦＬＩＣ）」とは、金融リテラシーの向上及び金融トラブル被害の防止を\n　　目的とする団体です。\n　　日本貸金業協会を事務局として、金融経済教育セミナーの開催、金融トラブル事例や防止策に関する\n　　コンテンツ配信などの消費者保護対策に取り組んでいます。"]
[]
[null,1,"知っている（加入している）"]
[null,2,"知っている（加入を検討している）"]
[null,3,"知っている（加入は検討していない）"]
[null,4,"聞いたことはあるが、詳しくは知らない"]
[null,5,"全く知らない"]

{"sheet":"問47","index":51,"n_rows":21,"n_cols":5,"rows_kept":21,"cut":false,"hidden":false,"merged":[[2,1,2,5],[21,1,28,4]]}
[]
[null,"問47"]
[null,"今後、金融リテラシー向上コンソーシアム（ＦＬＩＣ）に対して期待することについてお伺い致します。\n以下の中から当てはまるもの全てと、最も期待すること一つに印を付けてください。"]
[]
[null,null,null,"FLICに対して\n期待すること","FLICに対して\n最も期待すること"]
[null,1,"社会人を対象としたセミナーの拡充"]
[null,2,"学生を対象としたセミナーの拡充"]
[null,3,"金融に関する基礎知識※1 や留意点の説明、詐欺被害に関する注意喚起等の\n定期的な情報提供"]
[null,4,"金融に関する基礎知識※1 や留意点の説明、詐欺被害に関する注意喚起等の\nパンフレットやポスター、教材等の配布"]
[null,5,"金融に関する基礎知識※1 や留意点の説明、詐欺被害に関する注意喚起等の\nホームページコンテンツの拡充"]
[null,6,"金融に関する基礎知識※1 や留意点の説明、詐欺被害に関する注意喚起等の\nメールマガジンを配信"]
[null,7,"動画配信サービス（YouTube等）を使った情報発信の強化"]
[null,8,"ＳＮＳ（X等）を使った情報発信の強化"]
[null,9,"銀行や他業態との連携強化"]
[null,10,"警察や関連行政との連携強化"]
[null,11,"提供サービス（加入メリット）の拡充"]
[null,12,"金融リテラシー向上コンソーシアムの活動に関する定期的な情報提供"]
[null,13,"その他"]
[]
[]
[null,"＜「その他」と回答された貸金業者さまのみご記入ください。＞"]

{"sheet":"問48","index":52,"n_rows":11,"n_cols":3,"rows_kept":11,"cut":false,"hidden":false,"merged":[[2,1,2,5]]}
[]
[null,"問48"]
[null,"【今後の貸金業の見通しについて】\n貴社における今後の貸金業の見通しについて、\n以下の中から当てはまるもの一つに印を付けてください。"]
[]
[null,1,"現状維持"]
[null,2,"事業拡大"]
[null,3,"事業縮小"]
[null,4,"事業承継（事業譲渡）"]
[null,5,"転業"]
[null,6,"廃業"]
[null,7,"その他"]

{"sheet":"問49","index":53,"n_rows":19,"n_cols":3,"rows_kept":19,"cut":false,"hidden":false,"merged":[[2,1,2,6],[18,1,19,1],[18,3,19,3]]}
[]
[null,"問49"]
[null,"問48で「01.現状維持」「02.事業拡大」と回答された方にお伺い致します。\n今後の事業方針や、考えている事業のあり方などについて、以下の中から当てはまるもの全てに印を付けてください。"]
[]
[null,1,"事業コスト構造の改善や、経営資源の効率的な活用"]
[null,2,"他業種との業務提携によるサービスの拡充"]
[null,3,"貸付商品（消費者向、事業者向、無担保、有担保等）の追加"]
[null,4,"広告戦略の強化による集客力の向上"]
[null,5,"インターネットでの仮想店舗による販路拡大"]
[null,6,"他の金融機関等との提携による販路拡大"]
[null,7,"クレジット等の周辺事業を強化することで、貸金業の底上げを図る"]
[null,8,"事業譲渡・合併による譲渡先等の信用力や資源を活用した事業規模の拡大"]
[null,9,"事業買収による事業規模の拡大"]
[null,10,"東南アジア等の海外への進出"]
[null,11,"フィンテックを活用した新しいビジネスモデルへの変革"]
[null,12,"事業環境の変化に対応した人材育成"]
[null,13,"事業継続・事業拡大にともなう新たな資金調達"]
[null,14,"ＳＤＧｓへの取組み強化による企業ブランドの向上（企業の競争力向上）"]
[null,15,"その他 ※"]

{"sheet":"問50","index":54,"n_rows":17,"n_cols":3,"rows_kept":17,"cut":false,"hidden":false,"merged":[[2,1,2,5],[16,1,17,1],[16,3,17,3]]}
[]
[null,"問50"]
[null,"問48で「03.事業縮小」「04.事業承継（事業譲渡）」「05.転業」「06.廃業」と回答された方にお伺い致します。　\nその見通しの背景にある課題や問題点について、以下の中から当てはまるもの全てに印を付けてください。"]
[]
[null,1,"人員不足"]
[null,2,"事業環境の変化に対応した人材不足"]
[null,3,"後継者不在"]
[null,4,"資金不足"]
[null,5,"集客や顧客へのサービスが継続できない"]
[null,6,"不良債権の増加"]
[null,7,"収益性、利幅の減少"]
[null,8,"利息返還請求の増加"]
[null,9,"法規制による管理業務負担が多い"]
[null,10,"少子化高齢化や過疎化などの商圏人口減少等によるマーケットの縮小"]
[null,11,"集客力の低下"]
[null,12,"事業の見直し（貸金業以外の事業に注力等）"]
[null,13,"その他 ※"]

{"sheet":"問51","index":55,"n_rows":41,"n_cols":3,"rows_kept":41,"cut":false,"hidden":false,"merged":[[40,1,40,5],[42,1,42,5],[2,1,2,5],[9,1,9,5],[16,1,16,5],[27,1,27,5],[29,1,29,5],[32,1,32,5]]}
[]
[null,"問51-1"]
[null,"問48で「04. 事業承継（事業譲渡）」と回答された方にお伺い致します。\n貴社における事業承継（事業譲渡）に関する状況について、以下の中から当てはまるもの一つに印を付けてください。"]
[]
[null,1,"事業承継（事業譲渡）に向けた具体的な準備・対策を進めている"]
[null,2,"事業承継（事業譲渡）に向けた検討を行っている"]
[null,3,"事業承継（事業譲渡）に向けた行動について、まだ何もしていない"]
[]
[null,"問51-2"]
[null,"問48で「05. 転業」 「06. 廃業」と回答された方にお伺い致します。\n貴社における事業承継（事業譲渡）に関する状況について、以下の中から当てはまるもの一つに印を付けてください。"]
[]
[null,1,"事業承継（事業譲渡）に向けた行動を起こしたが、断念した"]
[null,2,"事業承継（事業譲渡）に向けた検討を行ったが、行動は起こしていない"]
[null,3,"事業承継（事業譲渡）に向けた検討はしていない"]
[]
[null,"問51-3"]
[null,"問51-1で「03. 事業承継（事業譲渡）に向けた行動について、まだ何もしていない」と問51-2で\n「01. 事業承継（事業譲渡）に向けた行動を起こしたが、断念した」 「02. 事業承継（事業譲渡）に向けた\n検討を行ったが、行動は起こしていない」と回答された方にお伺い致します。\n貴社が事業承継（事業譲渡）に向けて行動していない理由や、事業承継（事業譲渡）を断念した\n（検討したが、何もしなかった）理由について、以下の中から当てはまるもの全てに印を付けてください。"]
[]
[null,1,"経営状況が悪い"]
[null,2,"市場の先行きが不透明"]
[null,3,"後継者が見つからない"]
[null,4,"交渉先との条件があわなかった（Ｍ＆Ａ仲介会社の手数料が高い等を含む）"]
[null,5,"手続きが煩雑"]
[null,6,"事業承継（事業譲渡）に関する知識・理解が不十分"]
[null,7,"事業承継（事業譲渡）に関する相談先がわからない"]
[null,8,"その他"]
[]
[null,"＜「その他」と回答された貸金業者さまのみご記入ください。＞"]
[]
[]
[]
[null,"問51-4"]
[null,"問51-1で「02.事業承継（事業譲渡）に向けた検討を行っている」 「03.事業承継（事業譲渡）に向けた\n行動について、まだ何もしていない」と回答された方にお伺い致します。\n事業承継（事業譲渡）のために協会に対して求めているものについて、以下の中から当てはまるもの全てに印を付けてください。"]
[]
[null,1,"事業承継（事業譲渡）に関する情報提供"]
[null,2,"事業承継（事業譲渡）に関するセミナー開催"]
[null,3,"事業承継（事業譲渡）に関する相談会の実施"]
[null,4,"事業承継（事業譲渡）に関する相談先の紹介"]
[null,5,"その他"]
[]
[null,"＜「その他」と回答された貸金業者さまのみご記入ください。＞"]

{"sheet":"問52","index":56,"n_rows":24,"n_cols":5,"rows_kept":24,"cut":false,"hidden":false,"merged":[[2,1,2,5],[23,1,24,1],[23,3,24,3],[23,4,24,4]]}
[]
[null,"問52"]
[null,"今後、協会に対して望むこと（提供して欲しいサービス内容や情報提供など）についてお伺い致します。\n以下の中から当てはまるもの全てと、最も望むこと一つに印を付けてください。"]
[]
[null,null,null,"協会に対して\n望むこと","協会に対して\n最も望むこと"]
[null,1,"提供サービス（加入メリット）の拡充"]
[null,2,"情報提供"]
[null,3,"時節のテーマに沿ったセミナーや講演会等の開催"]
[null,4,"集客、貸付、回収等の実務に沿った研修会の開催"]
[null,5,"各種手続き（書面・押印・対面手続き）やアンケート調査等のデジタル化の推進"]
[null,6,"動画配信やＳＮＳを使った情報発信の強化"]
[null,7,"協会員向け各種研修会の開催増加"]
[null,8,"消費者向け貸付に関する相談サービスの強化"]
[null,9,"事業者向け貸付に関する相談サービスの強化"]
[null,10,"事業の立て直しや、事業の拡大のための支援"]
[null,11,"フィンテック技術などを活用した新しい貸金事業に関する支援・コンサルティング機能"]
[null,12,"事業承継（事業譲渡）に関する支援機能"]
[null,13,"紛争相談体制の強化"]
[null,14,"出前講座等を通じた一般消費者向け金銭教育活動の充実"]
[null,15,"資格試験の講習開催増加（開催地・回数等）"]
[null,16,"協会員向け行政協力事務対象範囲の拡大"]
[null,17,"専門家による法務等相談サービスの充実"]
[null,18,"各種要望のとりまとめ等"]
[null,19,"その他 ※"]

{"sheet":"問53","index":57,"n_rows":26,"n_cols":5,"rows_kept":26,"cut":false,"hidden":false,"merged":[[2,1,2,5],[26,1,33,4],[41,2,42,4]]}
[]
[null,"問53"]
[null,"問52で「02.情報提供」を選択された方にお伺い致します。\n今後、協会に提供して欲しい情報や、取り上げて欲しい調査研究のテーマについて、\n以下の中から当てはまるもの全てと、特に欲しい情報最大三つに印を付けてください。"]
[]
[null,null,null,"提供して欲しい\n情報など","特に欲しい情報など（最大三つ）"]
[null,1,"営業手法やマーケティング等に関する情報について（事例の紹介を含む）"]
[null,2,"与信管理に関する情報について（事例の紹介を含む）"]
[null,3,"債権管理に関する情報について（事例の紹介を含む）"]
[null,4,"貸金業に関連する法律・判例の解説等に関する情報ついて"]
[null,5,"不動産担保貸付やＡＢＬ担保貸付等の取扱いに関する情報について"]
[null,6,"電子記録債権（でんさい）の取扱いに関する情報について"]
[null,7,"ファクタリング等の売掛債権の現金化に関する情報について"]
[null,8,"事業のＤＸ化やシステム構築等に関する情報について（事例の紹介を含む）"]
[null,9,"事業承継（事業譲渡）に関する情報について（事例の紹介を含む）"]
[null,10,"事業買収に関する情報について（事例の紹介を含む）"]
[null,11,"同業他社の動向に関する情報について"]
[null,12,"資金需要者等の借入意識や行動、資金ニーズ等に関する情報について"]
[null,13,"利息返還請求への対応に関する情報について"]
[null,14,"不適切なローン媒介等に関する情報について"]
[null,15,"銀行業界やクレジット業界などの貸金業に関係する他業界の動向について"]
[null,16,"金融経済教育の推進に関する情報について（ＦＬＩＣの活動状況等を含む）"]
[null,17,"金融犯罪や詐欺被害等に関する情報について"]
[null,18,"貸金業に関する各種統計情報等について"]
[null,19,"その他"]
[]
[null,"＜「その他」の具体的な内容についてご記入ください。＞"]

{"sheet":"問54","index":58,"n_rows":17,"n_cols":7,"rows_kept":17,"cut":false,"hidden":false,"merged":[[2,1,2,9],[16,2,17,8]]}
[]
[null,"問54"]
[null,"本アンケート調査の実施時期についてお伺い致します。\n貴社が望ましいと考える調査の実施時期について、\n以下の中から当てはまるもの全てに印を付けてください。"]
[]
[null,1,"1月から","3月の間"]
[null,2,"4月から","6月の間"]
[null,3,"7月から","9月の間"]
[null,4,"10月から","12月の間"]
[null,5,"その他（",null,"月から",null,"月の間）"]
[]
[]
[]
[]
[]
[]
[]
[null,null,"以上でアンケートを終了させていただきます。\nご多用中にもかかわらず、ご協力誠にありがとうございました。"]